Workbook

Sheet 資料勿動 (hidden)
A1: BillToCode | B1: BillToShortName | C1: 第一組 | D1: 第二組 | E1: 部門名稱 | F1: 區 | G1: 區1 | H1: BUYING_GROUP | I1: BUYING_GROUP-1 | J1: SalesChannelName | K1: SalesAR | L1: ARSalesChannel | M1: =SUM(K:K) -> 1828318773 | N1: 使用狀態 | O1: Promotion_total | P1: Promotion_bill | Q1: Promotion_buy | R1: Pricing Group
A2: TW002512001B | B2: ONETIMECUSTOMER | G2: ETC | H2: ETC | I2: ETC_TT | J2: TW002512001B | K2: =VLOOKUP(A2,[3]工作表5!$A$5:$D$535,4,0) -> 41713 | L2: ETC | M2: 1828318773 | N2: A | O2: =IF(N2="I","無往來",IF(SUM(P2:Q2)>0,"OK","沒有promotion")) ->  | P2: =COUNTIF([4]BALANCE!$A$1:$A$65536,[4]notouch!$A2) ->  | Q2: =COUNTIF([4]BALANCE!$A$1:$A$65536,[4]notouch!$H2) ->  | R2: =VLOOKUP(A2,'[5]Bill+Ship to Code'!$B$1:$N$3417,13,0) -> ETC_TT
A3: TW006291001B | B3: ONETIMECUSTOMER | G3: ETC | H3: ETC | I3: ETC_TT | J3: TW006291001B | M3: =M1-M2 -> 0 | N3: A | O3: =IF(N3="I","無往來",IF(SUM(P3:Q3)>0,"OK","沒有promotion")) ->  | P3: =COUNTIF([4]BALANCE!$A$1:$A$65536,[4]notouch!$A3) ->  | Q3: =COUNTIF([4]BALANCE!$A$1:$A$65536,[4]notouch!$H3) ->  | R3: =VLOOKUP(A3,'[5]Bill+Ship to Code'!$B$1:$N$3417,13,0) -> ETC_TT
A4: TW002605001B | B4: =VLOOKUP(A4,'[2]Bill+Ship to Code (Active) 12'!$B$1:$D$3073,3,0) -> ONE TIME SERVICE FOR TYPE 2 | G4: ETC | H4: ETC | I4: ETC_TT | J4: TW002605001B | K4: =VLOOKUP(A4,[3]工作表5!$A$5:$D$535,4,0) -> 5751275 | L4: SVC | N4: A | O4: 沒有promotion | R4: =VLOOKUP(A4,'[5]Bill+Ship to Code'!$B$1:$N$3417,13,0) -> ETC_TT
A5: TW003659001B | B5: =VLOOKUP(A5,'[2]Bill+Ship to Code (Active) 12'!$B$1:$D$3073,3,0) -> ONE TIME SERVICE E-INVOICE FOR TYPE2 | G5: ETC | H5: ETC | I5: ETC_TT | J5: TW003659001B | K5: =VLOOKUP(A5,[3]工作表5!$A$5:$D$535,4,0) -> 418980 | L5: SVC | N5: A | O5: 沒有promotion | R5: =VLOOKUP(A5,'[5]Bill+Ship to Code'!$B$1:$N$3417,13,0) -> ETC_TT
A6: TW005429001B | B6: =VLOOKUP(A6,'[2]Bill+Ship to Code (Active) 12'!$B$1:$D$3073,3,0) -> One time_SVC | G6: SVC | H6: SVC | I6: SVC | J6: TW005429001B | K6: =VLOOKUP(A6,[3]工作表5!$A$5:$D$535,4,0) -> 2695015 | L6: SVC | N6: A | O6: 沒有promotion | R6: =VLOOKUP(A6,'[5]Bill+Ship to Code'!$B$1:$N$3417,13,0) -> ETC_TT
A7: TW005433001B | G7: ETC | H7: ETC | I7: ETC_TT | J7: TW005433001B | K7: =VLOOKUP(A7,[3]工作表5!$A$5:$D$535,4,0) -> 4564586 | L7: ETC | N7: A | O7: 沒有promotion | R7: =VLOOKUP(A7,'[5]Bill+Ship to Code'!$B$1:$N$3417,13,0) -> ETC_TT
A8: TW004851001B | B8: 億電通國際 | G8: SVC | H8: SVC | I8: SVC | J8: TW004851001B | K8: =VLOOKUP(A8,[3]工作表5!$A$5:$D$535,4,0) -> 594656 | L8: SVC | N8: A | O8: 沒有promotion | R8: =VLOOKUP(A8,'[5]Bill+Ship to Code'!$B$1:$N$3417,13,0) -> ETC_TT
A9: TW007120001B | B9: 通達智能 | G9: SVC | H9: SVC | I9: SVC | J9: TW007120001B | L9: SVC | N9: A | O9: 沒有promotion | R9: =VLOOKUP(A9,'[5]Bill+Ship to Code'!$B$1:$N$3417,13,0) -> ETC_TT
A10: CN000116066B | G10: ETC | H10: ETC | I10: ETC_TT | J10: CN000116066B | K10: =VLOOKUP(A10,[3]工作表5!$A$5:$D$535,4,0) -> 27062 | L10: ETC | N10: A | P10: =COUNTIF([4]BALANCE!$A$1:$A$65536,[4]notouch!$A10) ->  | Q10: =COUNTIF([4]BALANCE!$A$1:$A$65536,[4]notouch!$H10) ->  | R10: =VLOOKUP(A10,'[5]Bill+Ship to Code'!$B$1:$N$3417,13,0) -> 
A11: KR000001066B | B11: LGEHQ | G11: ETC | H11: ETC | I11: ETC_TT | J11: KR000001066B | K11: =VLOOKUP(A11,[3]工作表5!$A$5:$D$535,4,0) -> 89820 | L11: ETC | N11: A | O11: =IF(N11="I","無往來",IF(SUM(P11:Q11)>0,"OK","沒有promotion")) ->  | P11: =COUNTIF([4]BALANCE!$A$1:$A$65536,[4]notouch!$A11) ->  | Q11: =COUNTIF([4]BALANCE!$A$1:$A$65536,[4]notouch!$H11) ->  | R11: =VLOOKUP(A11,'[5]Bill+Ship to Code'!$B$1:$N$3417,13,0) -> ETC_TT
A12: PH000001009B | B12: LGEPH | G12: ETC | H12: ETC | I12: ETC_TT | J12: PH000001009B | N12: A | P12: =COUNTIF([4]BALANCE!$A$1:$A$65536,[4]notouch!$A12) ->  | Q12: =COUNTIF([4]BALANCE!$A$1:$A$65536,[4]notouch!$H12) ->  | R12: =VLOOKUP(A12,'[5]Bill+Ship to Code'!$B$1:$N$3417,13,0) -> ETC_TT
A13: VN007883040B | B13: LGEVH | G13: ETC | H13: ETC | I13: ETC_TT | J13: VN007883040B | N13: A | P13: =COUNTIF([4]BALANCE!$A$1:$A$65536,[4]notouch!$A13) ->  | Q13: =COUNTIF([4]BALANCE!$A$1:$A$65536,[4]notouch!$H13) ->  | R13: =VLOOKUP(A13,'[5]Bill+Ship to Code'!$B$1:$N$3417,13,0) -> 
A14: ZA000001060B | B14: LGESA | G14: ETC | H14: ETC | I14: ETC_TT | J14: ZA000001060B | L14: ETC | N14: A | P14: =COUNTIF([4]BALANCE!$A$1:$A$65536,[4]notouch!$A14) ->  | Q14: =COUNTIF([4]BALANCE!$A$1:$A$65536,[4]notouch!$H14) ->  | R14: =VLOOKUP(A14,'[5]Bill+Ship to Code'!$B$1:$N$3417,13,0) -> 
A15: MX011038033B | B15: LGEMN | G15: ETC | H15: ETC | I15: ETC_TT | J15: MX011038033B | K15: =VLOOKUP(A15,[3]工作表5!$A$5:$D$535,4,0) -> 556632 | L15: ETC | N15: A | O15: =IF(N15="I","無往來",IF(SUM(P15:Q15)>0,"OK","沒有promotion")) ->  | P15: =COUNTIF([4]BALANCE!$A$1:$A$65536,[4]notouch!$A15) ->  | Q15: =COUNTIF([4]BALANCE!$A$1:$A$65536,[4]notouch!$H15) ->  | R15: =VLOOKUP(A15,'[5]Bill+Ship to Code'!$B$1:$N$3417,13,0) -> 
A16: CN000135060B | B16: LGEPN | G16: ETC | H16: ETC | I16: ETC_TT | J16: CN000135060B | L16: ETC | N16: A | O16: =IF(N16="I","無往來",IF(SUM(P16:Q16)>0,"OK","沒有promotion")) ->  | P16: =COUNTIF([4]BALANCE!$A$1:$A$65536,[4]notouch!$A16) ->  | Q16: =COUNTIF([4]BALANCE!$A$1:$A$65536,[4]notouch!$H16) ->  | R16: =VLOOKUP(A16,'[5]Bill+Ship to Code'!$B$1:$N$3417,13,0) -> 
A17: SG001062061B | G17: ETC | H17: ETC | I17: ETC_TT | J17: SG001062061B | N17: A | O17: =IF(N17="I","無往來",IF(SUM(P17:Q17)>0,"OK","沒有promotion")) ->  | P17: =COUNTIF([4]BALANCE!$A$1:$A$65536,[4]notouch!$A17) ->  | Q17: =COUNTIF([4]BALANCE!$A$1:$A$65536,[4]notouch!$H17) ->  | R17: =VLOOKUP(A17,'[5]Bill+Ship to Code'!$B$1:$N$3417,13,0) -> DLC_TT
A18: ID000002065B | B18: PT. LG ELECTRONICS INDONESIA | G18: ETC | H18: ETC | I18: ETC_TT | J18: ID000002065B | N18: A | P18: =COUNTIF([4]BALANCE!$A$1:$A$65536,[4]notouch!$A18) ->  | Q18: =COUNTIF([4]BALANCE!$A$1:$A$65536,[4]notouch!$H18) ->  | R18: =VLOOKUP(A18,'[5]Bill+Ship to Code'!$B$1:$N$3417,13,0) -> 
A19: TW002070001B | B19: 來福電器商行 | C19: 19600401 | D19: 08026783 | E19: 高屏營銷處 | F19: GWB | G19: 高屏 | H19: DEALER_TT | I19: DLC_TT | J19: TW002070001B | K19: =VLOOKUP(A19,[3]工作表5!$A$5:$D$535,4,0) -> 24145 | L19: 高屏營銷處 | N19: A | P19: =COUNTIF([4]BALANCE!$A$1:$A$65536,[4]notouch!$A19) ->  | Q19: =COUNTIF([4]BALANCE!$A$1:$A$65536,[4]notouch!$H19) ->  | R19: =VLOOKUP(A19,'[5]Bill+Ship to Code'!$B$1:$N$3417,13,0) -> DLC_TT
A20: TW002073001B | B20: 貴櫻音響 | C20: 19660906 | D20: 95987415 | E20: 高屏營銷處 | F20: GWB | G20: 高屏 | H20: DEALER_TT | I20: DLC_TT | N20: I | O20: 無往來 | P20: =COUNTIF([4]BALANCE!$A$1:$A$65536,[4]notouch!$A20) ->  | Q20: =COUNTIF([4]BALANCE!$A$1:$A$65536,[4]notouch!$H20) ->  | R20: =VLOOKUP(A20,'[5]Bill+Ship to Code'!$B$1:$N$3417,13,0) -> 
A21: TW002076001B | B21: 億興電業行 | C21: 19640715 | D21: 70940630 | E21: 空調營銷處 | F21: GWB | G21: 高屏 | H21: DEALER_TT | I21: DLC_TT | J21: TW002076001B | K21: =VLOOKUP(A21,[3]工作表5!$A$5:$D$535,4,0) -> 149516 | L21: AC part | N21: A | P21: =COUNTIF([4]BALANCE!$A$1:$A$65536,[4]notouch!$A21) ->  | Q21: =COUNTIF([4]BALANCE!$A$1:$A$65536,[4]notouch!$H21) ->  | R21: =VLOOKUP(A21,'[5]Bill+Ship to Code'!$B$1:$N$3417,13,0) -> DLC_TT
A22: TW002077001B | B22: 信一電器行 | C22: 19520302 | D22: 91730759 | E22: 高屏營銷處 | F22: GWB | G22: 高屏 | H22: DEALER_TT | I22: DLC_TT | J22: TW002077001B | K22: =VLOOKUP(A22,[3]工作表5!$A$5:$D$535,4,0) -> 0 | L22: 高屏營銷處 | N22: A | P22: =COUNTIF([4]BALANCE!$A$1:$A$65536,[4]notouch!$A22) ->  | Q22: =COUNTIF([4]BALANCE!$A$1:$A$65536,[4]notouch!$H22) ->  | R22: =VLOOKUP(A22,'[5]Bill+Ship to Code'!$B$1:$N$3417,13,0) -> DLC_TT
A23: TW002079001B | B23: 立陞電器 | C23: 19600710 | D23: 23956174 | E23: 高屏營銷處 | F23: GWB | G23: 高屏 | H23: DEALER_TT | I23: DLC_TT | J23: TW002079001B | K23: =VLOOKUP(A23,[3]工作表5!$A$5:$D$535,4,0) -> 0 | L23: 高屏營銷處 | N23: A | P23: =COUNTIF([4]BALANCE!$A$1:$A$65536,[4]notouch!$A23) ->  | Q23: =COUNTIF([4]BALANCE!$A$1:$A$65536,[4]notouch!$H23) ->  | R23: =VLOOKUP(A23,'[5]Bill+Ship to Code'!$B$1:$N$3417,13,0) -> DLC_TT
A24: TW002083001B | B24: 路得企業有限公司 | C24: 19600503 | D24: 84672419 | E24: 高屏營銷處 | F24: GWB | G24: 高屏 | H24: DEALER_TT | I24: SPD_TT | J24: TW002083001B | K24: =VLOOKUP(A24,[3]工作表5!$A$5:$D$535,4,0) -> 271804 | L24: 高屏營銷處 | N24: A | P24: =COUNTIF([4]BALANCE!$A$1:$A$65536,[4]notouch!$A24) ->  | Q24: =COUNTIF([4]BALANCE!$A$1:$A$65536,[4]notouch!$H24) ->  | R24: =VLOOKUP(A24,'[5]Bill+Ship to Code'!$B$1:$N$3417,13,0) -> SPD_TT
A25: TW002084001B | B25: 新進發企業行 | C25: 19520414 | D25: 90802950 | E25: 高屏營銷處 | F25: GWB | G25: 高屏 | H25: DEALER_TT | I25: DLC_TT | N25: I | O25: 無往來 | P25: =COUNTIF([4]BALANCE!$A$1:$A$65536,[4]notouch!$A25) ->  | Q25: =COUNTIF([4]BALANCE!$A$1:$A$65536,[4]notouch!$H25) ->  | R25: =VLOOKUP(A25,'[5]Bill+Ship to Code'!$B$1:$N$3417,13,0) -> 
A26: TW002085001B | B26: 皇昇電器行 | C26: 19600320 | D26: 08069071 | E26: 高屏營銷處 | F26: GWB | G26: 高屏 | H26: DEALER_TT | I26: DLC_TT | N26: I | O26: 無往來 | P26: =COUNTIF([4]BALANCE!$A$1:$A$65536,[4]notouch!$A26) ->  | Q26: =COUNTIF([4]BALANCE!$A$1:$A$65536,[4]notouch!$H26) ->  | R26: =VLOOKUP(A26,'[5]Bill+Ship to Code'!$B$1:$N$3417,13,0) -> 
A27: TW002090001B | B27: 慶旺電器有限公司 | C27: hw7498625 | D27: hw16826605 | E27: 高屏營銷處 | F27: GWB | G27: 高屏 | H27: DEALER_TT | I27: DLC_TT | J27: TW002090001B | K27: =VLOOKUP(A27,[3]工作表5!$A$5:$D$535,4,0) -> 143241 | L27: 高屏營銷處 | N27: A | P27: =COUNTIF([4]BALANCE!$A$1:$A$65536,[4]notouch!$A27) ->  | Q27: =COUNTIF([4]BALANCE!$A$1:$A$65536,[4]notouch!$H27) ->  | R27: =VLOOKUP(A27,'[5]Bill+Ship to Code'!$B$1:$N$3417,13,0) -> DLC_TT
A28: TW002091001B | B28: 人友電器行 | C28: 19601028 | D28: 77003547 | E28: 高屏營銷處 | F28: GWB | G28: 高屏 | H28: DEALER_TT | I28: DLC_TT | J28: TW002091001B | L28: 高屏營銷處 | N28: A | P28: =COUNTIF([4]BALANCE!$A$1:$A$65536,[4]notouch!$A28) ->  | Q28: =COUNTIF([4]BALANCE!$A$1:$A$65536,[4]notouch!$H28) ->  | R28: =VLOOKUP(A28,'[5]Bill+Ship to Code'!$B$1:$N$3417,13,0) -> 
A29: TW002093001B | B29: 鴻嘉電化商行 | C29: 19480106 | D29: 06696505 | E29: 高屏營銷處 | F29: GWB | G29: 高屏 | H29: DEALER_TT | I29: DCS_TT | J29: TW002093001B | K29: =VLOOKUP(A29,[3]工作表5!$A$5:$D$535,4,0) -> 325822 | L29: 高屏營銷處 | N29: A | P29: =COUNTIF([4]BALANCE!$A$1:$A$65536,[4]notouch!$A29) ->  | Q29: =COUNTIF([4]BALANCE!$A$1:$A$65536,[4]notouch!$H29) ->  | R29: =VLOOKUP(A29,'[5]Bill+Ship to Code'!$B$1:$N$3417,13,0) -> DCS_TT
A30: TW002094001B | B30: 力利企業有限公司 | C30: 19660912 | D30: 16683445 | E30: 高屏營銷處 | F30: GWB | G30: 高屏 | H30: DEALER_TT | I30: DCS_TT | J30: TW002094001B | K30: =VLOOKUP(A30,[3]工作表5!$A$5:$D$535,4,0) -> 40393 | L30: 高屏營銷處 | N30: A | P30: =COUNTIF([4]BALANCE!$A$1:$A$65536,[4]notouch!$A30) ->  | Q30: =COUNTIF([4]BALANCE!$A$1:$A$65536,[4]notouch!$H30) ->  | R30: =VLOOKUP(A30,'[5]Bill+Ship to Code'!$B$1:$N$3417,13,0) -> DCS_TT
A31: TW002099001B | B31: 淙勝電器有限公司 | C31: 19580807 | D31: 16476213 | E31: 高屏營銷處 | F31: GWB | G31: 高屏 | H31: DEALER_TT | I31: DLC_TT | J31: TW002099001B | L31: 高屏營銷處 | N31: A | P31: =COUNTIF([4]BALANCE!$A$1:$A$65536,[4]notouch!$A31) ->  | Q31: =COUNTIF([4]BALANCE!$A$1:$A$65536,[4]notouch!$H31) ->  | R31: =VLOOKUP(A31,'[5]Bill+Ship to Code'!$B$1:$N$3417,13,0) -> 
A32: TW002104001B | B32: 三豐電器行 | C32: 19681110 | D32: 19661607 | E32: 高屏營銷處 | F32: GWB | G32: 高屏 | H32: DEALER_TT | I32: DLC_TT | J32: TW002104001B | K32: =VLOOKUP(A32,[3]工作表5!$A$5:$D$535,4,0) -> 38550 | L32: 高屏營銷處 | N32: A | P32: =COUNTIF([4]BALANCE!$A$1:$A$65536,[4]notouch!$A32) ->  | Q32: =COUNTIF([4]BALANCE!$A$1:$A$65536,[4]notouch!$H32) ->  | R32: =VLOOKUP(A32,'[5]Bill+Ship to Code'!$B$1:$N$3417,13,0) -> DLC_TT
A33: TW002105001B | B33: 上眾電器有限公司 | C33: 19600908 | D33: 97408406 | E33: 高屏營銷處 | F33: GWB | G33: 高屏 | H33: DEALER_TT | I33: DLC_TT | J33: TW002105001B | K33: =VLOOKUP(A33,[3]工作表5!$A$5:$D$535,4,0) -> 157934 | L33: 高屏營銷處 | N33: A | P33: =COUNTIF([4]BALANCE!$A$1:$A$65536,[4]notouch!$A33) ->  | Q33: =COUNTIF([4]BALANCE!$A$1:$A$65536,[4]notouch!$H33) ->  | R33: =VLOOKUP(A33,'[5]Bill+Ship to Code'!$B$1:$N$3417,13,0) -> DLC_TT
A34: TW002106001B | B34: 大時代量販家電 | C34: 19670921 | D34: 07910980 | E34: 高屏營銷處 | F34: GWB | G34: 高屏 | H34: DEALER_TT | I34: SPD_TT | J34: TW002106001B | K34: =VLOOKUP(A34,[3]工作表5!$A$5:$D$535,4,0) -> 748578 | L34: 高屏營銷處 | N34: A | P34: =COUNTIF([4]BALANCE!$A$1:$A$65536,[4]notouch!$A34) ->  | Q34: =COUNTIF([4]BALANCE!$A$1:$A$65536,[4]notouch!$H34) ->  | R34: =VLOOKUP(A34,'[5]Bill+Ship to Code'!$B$1:$N$3417,13,0) -> SPD_TT
A35: TW002108001B | B35: 春聲電器有限公司 | C35: 19590922 | D35: 86633356 | E35: 高屏營銷處 | F35: GWB | G35: 高屏 | H35: DEALER_TT | I35: DCS_TT | J35: TW002108001B | K35: =VLOOKUP(A35,[3]工作表5!$A$5:$D$535,4,0) -> 159930 | L35: 高屏營銷處 | N35: A | P35: =COUNTIF([4]BALANCE!$A$1:$A$65536,[4]notouch!$A35) ->  | Q35: =COUNTIF([4]BALANCE!$A$1:$A$65536,[4]notouch!$H35) ->  | R35: =VLOOKUP(A35,'[5]Bill+Ship to Code'!$B$1:$N$3417,13,0) -> DCS_TT
A36: TW002118001B | B36: 福總電業社 | C36: 19551001 | D36: 08519549 | E36: 高屏營銷處 | F36: GWB | G36: 高屏 | H36: DEALER_TT | I36: DLC_TT | J36: TW002118001B | K36: =VLOOKUP(A36,[3]工作表5!$A$5:$D$535,4,0) -> 109076 | L36: 高屏營銷處 | N36: A | P36: =COUNTIF([4]BALANCE!$A$1:$A$65536,[4]notouch!$A36) ->  | Q36: =COUNTIF([4]BALANCE!$A$1:$A$65536,[4]notouch!$H36) ->  | R36: =VLOOKUP(A36,'[5]Bill+Ship to Code'!$B$1:$N$3417,13,0) -> DLC_TT
A37: TW002119001B | B37: 聯立貿易有限公司 | C37: 19520813 | D37: 70405187 | E37: 高屏營銷處 | F37: GWB | G37: 高屏 | H37: DEALER_TT | I37: DCS_TT | J37: TW002119001B | K37: =VLOOKUP(A37,[3]工作表5!$A$5:$D$535,4,0) -> 207003 | L37: 高屏營銷處 | N37: A | P37: =COUNTIF([4]BALANCE!$A$1:$A$65536,[4]notouch!$A37) ->  | Q37: =COUNTIF([4]BALANCE!$A$1:$A$65536,[4]notouch!$H37) ->  | R37: =VLOOKUP(A37,'[5]Bill+Ship to Code'!$B$1:$N$3417,13,0) -> DCS_TT
A38: TW002130001B | B38: 百鈴電器影視有限公司 | C38: 19530824 | D38: 72192956 | E38: 嘉南營銷處 | F38: DNB | G38: 嘉南 | H38: DEALER_TT | I38: DLC_TT | J38: TW002130001B | K38: =VLOOKUP(A38,[3]工作表5!$A$5:$D$535,4,0) -> 90900 | L38: 嘉南營銷處 | N38: A | P38: =COUNTIF([4]BALANCE!$A$1:$A$65536,[4]notouch!$A38) ->  | Q38: =COUNTIF([4]BALANCE!$A$1:$A$65536,[4]notouch!$H38) ->  | R38: =VLOOKUP(A38,'[5]Bill+Ship to Code'!$B$1:$N$3417,13,0) -> DLC_TT
A39: TW002140001B | B39: 大時代量販家電 | C39: 19681011 | D39: 87692727 | E39: 嘉南營銷處 | F39: DNB | G39: 嘉南 | H39: DEALER_TT | I39: DCS_TT | J39: TW002140001B | K39: =VLOOKUP(A39,[3]工作表5!$A$5:$D$535,4,0) -> 318729 | L39: 嘉南營銷處 | N39: A | P39: =COUNTIF([4]BALANCE!$A$1:$A$65536,[4]notouch!$A39) ->  | Q39: =COUNTIF([4]BALANCE!$A$1:$A$65536,[4]notouch!$H39) ->  | R39: =VLOOKUP(A39,'[5]Bill+Ship to Code'!$B$1:$N$3417,13,0) -> DCS_TT
A40: TW002141001B | B40: 冠銓電器有限公司 | C40: 19630606 | D40: 16860835 | E40: 嘉南營銷處 | F40: DNB | G40: 嘉南 | H40: DEALER_TT | I40: SPD_TT | J40: TW002141001B | L40: 嘉南營銷處 | N40: A | P40: =COUNTIF([4]BALANCE!$A$1:$A$65536,[4]notouch!$A40) ->  | Q40: =COUNTIF([4]BALANCE!$A$1:$A$65536,[4]notouch!$H40) ->  | R40: =VLOOKUP(A40,'[5]Bill+Ship to Code'!$B$1:$N$3417,13,0) -> SPD_TT
A41: TW002143001B | B41: 全省電器有限公司 | C41: 19701230 | D41: 69689334 | E41: 嘉南營銷處 | F41: DNB | G41: 嘉南 | H41: DEALER_TT | I41: SPD_TT | J41: TW002143001B | K41: =VLOOKUP(A41,[3]工作表5!$A$5:$D$535,4,0) -> 3885912 | L41: 嘉南營銷處 | N41: A | P41: =COUNTIF([4]BALANCE!$A$1:$A$65536,[4]notouch!$A41) ->  | Q41: =COUNTIF([4]BALANCE!$A$1:$A$65536,[4]notouch!$H41) ->  | R41: =VLOOKUP(A41,'[5]Bill+Ship to Code'!$B$1:$N$3417,13,0) -> SPD_TT
A42: TW002144001B | B42: 歐鋒電器行 | C42: 19630108 | D42: 78995756 | E42: 嘉南營銷處 | F42: DNB | G42: 嘉南 | H42: DEALER_TT | I42: DCS_TT | J42: TW002144001B | K42: =VLOOKUP(A42,[3]工作表5!$A$5:$D$535,4,0) -> 72821 | L42: 嘉南營銷處 | N42: A | P42: =COUNTIF([4]BALANCE!$A$1:$A$65536,[4]notouch!$A42) ->  | Q42: =COUNTIF([4]BALANCE!$A$1:$A$65536,[4]notouch!$H42) ->  | R42: =VLOOKUP(A42,'[5]Bill+Ship to Code'!$B$1:$N$3417,13,0) -> DCS_TT
A43: TW002146001B | B43: 宇騰電器行 | C43: 19630910 | D43: 78630074 | E43: 嘉南營銷處 | F43: DNB | G43: 嘉南 | H43: DEALER_TT | I43: DCS_TT | N43: I | O43: 無往來 | P43: =COUNTIF([4]BALANCE!$A$1:$A$65536,[4]notouch!$A43) ->  | Q43: =COUNTIF([4]BALANCE!$A$1:$A$65536,[4]notouch!$H43) ->  | R43: =VLOOKUP(A43,'[5]Bill+Ship to Code'!$B$1:$N$3417,13,0) -> 
A44: TW002150001B | B44: 宏偉電器行 | C44: 19610121 | D44: 06504730 | E44: 嘉南營銷處 | F44: DNB | G44: 嘉南 | H44: DEALER_TT | I44: DCS_TT | J44: TW002150001B | K44: =VLOOKUP(A44,[3]工作表5!$A$5:$D$535,4,0) -> 72821 | L44: 嘉南營銷處 | N44: A | P44: =COUNTIF([4]BALANCE!$A$1:$A$65536,[4]notouch!$A44) ->  | Q44: =COUNTIF([4]BALANCE!$A$1:$A$65536,[4]notouch!$H44) ->  | R44: =VLOOKUP(A44,'[5]Bill+Ship to Code'!$B$1:$N$3417,13,0) -> DCS_TT
A45: TW002151001B | B45: 松寶電器行 | C45: 19530411 | D45: 85741379 | E45: 嘉南營銷處 | F45: DNB | G45: 嘉南 | H45: DEALER_TT | I45: DLC_TT | J45: TW002151001B | K45: =VLOOKUP(A45,[3]工作表5!$A$5:$D$535,4,0) -> 14365 | L45: 嘉南營銷處 | N45: A | P45: =COUNTIF([4]BALANCE!$A$1:$A$65536,[4]notouch!$A45) ->  | Q45: =COUNTIF([4]BALANCE!$A$1:$A$65536,[4]notouch!$H45) ->  | R45: =VLOOKUP(A45,'[5]Bill+Ship to Code'!$B$1:$N$3417,13,0) -> DLC_TT
A46: TW002152001B | B46: 世英電業行 | C46: 19510120 | D46: 69310389 | E46: 嘉南營銷處 | F46: DNB | G46: 嘉南 | H46: DEALER_TT | I46: DCS_TT | N46: A | P46: =COUNTIF([4]BALANCE!$A$1:$A$65536,[4]notouch!$A46) ->  | Q46: =COUNTIF([4]BALANCE!$A$1:$A$65536,[4]notouch!$H46) ->  | R46: =VLOOKUP(A46,'[5]Bill+Ship to Code'!$B$1:$N$3417,13,0) -> 
A47: TW002154001B | B47: 信福電器有限公司 | C47: 19710107 | D47: 69279211 | E47: 嘉南營銷處 | F47: DNB | G47: 嘉南 | H47: DEALER_TT | I47: DCS_TT | J47: TW002154001B | K47: =VLOOKUP(A47,[3]工作表5!$A$5:$D$535,4,0) -> 2506126 | L47: 嘉南營銷處 | N47: A | P47: =COUNTIF([4]BALANCE!$A$1:$A$65536,[4]notouch!$A47) ->  | Q47: =COUNTIF([4]BALANCE!$A$1:$A$65536,[4]notouch!$H47) ->  | R47: =VLOOKUP(A47,'[5]Bill+Ship to Code'!$B$1:$N$3417,13,0) -> DCS_TT
A48: TW002155001B | B48: 老李電器企業有限公司 | C48: 19541025 | D48: 06375829 | E48: 嘉南營銷處 | F48: DNB | G48: 嘉南 | H48: DEALER_TT | I48: DLC_TT | J48: TW002155001B | K48: =VLOOKUP(A48,[3]工作表5!$A$5:$D$535,4,0) -> 99242 | L48: 嘉南營銷處 | N48: A | P48: =COUNTIF([4]BALANCE!$A$1:$A$65536,[4]notouch!$A48) ->  | Q48: =COUNTIF([4]BALANCE!$A$1:$A$65536,[4]notouch!$H48) ->  | R48: =VLOOKUP(A48,'[5]Bill+Ship to Code'!$B$1:$N$3417,13,0) -> DLC_TT
A49: TW002158001B | B49: 中美電器行 | C49: 19640417 | D49: 20198584 | E49: 嘉南營銷處 | F49: DNB | G49: 嘉南 | H49: DEALER_TT | I49: DLC_TT | J49: TW002158001B | K49: =VLOOKUP(A49,[3]工作表5!$A$5:$D$535,4,0) -> 99256 | L49: 嘉南營銷處 | N49: A | P49: =COUNTIF([4]BALANCE!$A$1:$A$65536,[4]notouch!$A49) ->  | Q49: =COUNTIF([4]BALANCE!$A$1:$A$65536,[4]notouch!$H49) ->  | R49: =VLOOKUP(A49,'[5]Bill+Ship to Code'!$B$1:$N$3417,13,0) -> DLC_TT
A50: TW002173001B | B50: 泰欣電器行 | C50: 19601208 | D50: 06556096 | E50: 嘉南營銷處 | F50: DNB | G50: 嘉南 | H50: DEALER_TT | I50: DCS_TT | J50: TW002173001B | K50: =VLOOKUP(A50,[3]工作表5!$A$5:$D$535,4,0) -> 509311 | L50: 嘉南營銷處 | N50: A | P50: =COUNTIF([4]BALANCE!$A$1:$A$65536,[4]notouch!$A50) ->  | Q50: =COUNTIF([4]BALANCE!$A$1:$A$65536,[4]notouch!$H50) ->  | R50: =VLOOKUP(A50,'[5]Bill+Ship to Code'!$B$1:$N$3417,13,0) -> DCS_TT
A51: TW002174001B | B51: 強尼電器百貨大批發 | C51: 19651231 | D51: 06583544 | E51: 嘉南營銷處 | F51: DNB | G51: 嘉南 | H51: DEALER_TT | I51: DLC_TT | N51: A | P51: =COUNTIF([4]BALANCE!$A$1:$A$65536,[4]notouch!$A51) ->  | Q51: =COUNTIF([4]BALANCE!$A$1:$A$65536,[4]notouch!$H51) ->  | R51: =VLOOKUP(A51,'[5]Bill+Ship to Code'!$B$1:$N$3417,13,0) -> 
A52: TW002176001B | B52: 益昌電氣行 | C52: 19720603 | D52: 72166747 | E52: 嘉南營銷處 | F52: DNB | G52: 嘉南 | H52: DEALER_TT | I52: DLC_TT | J52: TW002176001B | K52: =VLOOKUP(A52,[3]工作表5!$A$5:$D$535,4,0) -> 337611 | L52: 嘉南營銷處 | N52: A | P52: =COUNTIF([4]BALANCE!$A$1:$A$65536,[4]notouch!$A52) ->  | Q52: =COUNTIF([4]BALANCE!$A$1:$A$65536,[4]notouch!$H52) ->  | R52: =VLOOKUP(A52,'[5]Bill+Ship to Code'!$B$1:$N$3417,13,0) -> DLC_TT
A53: TW002192001B | B53: 和春電器行 | C53: 19681015 | D53: 64910498 | E53: 嘉南營銷處 | F53: DNB | G53: 嘉南 | H53: DEALER_TT | I53: DLC_TT | J53: TW002192001B | K53: =VLOOKUP(A53,[3]工作表5!$A$5:$D$535,4,0) -> 125732 | L53: 嘉南營銷處 | N53: A | P53: =COUNTIF([4]BALANCE!$A$1:$A$65536,[4]notouch!$A53) ->  | Q53: =COUNTIF([4]BALANCE!$A$1:$A$65536,[4]notouch!$H53) ->  | R53: =VLOOKUP(A53,'[5]Bill+Ship to Code'!$B$1:$N$3417,13,0) -> DLC_TT
A54: TW002194001B | B54: 宏達電氣行 | C54: 19780611 | D54: 64862377 | E54: 台中營銷處 | F54: DJB | G54: 台中 | H54: DEALER_TT | I54: DCS_TT | J54: TW002194001B | K54: =VLOOKUP(A54,[3]工作表5!$A$5:$D$535,4,0) -> 271772 | L54: 台中營銷處 | N54: A | P54: =COUNTIF([4]BALANCE!$A$1:$A$65536,[4]notouch!$A54) ->  | Q54: =COUNTIF([4]BALANCE!$A$1:$A$65536,[4]notouch!$H54) ->  | R54: =VLOOKUP(A54,'[5]Bill+Ship to Code'!$B$1:$N$3417,13,0) -> DCS_TT
A55: TW002201001B | B55: 中聯發國際企業有限公司 | C55: TW002201 | D55: 16402395 | E55: 台中營銷處 | F55: DJB | G55: 台中 | H55: DEALER_TT | I55: DLC_TT | J55: TW002201001B | K55: =VLOOKUP(A55,[3]工作表5!$A$5:$D$535,4,0) -> 97087 | L55: 台中營銷處 | N55: A | P55: =COUNTIF([4]BALANCE!$A$1:$A$65536,[4]notouch!$A55) ->  | Q55: =COUNTIF([4]BALANCE!$A$1:$A$65536,[4]notouch!$H55) ->  | R55: =VLOOKUP(A55,'[5]Bill+Ship to Code'!$B$1:$N$3417,13,0) -> DLC_TT
A56: TW002204001B | B56: 鑫昌電器有限公司 | C56: 22789515 | D56: 22791019 | E56: 台中營銷處 | F56: DJB | G56: 台中 | H56: DEALER_TT | I56: SPD_TT | J56: TW002204001B | L56: 台中營銷處 | N56: A | P56: =COUNTIF([4]BALANCE!$A$1:$A$65536,[4]notouch!$A56) ->  | Q56: =COUNTIF([4]BALANCE!$A$1:$A$65536,[4]notouch!$H56) ->  | R56: =VLOOKUP(A56,'[5]Bill+Ship to Code'!$B$1:$N$3417,13,0) -> 
A57: TW002206001B | B57: 祥峰電器行 | C57: TW002206 | D57: 61841075 | E57: 台中營銷處 | F57: DJB | G57: 台中 | H57: DEALER_TT | I57: DLC_TT | J57: TW002206001B | K57: =VLOOKUP(A57,[3]工作表5!$A$5:$D$535,4,0) -> 0 | L57: 台中營銷處 | N57: A | P57: =COUNTIF([4]BALANCE!$A$1:$A$65536,[4]notouch!$A57) ->  | Q57: =COUNTIF([4]BALANCE!$A$1:$A$65536,[4]notouch!$H57) ->  | R57: =VLOOKUP(A57,'[5]Bill+Ship to Code'!$B$1:$N$3417,13,0) -> DLC_TT
A58: TW002214001B | B58: 欣益電器行 | C58: TW002214 | D58: 12043905 | E58: 台中營銷處 | F58: DJB | G58: 台中 | H58: DEALER_TT | I58: SPD_TT | J58: TW002214001B | K58: =VLOOKUP(A58,[3]工作表5!$A$5:$D$535,4,0) -> 136244 | L58: 台中營銷處 | N58: A | P58: =COUNTIF([4]BALANCE!$A$1:$A$65536,[4]notouch!$A58) ->  | Q58: =COUNTIF([4]BALANCE!$A$1:$A$65536,[4]notouch!$H58) ->  | R58: =VLOOKUP(A58,'[5]Bill+Ship to Code'!$B$1:$N$3417,13,0) -> SPD_TT
A59: TW002223001B | B59: 長紅電子專賣店 | C59: 19680422 | D59: 92812618 | E59: 台中營銷處 | F59: DJB | G59: 台中 | H59: DEALER_TT | I59: DLC_TT | J59: TW002223001B | K59: =VLOOKUP(A59,[3]工作表5!$A$5:$D$535,4,0) -> 0 | L59: 台中營銷處 | N59: A | P59: =COUNTIF([4]BALANCE!$A$1:$A$65536,[4]notouch!$A59) ->  | Q59: =COUNTIF([4]BALANCE!$A$1:$A$65536,[4]notouch!$H59) ->  | R59: =VLOOKUP(A59,'[5]Bill+Ship to Code'!$B$1:$N$3417,13,0) -> DLC_TT
A60: TW002228001B | B60: 嘉聲電器有限公司 | C60: TW002228 | D60: 22960798 | E60: 台中營銷處 | F60: DJB | G60: 台中 | H60: DEALER_TT | I60: DLC_TT | N60: I | O60: 無往來 | P60: =COUNTIF([4]BALANCE!$A$1:$A$65536,[4]notouch!$A60) ->  | Q60: =COUNTIF([4]BALANCE!$A$1:$A$65536,[4]notouch!$H60) ->  | R60: =VLOOKUP(A60,'[5]Bill+Ship to Code'!$B$1:$N$3417,13,0) -> DLC_TT
A61: TW002229001B | B61: 宏昌電器行 | C61: 19590618 | D61: 24151920 | E61: 台中營銷處 | F61: DJB | G61: 台中 | H61: DEALER_TT | I61: DLC_TT | J61: TW002229001B | K61: =VLOOKUP(A61,[3]工作表5!$A$5:$D$535,4,0) -> 68783 | L61: 台中營銷處 | N61: A | P61: =COUNTIF([4]BALANCE!$A$1:$A$65536,[4]notouch!$A61) ->  | Q61: =COUNTIF([4]BALANCE!$A$1:$A$65536,[4]notouch!$H61) ->  | R61: =VLOOKUP(A61,'[5]Bill+Ship to Code'!$B$1:$N$3417,13,0) -> DLC_TT
A62: TW002239001B | B62: 明信電子專賣店 | C62: 19641206 | D62: 77109680 | E62: 台中營銷處 | F62: DJB | G62: 台中 | H62: DEALER_TT | I62: DLC_TT | J62: TW002239001B | K62: =VLOOKUP(A62,[3]工作表5!$A$5:$D$535,4,0) -> 0 | L62: 台中營銷處 | N62: A | P62: =COUNTIF([4]BALANCE!$A$1:$A$65536,[4]notouch!$A62) ->  | Q62: =COUNTIF([4]BALANCE!$A$1:$A$65536,[4]notouch!$H62) ->  | R62: =VLOOKUP(A62,'[5]Bill+Ship to Code'!$B$1:$N$3417,13,0) -> DLC_TT
A63: TW002245001B | B63: 明嘉電器 | C63: TW002245 | D63: 23077347 | E63: 台中營銷處 | F63: DJB | G63: 台中 | H63: DEALER_TT | I63: DLC_TT | N63: I | O63: 無往來 | P63: =COUNTIF([4]BALANCE!$A$1:$A$65536,[4]notouch!$A63) ->  | Q63: =COUNTIF([4]BALANCE!$A$1:$A$65536,[4]notouch!$H63) ->  | R63: =VLOOKUP(A63,'[5]Bill+Ship to Code'!$B$1:$N$3417,13,0) -> 
A64: TW002248001B | B64: 盟音電器 | C64: TW002248 | D64: 84181461 | E64: 台中營銷處 | F64: DJB | G64: 台中 | H64: DEALER_TT | I64: DLC_TT | N64: I | O64: 無往來 | P64: =COUNTIF([4]BALANCE!$A$1:$A$65536,[4]notouch!$A64) ->  | Q64: =COUNTIF([4]BALANCE!$A$1:$A$65536,[4]notouch!$H64) ->  | R64: =VLOOKUP(A64,'[5]Bill+Ship to Code'!$B$1:$N$3417,13,0) -> 
A65: TW002250001B | B65: 格愛陞有限公司 | C65: TW002250 | D65: 84694814 | E65: 台中營銷處 | F65: DJB | G65: 台中 | H65: DEALER_TT | I65: DCS_TT | N65: I | O65: 無往來 | P65: =COUNTIF([4]BALANCE!$A$1:$A$65536,[4]notouch!$A65) ->  | Q65: =COUNTIF([4]BALANCE!$A$1:$A$65536,[4]notouch!$H65) ->  | R65: =VLOOKUP(A65,'[5]Bill+Ship to Code'!$B$1:$N$3417,13,0) -> 
A66: TW002252001B | B66: 沅富電器行 | C66: 19611227 | D66: 18334578 | E66: 台中營銷處 | F66: DJB | G66: 台中 | H66: DEALER_TT | I66: SPD_TT | J66: TW002252001B | K66: =VLOOKUP(A66,[3]工作表5!$A$5:$D$535,4,0) -> 326122 | L66: 台中營銷處 | N66: A | P66: =COUNTIF([4]BALANCE!$A$1:$A$65536,[4]notouch!$A66) ->  | Q66: =COUNTIF([4]BALANCE!$A$1:$A$65536,[4]notouch!$H66) ->  | R66: =VLOOKUP(A66,'[5]Bill+Ship to Code'!$B$1:$N$3417,13,0) -> SPD_TT
A67: TW002257001B | B67: 恆信電器有限公司 | C67: TW002257 | D67: 89817694 | E67: 台中營銷處 | F67: DJB | G67: 台中 | H67: DEALER_TT | I67: DLC_TT | J67: TW002257001B | K67: =VLOOKUP(A67,[3]工作表5!$A$5:$D$535,4,0) -> 16914 | L67: 台中營銷處 | N67: A | P67: =COUNTIF([4]BALANCE!$A$1:$A$65536,[4]notouch!$A67) ->  | Q67: =COUNTIF([4]BALANCE!$A$1:$A$65536,[4]notouch!$H67) ->  | R67: =VLOOKUP(A67,'[5]Bill+Ship to Code'!$B$1:$N$3417,13,0) -> DLC_TT
A68: TW002261001B | B68: 美齊富有限公司 | C68: 23893338 | D68: 23811788 | E68: 台中營銷處 | F68: DJB | G68: 台中 | H68: DEALER_TT | I68: DLC_TT | J68: TW002261001B | K68: =VLOOKUP(A68,[3]工作表5!$A$5:$D$535,4,0) -> 65092 | L68: 台中營銷處 | N68: A | P68: =COUNTIF([4]BALANCE!$A$1:$A$65536,[4]notouch!$A68) ->  | Q68: =COUNTIF([4]BALANCE!$A$1:$A$65536,[4]notouch!$H68) ->  | R68: =VLOOKUP(A68,'[5]Bill+Ship to Code'!$B$1:$N$3417,13,0) -> DLC_TT
A69: TW002261002B | B69: 美齊富有限公司 | C69: XXXXXXXX | D69: XXXXXXXX | E69: SAC | F69: ID&SAC | G69: SAC Sales | H69: B2B_TT | I69: CAC_TT | N69: I | O69: 無往來 | P69: =COUNTIF([4]BALANCE!$A$1:$A$65536,[4]notouch!$A69) ->  | Q69: =COUNTIF([4]BALANCE!$A$1:$A$65536,[4]notouch!$H69) ->  | R69: =VLOOKUP(A69,'[5]Bill+Ship to Code'!$B$1:$N$3417,13,0) -> B2B_TT
A70: TW002262001B | B70: 太子電業行 | C70: TW002262 | D70: 77685331 | E70: 台中營銷處 | F70: DJB | G70: 台中 | H70: DEALER_TT | I70: DCS_TT | J70: TW002262001B | K70: =VLOOKUP(A70,[3]工作表5!$A$5:$D$535,4,0) -> 510935 | L70: 台中營銷處 | N70: A | P70: =COUNTIF([4]BALANCE!$A$1:$A$65536,[4]notouch!$A70) ->  | Q70: =COUNTIF([4]BALANCE!$A$1:$A$65536,[4]notouch!$H70) ->  | R70: =VLOOKUP(A70,'[5]Bill+Ship to Code'!$B$1:$N$3417,13,0) -> DCS_TT
A71: TW002265001B | B71: 大謄電器有限公司 | C71: TW002265 | D71: 22915458 | E71: 台中營銷處 | F71: DJB | G71: 台中 | H71: DEALER_TT | I71: DLC_TT | J71: TW002265001B | K71: =VLOOKUP(A71,[3]工作表5!$A$5:$D$535,4,0) -> 228531 | L71: 台中營銷處 | N71: A | P71: =COUNTIF([4]BALANCE!$A$1:$A$65536,[4]notouch!$A71) ->  | Q71: =COUNTIF([4]BALANCE!$A$1:$A$65536,[4]notouch!$H71) ->  | R71: =VLOOKUP(A71,'[5]Bill+Ship to Code'!$B$1:$N$3417,13,0) -> DLC_TT
A72: TW002267001B | B72: 東林電器有限公司 | C72: 19531101 | D72: 97482257 | E72: 台中營銷處 | F72: DJB | G72: 台中 | H72: DEALER_TT | I72: DLC_TT | J72: TW002267001B | L72: 台中營銷處 | N72: A | P72: =COUNTIF([4]BALANCE!$A$1:$A$65536,[4]notouch!$A72) ->  | Q72: =COUNTIF([4]BALANCE!$A$1:$A$65536,[4]notouch!$H72) ->  | R72: =VLOOKUP(A72,'[5]Bill+Ship to Code'!$B$1:$N$3417,13,0) -> DLC_TT
A73: TW002268001B | B73: 佳億電器量販 | C73: TW002268 | D73: 77249459 | E73: 台中營銷處 | F73: DJB | G73: 台中 | H73: DEALER_TT | I73: DLC_TT | N73: I | O73: 無往來 | P73: =COUNTIF([4]BALANCE!$A$1:$A$65536,[4]notouch!$A73) ->  | Q73: =COUNTIF([4]BALANCE!$A$1:$A$65536,[4]notouch!$H73) ->  | R73: =VLOOKUP(A73,'[5]Bill+Ship to Code'!$B$1:$N$3417,13,0) -> 
A74: TW002277001B | B74: 家晟電器 | C74: TW002277 | D74: 22401937 | E74: 台中營銷處 | F74: DJB | G74: 台中 | H74: DEALER_TT | I74: DLC_TT | N74: I | O74: 無往來 | P74: =COUNTIF([4]BALANCE!$A$1:$A$65536,[4]notouch!$A74) ->  | Q74: =COUNTIF([4]BALANCE!$A$1:$A$65536,[4]notouch!$H74) ->  | R74: =VLOOKUP(A74,'[5]Bill+Ship to Code'!$B$1:$N$3417,13,0) -> 
A75: TW002288001B | B75: 幸韻電器有限公司 | C75: 19661201 | D75: 89328106 | E75: 桃竹營銷處 | F75: DWB | G75: 桃竹 | H75: DEALER_TT | I75: SPD_TT | J75: TW002288001B | K75: =VLOOKUP(A75,[3]工作表5!$A$5:$D$535,4,0) -> 1412151 | L75: 桃竹營銷處 | N75: A | P75: =COUNTIF([4]BALANCE!$A$1:$A$65536,[4]notouch!$A75) ->  | Q75: =COUNTIF([4]BALANCE!$A$1:$A$65536,[4]notouch!$H75) ->  | R75: =VLOOKUP(A75,'[5]Bill+Ship to Code'!$B$1:$N$3417,13,0) -> SPD_TT
A76: TW002291001B | B76: 金一電器有限公司 | C76: 19570623 | D76: 22137992 | E76: 桃竹營銷處 | F76: DWB | G76: 桃竹 | H76: DEALER_TT | I76: SPD_TT | J76: TW002291001B | K76: =VLOOKUP(A76,[3]工作表5!$A$5:$D$535,4,0) -> 2096013 | L76: 桃竹營銷處 | N76: A | P76: =COUNTIF([4]BALANCE!$A$1:$A$65536,[4]notouch!$A76) ->  | Q76: =COUNTIF([4]BALANCE!$A$1:$A$65536,[4]notouch!$H76) ->  | R76: =VLOOKUP(A76,'[5]Bill+Ship to Code'!$B$1:$N$3417,13,0) -> SPD_TT
A77: TW002295001B | B77: 金昇電器有限公司 | C77: 19691111 | D77: 49651654 | E77: 桃竹營銷處 | F77: DWB | G77: 桃竹 | H77: DEALER_TT | I77: DLC_TT | N77: I | O77: 無往來 | P77: =COUNTIF([4]BALANCE!$A$1:$A$65536,[4]notouch!$A77) ->  | Q77: =COUNTIF([4]BALANCE!$A$1:$A$65536,[4]notouch!$H77) ->  | R77: =VLOOKUP(A77,'[5]Bill+Ship to Code'!$B$1:$N$3417,13,0) -> DLC_TT
A78: TW002305001B | B78: 皇典電器行 | C78: 19680201 | D78: 78544155 | E78: 桃竹營銷處 | F78: DWB | G78: 桃竹 | H78: DEALER_TT | I78: DLC_TT | J78: TW002305001B | K78: =VLOOKUP(A78,[3]工作表5!$A$5:$D$535,4,0) -> 32314 | L78: 桃竹營銷處 | N78: A | O78: =IF(N78="I","無往來",IF(SUM(P78:Q78)>0,"OK","沒有promotion")) ->  | P78: =COUNTIF([4]BALANCE!$A$1:$A$65536,[4]notouch!$A78) ->  | Q78: =COUNTIF([4]BALANCE!$A$1:$A$65536,[4]notouch!$H78) ->  | R78: =VLOOKUP(A78,'[5]Bill+Ship to Code'!$B$1:$N$3417,13,0) -> DLC_TT
A79: TW002315001B | B79: 銓日電器行 | C79: 19670416 | D79: 73800090 | E79: 桃竹營銷處 | F79: DWB | G79: 桃竹 | H79: DEALER_TT | I79: DLC_TT | K79: =VLOOKUP(A79,[3]工作表5!$A$5:$D$535,4,0) -> 22109 | L79: 桃竹營銷處 | N79: A | P79: =COUNTIF([4]BALANCE!$A$1:$A$65536,[4]notouch!$A79) ->  | Q79: =COUNTIF([4]BALANCE!$A$1:$A$65536,[4]notouch!$H79) ->  | R79: =VLOOKUP(A79,'[5]Bill+Ship to Code'!$B$1:$N$3417,13,0) -> DLC_TT
A80: TW002324001B | B80: 兆宏電業行 | C80: 19640130 | D80: 47039765 | E80: 桃竹營銷處 | F80: DWB | G80: 桃竹 | H80: DEALER_TT | I80: DLC_TT | J80: TW002324001B | K80: =VLOOKUP(A80,[3]工作表5!$A$5:$D$535,4,0) -> 184933 | L80: 桃竹營銷處 | N80: A | P80: =COUNTIF([4]BALANCE!$A$1:$A$65536,[4]notouch!$A80) ->  | Q80: =COUNTIF([4]BALANCE!$A$1:$A$65536,[4]notouch!$H80) ->  | R80: =VLOOKUP(A80,'[5]Bill+Ship to Code'!$B$1:$N$3417,13,0) -> DLC_TT
A81: TW002331001B | B81: 同慶電氣行 | C81: 19530412 | D81: 43779752 | E81: 桃竹營銷處 | F81: DWB | G81: 桃竹 | H81: DEALER_TT | I81: DLC_TT | J81: TW002331001B | K81: =VLOOKUP(A81,[3]工作表5!$A$5:$D$535,4,0) -> 64356 | L81: 桃竹營銷處 | N81: A | P81: =COUNTIF([4]BALANCE!$A$1:$A$65536,[4]notouch!$A81) ->  | Q81: =COUNTIF([4]BALANCE!$A$1:$A$65536,[4]notouch!$H81) ->  | R81: =VLOOKUP(A81,'[5]Bill+Ship to Code'!$B$1:$N$3417,13,0) -> DLC_TT
A82: TW002338001B | B82: 福娥電業行 | C82: 19580811 | D82: 13513828 | E82: 空調營銷處 | F82: DWB | G82: 桃竹 | H82: DEALER_TT | I82: DCS_TT | J82: TW002338001B | K82: =VLOOKUP(A82,[3]工作表5!$A$5:$D$535,4,0) -> 338168 | L82: AC part | N82: A | P82: =COUNTIF([4]BALANCE!$A$1:$A$65536,[4]notouch!$A82) ->  | Q82: =COUNTIF([4]BALANCE!$A$1:$A$65536,[4]notouch!$H82) ->  | R82: =VLOOKUP(A82,'[5]Bill+Ship to Code'!$B$1:$N$3417,13,0) -> DCS_TT
A83: TW002343001B | B83: 名富電器行 | C83: 19500615 | D83: 45162367 | E83: 桃竹營銷處 | F83: DWB | G83: 桃竹 | H83: DEALER_TT | I83: DCS_TT | J83: TW002343001B | K83: =VLOOKUP(A83,[3]工作表5!$A$5:$D$535,4,0) -> 247177 | L83: 桃竹營銷處 | N83: A | P83: =COUNTIF([4]BALANCE!$A$1:$A$65536,[4]notouch!$A83) ->  | Q83: =COUNTIF([4]BALANCE!$A$1:$A$65536,[4]notouch!$H83) ->  | R83: =VLOOKUP(A83,'[5]Bill+Ship to Code'!$B$1:$N$3417,13,0) -> DCS_TT
A84: TW002347001B | B84: 得興電器有限公司 | C84: 19690802 | D84: 89730711 | E84: 桃竹營銷處 | F84: DWB | G84: 桃竹 | H84: DEALER_TT | I84: DCS_TT | J84: TW002347001B | K84: =VLOOKUP(A84,[3]工作表5!$A$5:$D$535,4,0) -> 3252119 | L84: 桃竹營銷處 | N84: A | P84: =COUNTIF([4]BALANCE!$A$1:$A$65536,[4]notouch!$A84) ->  | Q84: =COUNTIF([4]BALANCE!$A$1:$A$65536,[4]notouch!$H84) ->  | R84: =VLOOKUP(A84,'[5]Bill+Ship to Code'!$B$1:$N$3417,13,0) -> DCS_TT
A85: TW002349001B | B85: 金長益電器有限公司 | C85: 19640714 | D85: 16908253 | E85: 桃竹營銷處 | F85: DWB | G85: 桃竹 | H85: DEALER_TT | I85: DLC_TT | J85: TW002349001B | K85: =VLOOKUP(A85,[3]工作表5!$A$5:$D$535,4,0) -> 942380 | L85: 桃竹營銷處 | N85: A | P85: =COUNTIF([4]BALANCE!$A$1:$A$65536,[4]notouch!$A85) ->  | Q85: =COUNTIF([4]BALANCE!$A$1:$A$65536,[4]notouch!$H85) ->  | R85: =VLOOKUP(A85,'[5]Bill+Ship to Code'!$B$1:$N$3417,13,0) -> DLC_TT
A86: TW002351001B | B86: 雅光有限公司 | C86: 19590805 | D86: 01189353 | E86: 台北營銷處 | F86: TPH | G86: 台北 | H86: DEALER_TT | I86: SPD_TT | J86: TW002351001B | K86: =VLOOKUP(A86,[3]工作表5!$A$5:$D$535,4,0) -> 5836379 | L86: 台北營銷處 | N86: A | P86: =COUNTIF([4]BALANCE!$A$1:$A$65536,[4]notouch!$A86) ->  | Q86: =COUNTIF([4]BALANCE!$A$1:$A$65536,[4]notouch!$H86) ->  | R86: =VLOOKUP(A86,'[5]Bill+Ship to Code'!$B$1:$N$3417,13,0) -> SPD_TT
A87: TW002351002B | B87: 雅光有限公司 | C87: XXXXXXXX | D87: XXXXXXXX | E87: SAC | F87: ID&SAC | G87: SAC Sales | H87: B2B_TT | I87: CAC_TT | N87: I | O87: 無往來 | P87: =COUNTIF([4]BALANCE!$A$1:$A$65536,[4]notouch!$A87) ->  | Q87: =COUNTIF([4]BALANCE!$A$1:$A$65536,[4]notouch!$H87) ->  | R87: =VLOOKUP(A87,'[5]Bill+Ship to Code'!$B$1:$N$3417,13,0) -> B2B_TT
A88: TW002352001B | B88: 佳禾貿易有限公司 | C88: 19501112 | D88: 97310065 | E88: 台北營銷處 | F88: TPH | G88: 台北 | H88: DEALER_TT | I88: DLC_TT | J88: TW002352001B | K88: =VLOOKUP(A88,[3]工作表5!$A$5:$D$535,4,0) -> 0 | L88: 台北營銷處 | N88: A | P88: =COUNTIF([4]BALANCE!$A$1:$A$65536,[4]notouch!$A88) ->  | Q88: =COUNTIF([4]BALANCE!$A$1:$A$65536,[4]notouch!$H88) ->  | R88: =VLOOKUP(A88,'[5]Bill+Ship to Code'!$B$1:$N$3417,13,0) -> DLC_TT
A89: TW002359001B | B89: 宏仁電器行 | C89: 19690518 | D89: 92883893 | E89: 台北營銷處 | F89: TPH | G89: 台北 | H89: DEALER_TT | I89: DLC_TT | J89: TW002359001B | L89: 台北營銷處 | N89: A | P89: =COUNTIF([4]BALANCE!$A$1:$A$65536,[4]notouch!$A89) ->  | Q89: =COUNTIF([4]BALANCE!$A$1:$A$65536,[4]notouch!$H89) ->  | R89: =VLOOKUP(A89,'[5]Bill+Ship to Code'!$B$1:$N$3417,13,0) -> 
A90: TW002363001B | B90: 吳頡興電器企業有限公司 | C90: 19551115 | D90: 22905634 | E90: 台北營銷處 | F90: TPH | G90: 台北 | H90: DEALER_TT | I90: DLC_TT | J90: TW002363001B | K90: =VLOOKUP(A90,[3]工作表5!$A$5:$D$535,4,0) -> 96089 | L90: 台北營銷處 | N90: A | P90: =COUNTIF([4]BALANCE!$A$1:$A$65536,[4]notouch!$A90) ->  | Q90: =COUNTIF([4]BALANCE!$A$1:$A$65536,[4]notouch!$H90) ->  | R90: =VLOOKUP(A90,'[5]Bill+Ship to Code'!$B$1:$N$3417,13,0) -> DLC_TT
A91: TW002368001B | B91: 健融電器行 | C91: 19590810 | D91: 02153403 | E91: 台北營銷處 | F91: TPH | G91: 台北 | H91: DEALER_TT | I91: DLC_TT | J91: TW002368001B | K91: =VLOOKUP(A91,[3]工作表5!$A$5:$D$535,4,0) -> 0 | L91: 台北營銷處 | N91: A | P91: =COUNTIF([4]BALANCE!$A$1:$A$65536,[4]notouch!$A91) ->  | Q91: =COUNTIF([4]BALANCE!$A$1:$A$65536,[4]notouch!$H91) ->  | R91: =VLOOKUP(A91,'[5]Bill+Ship to Code'!$B$1:$N$3417,13,0) -> DLC_TT
A92: TW002372001B | B92: 承德國際有限公司 | C92: 19661020 | D92: 89960924 | E92: 台北營銷處 | F92: TPH | G92: 台北 | H92: DEALER_TT | I92: DCS_TT | J92: TW002372001B | K92: =VLOOKUP(A92,[3]工作表5!$A$5:$D$535,4,0) -> 1515333 | L92: 台北營銷處 | N92: A | P92: =COUNTIF([4]BALANCE!$A$1:$A$65536,[4]notouch!$A92) ->  | Q92: =COUNTIF([4]BALANCE!$A$1:$A$65536,[4]notouch!$H92) ->  | R92: =VLOOKUP(A92,'[5]Bill+Ship to Code'!$B$1:$N$3417,13,0) -> DCS_TT
A93: TW002375001B | B93: 建而福電器有限公司 | C93: 19470824 | D93: 33842192 | E93: 台北營銷處 | F93: TPH | G93: 台北 | H93: DEALER_TT | I93: DLC_TT | J93: TW002375001B | L93: 台北營銷處 | N93: A | P93: =COUNTIF([4]BALANCE!$A$1:$A$65536,[4]notouch!$A93) ->  | Q93: =COUNTIF([4]BALANCE!$A$1:$A$65536,[4]notouch!$H93) ->  | R93: =VLOOKUP(A93,'[5]Bill+Ship to Code'!$B$1:$N$3417,13,0) -> 
A94: TW002376001B | B94: 新弘貿易有限公司 | C94: 19590115 | D94: 23004274 | E94: 台北營銷處 | F94: TPH | G94: 台北 | H94: DEALER_TT | I94: SPD_TT | J94: TW002376001B | K94: =VLOOKUP(A94,[3]工作表5!$A$5:$D$535,4,0) -> 44039 | L94: 台北營銷處 | N94: A | P94: =COUNTIF([4]BALANCE!$A$1:$A$65536,[4]notouch!$A94) ->  | Q94: =COUNTIF([4]BALANCE!$A$1:$A$65536,[4]notouch!$H94) ->  | R94: =VLOOKUP(A94,'[5]Bill+Ship to Code'!$B$1:$N$3417,13,0) -> SPD_TT
A95: TW002378001B | B95: 上順電器有限公司 | C95: 19550916 | D95: 23815317 | E95: 台北營銷處 | F95: TPH | G95: 台北 | H95: DEALER_TT | I95: DLC_TT | J95: TW002378001B | K95: =VLOOKUP(A95,[3]工作表5!$A$5:$D$535,4,0) -> 18614 | L95: 台北營銷處 | N95: A | P95: =COUNTIF([4]BALANCE!$A$1:$A$65536,[4]notouch!$A95) ->  | Q95: =COUNTIF([4]BALANCE!$A$1:$A$65536,[4]notouch!$H95) ->  | R95: =VLOOKUP(A95,'[5]Bill+Ship to Code'!$B$1:$N$3417,13,0) -> DLC_TT
A96: TW002381001B | B96: 萬豐視聽電業有限公司 | C96: 19620320 | D96: 22592990 | E96: 台北營銷處 | F96: TPH | G96: 台北 | H96: DEALER_TT | I96: DCS_TT | J96: TW002381001B | K96: =VLOOKUP(A96,[3]工作表5!$A$5:$D$535,4,0) -> 370426 | L96: 台北營銷處 | N96: A | P96: =COUNTIF([4]BALANCE!$A$1:$A$65536,[4]notouch!$A96) ->  | Q96: =COUNTIF([4]BALANCE!$A$1:$A$65536,[4]notouch!$H96) ->  | R96: =VLOOKUP(A96,'[5]Bill+Ship to Code'!$B$1:$N$3417,13,0) -> DCS_TT
A97: TW002382001B | B97: 訊立電器有限公司 | C97: 19560601 | D97: 12710694 | E97: 台北營銷處 | F97: TPH | G97: 台北 | H97: DEALER_TT | I97: DLC_TT | J97: TW002382001B | L97: 台北營銷處 | N97: A | P97: =COUNTIF([4]BALANCE!$A$1:$A$65536,[4]notouch!$A97) ->  | Q97: =COUNTIF([4]BALANCE!$A$1:$A$65536,[4]notouch!$H97) ->  | R97: =VLOOKUP(A97,'[5]Bill+Ship to Code'!$B$1:$N$3417,13,0) -> 
A98: TW002387001B | B98: 鎮吉實業 | C98: 19651125 | D98: 70662642 | E98: 台北營銷處 | F98: TPH | G98: 台北 | H98: DEALER_TT | I98: DCS_TT | K98: =VLOOKUP(A98,[3]工作表5!$A$5:$D$535,4,0) -> 111131 | N98: A | O98: =IF(N98="I","無往來",IF(SUM(P98:Q98)>0,"OK","沒有promotion")) ->  | P98: =COUNTIF([4]BALANCE!$A$1:$A$65536,[4]notouch!$A98) ->  | Q98: =COUNTIF([4]BALANCE!$A$1:$A$65536,[4]notouch!$H98) ->  | R98: =VLOOKUP(A98,'[5]Bill+Ship to Code'!$B$1:$N$3417,13,0) -> DCS_TT
A99: TW002391001B | B99: 益大家電事業有限公司 | C99: 24239141 | D99: 22573614 | E99: 台北營銷處 | F99: TPH | G99: 台北 | H99: DEALER_TT | I99: DLC_TT | J99: TW002391001B | K99: =VLOOKUP(A99,[3]工作表5!$A$5:$D$535,4,0) -> 23337 | L99: 台北營銷處 | N99: A | P99: =COUNTIF([4]BALANCE!$A$1:$A$65536,[4]notouch!$A99) ->  | Q99: =COUNTIF([4]BALANCE!$A$1:$A$65536,[4]notouch!$H99) ->  | R99: =VLOOKUP(A99,'[5]Bill+Ship to Code'!$B$1:$N$3417,13,0) -> DLC_TT
A100: TW002398001B | B100: 彥昌電器行 | C100: 26416154 | D100: 02300192 | E100: 台北營銷處 | F100: TPH | G100: 台北 | H100: DEALER_TT | I100: DLC_TT | J100: TW002398001B | L100: 台北營銷處 | N100: A | P100: =COUNTIF([4]BALANCE!$A$1:$A$65536,[4]notouch!$A100) ->  | Q100: =COUNTIF([4]BALANCE!$A$1:$A$65536,[4]notouch!$H100) ->  | R100: =VLOOKUP(A100,'[5]Bill+Ship to Code'!$B$1:$N$3417,13,0) -> 
A101: TW002400001B | B101: 金亞實業有限公司 | C101: 26473088 | D101: 89230504 | E101: 台北營銷處 | F101: TPH | G101: 台北 | H101: DEALER_TT | I101: SPD_TT | J101: TW002400001B | K101: =VLOOKUP(A101,[3]工作表5!$A$5:$D$535,4,0) -> 6473436 | L101: 台北營銷處 | N101: A | P101: =COUNTIF([4]BALANCE!$A$1:$A$65536,[4]notouch!$A101) ->  | Q101: =COUNTIF([4]BALANCE!$A$1:$A$65536,[4]notouch!$H101) ->  | R101: =VLOOKUP(A101,'[5]Bill+Ship to Code'!$B$1:$N$3417,13,0) -> SPD_TT
A102: TW002409001B | B102: 太空電器行 | C102: 19551106 | D102: 77300011 | E102: 高屏營銷處 | F102: GWB | G102: 高屏 | H102: DEALER_TT | I102: DLC_TT | J102: TW002409001B | L102: 高屏營銷處 | N102: A | P102: =COUNTIF([4]BALANCE!$A$1:$A$65536,[4]notouch!$A102) ->  | Q102: =COUNTIF([4]BALANCE!$A$1:$A$65536,[4]notouch!$H102) ->  | R102: =VLOOKUP(A102,'[5]Bill+Ship to Code'!$B$1:$N$3417,13,0) -> 
A103: TW002409002B | B103: 太空電器行 | C103: XXXXXXXX | D103: XXXXXXXX | E103: SAC | F103: ID&SAC | G103: SAC Sales | H103: B2B_TT | I103: CAC_TT | N103: I | O103: 無往來 | P103: =COUNTIF([4]BALANCE!$A$1:$A$65536,[4]notouch!$A103) ->  | Q103: =COUNTIF([4]BALANCE!$A$1:$A$65536,[4]notouch!$H103) ->  | R103: =VLOOKUP(A103,'[5]Bill+Ship to Code'!$B$1:$N$3417,13,0) -> B2B_TT
A104: TW002410001B | B104: 全新電器有限公司 | C104: 19510722 | D104: 20760963 | E104: 台北營銷處 | F104: TPH | G104: 台北 | H104: DEALER_TT | I104: DLC_TT | N104: A | P104: =COUNTIF([4]BALANCE!$A$1:$A$65536,[4]notouch!$A104) ->  | Q104: =COUNTIF([4]BALANCE!$A$1:$A$65536,[4]notouch!$H104) ->  | R104: =VLOOKUP(A104,'[5]Bill+Ship to Code'!$B$1:$N$3417,13,0) -> 
A105: TW002411001B | B105: 金門電器行 | C105: 19530605 | D105: 77265149 | E105: 高屏營銷處 | F105: GWB | G105: 高屏 | H105: DEALER_TT | I105: DLC_TT | J105: TW002411001B | K105: =VLOOKUP(A105,[3]工作表5!$A$5:$D$535,4,0) -> 172028 | L105: 高屏營銷處 | N105: A | P105: =COUNTIF([4]BALANCE!$A$1:$A$65536,[4]notouch!$A105) ->  | Q105: =COUNTIF([4]BALANCE!$A$1:$A$65536,[4]notouch!$H105) ->  | R105: =VLOOKUP(A105,'[5]Bill+Ship to Code'!$B$1:$N$3417,13,0) -> DLC_TT
A106: TW002416001B | B106: 國寶電業行 | C106: 19680525 | D106: 12180750 | E106: 台北營銷處 | F106: TPH | G106: 台北 | H106: DEALER_TT | I106: DLC_TT | J106: TW002416001B | L106: 台北營銷處 | N106: A | P106: =COUNTIF([4]BALANCE!$A$1:$A$65536,[4]notouch!$A106) ->  | Q106: =COUNTIF([4]BALANCE!$A$1:$A$65536,[4]notouch!$H106) ->  | R106: =VLOOKUP(A106,'[5]Bill+Ship to Code'!$B$1:$N$3417,13,0) -> 
A107: TW002420001B | B107: 高登電器有限公司 | C107: 19551029 | D107: 22629645 | E107: 台北營銷處 | F107: TPH | G107: 台北 | H107: DEALER_TT | I107: DLC_TT | J107: TW002420001B | L107: 台北營銷處 | N107: A | P107: =COUNTIF([4]BALANCE!$A$1:$A$65536,[4]notouch!$A107) ->  | Q107: =COUNTIF([4]BALANCE!$A$1:$A$65536,[4]notouch!$H107) ->  | R107: =VLOOKUP(A107,'[5]Bill+Ship to Code'!$B$1:$N$3417,13,0) -> DLC_TT
A108: TW002427001B | B108: 國豐電業商行 | C108: 19551014 | D108: 94836355 | E108: 台北營銷處 | F108: TPH | G108: 台北 | H108: DEALER_TT | I108: DLC_TT | J108: TW002427001B | L108: 台北營銷處 | N108: A | P108: =COUNTIF([4]BALANCE!$A$1:$A$65536,[4]notouch!$A108) ->  | Q108: =COUNTIF([4]BALANCE!$A$1:$A$65536,[4]notouch!$H108) ->  | R108: =VLOOKUP(A108,'[5]Bill+Ship to Code'!$B$1:$N$3417,13,0) -> 
A109: TW002428001B | B109: 精實電器行 | C109: 19740715 | D109: 64803602 | E109: 台北營銷處 | F109: TPH | G109: 台北 | H109: DEALER_TT | I109: DLC_TT | J109: TW002428001B | K109: =VLOOKUP(A109,[3]工作表5!$A$5:$D$535,4,0) -> 80785 | L109: 台北營銷處 | N109: A | P109: =COUNTIF([4]BALANCE!$A$1:$A$65536,[4]notouch!$A109) ->  | Q109: =COUNTIF([4]BALANCE!$A$1:$A$65536,[4]notouch!$H109) ->  | R109: =VLOOKUP(A109,'[5]Bill+Ship to Code'!$B$1:$N$3417,13,0) -> DLC_TT
A110: TW002431001B | B110: 一世代電氣行 | C110: 19620315 | D110: 18063076 | E110: 台北營銷處 | F110: TPH | G110: 台北 | H110: DEALER_TT | I110: DCS_TT | J110: TW002431001B | K110: =VLOOKUP(A110,[3]工作表5!$A$5:$D$535,4,0) -> 393724 | L110: 台北營銷處 | N110: A | P110: =COUNTIF([4]BALANCE!$A$1:$A$65536,[4]notouch!$A110) ->  | Q110: =COUNTIF([4]BALANCE!$A$1:$A$65536,[4]notouch!$H110) ->  | R110: =VLOOKUP(A110,'[5]Bill+Ship to Code'!$B$1:$N$3417,13,0) -> DCS_TT
A111: TW002434001B | B111: 上將電業社 | C111: 19550423 | D111: 92933057 | E111: 台北營銷處 | F111: TPH | G111: 台北 | H111: DEALER_TT | I111: DLC_TT | J111: TW002434001B | K111: =VLOOKUP(A111,[3]工作表5!$A$5:$D$535,4,0) -> 43704 | L111: 台北營銷處 | N111: A | P111: =COUNTIF([4]BALANCE!$A$1:$A$65536,[4]notouch!$A111) ->  | Q111: =COUNTIF([4]BALANCE!$A$1:$A$65536,[4]notouch!$H111) ->  | R111: =VLOOKUP(A111,'[5]Bill+Ship to Code'!$B$1:$N$3417,13,0) -> DLC_TT
A112: TW002441001B | B112: 上揚電器行 | C112: 19660523 | D112: 02418034 | E112: 台北營銷處 | F112: TPH | G112: 台北 | H112: DEALER_TT | I112: DLC_TT | J112: TW002441001B | L112: 台北營銷處 | N112: A | P112: =COUNTIF([4]BALANCE!$A$1:$A$65536,[4]notouch!$A112) ->  | Q112: =COUNTIF([4]BALANCE!$A$1:$A$65536,[4]notouch!$H112) ->  | R112: =VLOOKUP(A112,'[5]Bill+Ship to Code'!$B$1:$N$3417,13,0) -> DLC_TT
A113: TW002444001B | B113: 台灣電器專賣店 | C113: 19700805 | D113: 98077164 | E113: 台北營銷處 | F113: TPH | G113: 台北 | H113: DEALER_TT | I113: DCS_TT | J113: TW002444001B | K113: =VLOOKUP(A113,[3]工作表5!$A$5:$D$535,4,0) -> 295183 | L113: 台北營銷處 | N113: A | P113: =COUNTIF([4]BALANCE!$A$1:$A$65536,[4]notouch!$A113) ->  | Q113: =COUNTIF([4]BALANCE!$A$1:$A$65536,[4]notouch!$H113) ->  | R113: =VLOOKUP(A113,'[5]Bill+Ship to Code'!$B$1:$N$3417,13,0) -> DCS_TT
A114: TW002448001B | B114: 宜勇電器 | C114: 19631117 | D114: 66256925 | E114: 台北營銷處 | F114: TPH | G114: 台北 | H114: DEALER_TT | I114: DLC_TT | N114: I | O114: 無往來 | P114: =COUNTIF([4]BALANCE!$A$1:$A$65536,[4]notouch!$A114) ->  | Q114: =COUNTIF([4]BALANCE!$A$1:$A$65536,[4]notouch!$H114) ->  | R114: =VLOOKUP(A114,'[5]Bill+Ship to Code'!$B$1:$N$3417,13,0) -> 
A115: TW002450001B | B115: 日大電業行 | C115: 19770914 | D115: 40523763 | E115: 台北營銷處 | F115: TPH | G115: 台北 | H115: DEALER_TT | I115: DLC_TT | J115: TW002450001B | K115: =VLOOKUP(A115,[3]工作表5!$A$5:$D$535,4,0) -> 217566 | L115: 台北營銷處 | N115: A | P115: =COUNTIF([4]BALANCE!$A$1:$A$65536,[4]notouch!$A115) ->  | Q115: =COUNTIF([4]BALANCE!$A$1:$A$65536,[4]notouch!$H115) ->  | R115: =VLOOKUP(A115,'[5]Bill+Ship to Code'!$B$1:$N$3417,13,0) -> DLC_TT
A116: TW002456001B | B116: 燦坤實業股份有限公司 | C116: 69568009 | D116: 69568009 | E116: MMCS-燦坤 | F116: MMCS | G116: MMCS | H116: MMCS_TK3C | I116: CSC_TT | J116: TW002456001B | K116: =VLOOKUP(A116,[3]工作表5!$A$5:$D$535,4,0) -> 307106880 | L116: 燦坤 | N116: A | P116: =COUNTIF([4]BALANCE!$A$1:$A$65536,[4]notouch!$A116) ->  | Q116: =COUNTIF([4]BALANCE!$A$1:$A$65536,[4]notouch!$H116) ->  | R116: =VLOOKUP(A116,'[5]Bill+Ship to Code'!$B$1:$N$3417,13,0) -> 
A117: TW002501001B | B117: 家福股份有限公司總公司 | C117: 22662550 | D117: 22662550 | E117: MMCS-家福 | F117: MMCS | G117: MMCS | H117: MMCS_C4 | I117: MMC_TT | J117: TW002501001B | K117: =VLOOKUP(A117,[3]工作表5!$A$5:$D$535,4,0) -> 210051477 | L117: 家樂福 | N117: A | P117: =COUNTIF([4]BALANCE!$A$1:$A$65536,[4]notouch!$A117) ->  | Q117: =COUNTIF([4]BALANCE!$A$1:$A$65536,[4]notouch!$H117) ->  | R117: =VLOOKUP(A117,'[5]Bill+Ship to Code'!$B$1:$N$3417,13,0) -> MMC_TT
A118: TW002514001B | B118: 今漢電器有限公司 | C118: 19591213 | D118: 22117460 | E118: 台北營銷處 | F118: TPH | G118: 台北 | H118: DEALER_TT | I118: SPD_TT | J118: TW002514001B | K118: =VLOOKUP(A118,[3]工作表5!$A$5:$D$535,4,0) -> 2919485 | L118: 台北營銷處 | N118: A | P118: =COUNTIF([4]BALANCE!$A$1:$A$65536,[4]notouch!$A118) ->  | Q118: =COUNTIF([4]BALANCE!$A$1:$A$65536,[4]notouch!$H118) ->  | R118: =VLOOKUP(A118,'[5]Bill+Ship to Code'!$B$1:$N$3417,13,0) -> SPD_TT
A119: TW002516001B | B119: 順寶電器 | C119: 19520904 | D119: 34159393 | E119: 台北營銷處 | F119: TPH | G119: 台北 | H119: DEALER_TT | I119: DLC_TT | N119: I | O119: 無往來 | P119: =COUNTIF([4]BALANCE!$A$1:$A$65536,[4]notouch!$A119) ->  | Q119: =COUNTIF([4]BALANCE!$A$1:$A$65536,[4]notouch!$H119) ->  | R119: =VLOOKUP(A119,'[5]Bill+Ship to Code'!$B$1:$N$3417,13,0) -> 
A120: TW002525001B | B120: 大潤發流通事業股份有限公司 | C120: 97165560 | D120: 97165560 | E120: MMCS-大潤發 | F120: MMCS | G120: MMCS | H120: MMCS_RT | I120: MMC_TT | J120: TW002525001B | K120: =VLOOKUP(A120,[3]工作表5!$A$5:$D$535,4,0) -> 109443346 | L120: 大潤發 | N120: A | P120: =COUNTIF([4]BALANCE!$A$1:$A$65536,[4]notouch!$A120) ->  | Q120: =COUNTIF([4]BALANCE!$A$1:$A$65536,[4]notouch!$H120) ->  | R120: =VLOOKUP(A120,'[5]Bill+Ship to Code'!$B$1:$N$3417,13,0) -> MMC_TT
A121: TW002529001B | B121: 遠百企業股份有限公司 | C121: 05714195 | D121: 05714195 | E121: MMCS-愛買 | F121: MMCS | G121: MMCS | H121: MMCS_OTHERS | I121: MMC_TT | J121: TW002529001B | K121: =VLOOKUP(A121,[3]工作表5!$A$5:$D$535,4,0) -> 25963497 | L121: 愛買 | N121: A | P121: =COUNTIF([4]BALANCE!$A$1:$A$65536,[4]notouch!$A121) ->  | Q121: =COUNTIF([4]BALANCE!$A$1:$A$65536,[4]notouch!$H121) ->  | R121: =VLOOKUP(A121,'[5]Bill+Ship to Code'!$B$1:$N$3417,13,0) -> MMC_TT
A122: TW002535001B | B122: 瑞豪電器行 | C122: 19711205 | D122: 67899377 | E122: 台北營銷處 | F122: TPH | G122: 台北 | H122: DEALER_TT | I122: DLC_TT | J122: TW002535001B | K122: =VLOOKUP(A122,[3]工作表5!$A$5:$D$535,4,0) -> 47278 | L122: 台北營銷處 | N122: A | P122: =COUNTIF([4]BALANCE!$A$1:$A$65536,[4]notouch!$A122) ->  | Q122: =COUNTIF([4]BALANCE!$A$1:$A$65536,[4]notouch!$H122) ->  | R122: =VLOOKUP(A122,'[5]Bill+Ship to Code'!$B$1:$N$3417,13,0) -> DLC_TT
A123: TW002542001B | B123: 佳麗寶股份有限公司 | C123: 19470128 | D123: 04897247 | E123: 台北營銷處 | F123: TPH | G123: 台北 | H123: DEALER_TT | I123: DCS_TT | N123: I | O123: 無往來 | P123: =COUNTIF([4]BALANCE!$A$1:$A$65536,[4]notouch!$A123) ->  | Q123: =COUNTIF([4]BALANCE!$A$1:$A$65536,[4]notouch!$H123) ->  | R123: =VLOOKUP(A123,'[5]Bill+Ship to Code'!$B$1:$N$3417,13,0) -> 
A124: TW002557001B | B124: 全民電子音響專賣店 | C124: TW002557 | D124: 77593945 | E124: 台中營銷處 | F124: DJB | G124: 台中 | H124: DEALER_TT | I124: SPD_TT | J124: TW002557001B | K124: =VLOOKUP(A124,[3]工作表5!$A$5:$D$535,4,0) -> 1337089 | L124: 台中營銷處 | N124: A | P124: =COUNTIF([4]BALANCE!$A$1:$A$65536,[4]notouch!$A124) ->  | Q124: =COUNTIF([4]BALANCE!$A$1:$A$65536,[4]notouch!$H124) ->  | R124: =VLOOKUP(A124,'[5]Bill+Ship to Code'!$B$1:$N$3417,13,0) -> SPD_TT
A125: TW002572001B | B125: 新傑電器有限公司 | C125: 19540819 | D125: 12749635 | E125: 高屏營銷處 | F125: GWB | G125: 高屏 | H125: DEALER_TT | I125: SPD_TT | J125: TW002572001B | K125: =VLOOKUP(A125,[3]工作表5!$A$5:$D$535,4,0) -> 954692 | L125: 高屏營銷處 | N125: A | P125: =COUNTIF([4]BALANCE!$A$1:$A$65536,[4]notouch!$A125) ->  | Q125: =COUNTIF([4]BALANCE!$A$1:$A$65536,[4]notouch!$H125) ->  | R125: =VLOOKUP(A125,'[5]Bill+Ship to Code'!$B$1:$N$3417,13,0) -> SPD_TT
A126: TW002575001B | B126: 東欣電器商行 | C126: 19510527 | D126: 08001827 | E126: 高屏營銷處 | F126: GWB | G126: 高屏 | H126: DEALER_TT | I126: DLC_TT | J126: TW002575001B | K126: =VLOOKUP(A126,[3]工作表5!$A$5:$D$535,4,0) -> 293072 | L126: 高屏營銷處 | N126: A | P126: =COUNTIF([4]BALANCE!$A$1:$A$65536,[4]notouch!$A126) ->  | Q126: =COUNTIF([4]BALANCE!$A$1:$A$65536,[4]notouch!$H126) ->  | R126: =VLOOKUP(A126,'[5]Bill+Ship to Code'!$B$1:$N$3417,13,0) -> DLC_TT
A127: TW002630001B | B127: 錦穗實業社 | C127: 19571107 | D127: 73713103 | E127: 嘉南營銷處 | F127: DNB | G127: 嘉南 | H127: DEALER_TT | I127: DLC_TT | J127: TW002630001B | K127: =VLOOKUP(A127,[3]工作表5!$A$5:$D$535,4,0) -> 25169 | L127: 嘉南營銷處 | N127: A | P127: =COUNTIF([4]BALANCE!$A$1:$A$65536,[4]notouch!$A127) ->  | Q127: =COUNTIF([4]BALANCE!$A$1:$A$65536,[4]notouch!$H127) ->  | R127: =VLOOKUP(A127,'[5]Bill+Ship to Code'!$B$1:$N$3417,13,0) -> DLC_TT
A128: TW002652001B | B128: 第二電器音響有限公司 | C128: 19600410 | D128: 33837276 | E128: 台北營銷處 | F128: TPH | G128: 台北 | H128: DEALER_TT | I128: DCS_TT | J128: TW002652001B | K128: =VLOOKUP(A128,[3]工作表5!$A$5:$D$535,4,0) -> 802092 | L128: 台北營銷處 | N128: A | P128: =COUNTIF([4]BALANCE!$A$1:$A$65536,[4]notouch!$A128) ->  | Q128: =COUNTIF([4]BALANCE!$A$1:$A$65536,[4]notouch!$H128) ->  | R128: =VLOOKUP(A128,'[5]Bill+Ship to Code'!$B$1:$N$3417,13,0) -> DCS_TT
A129: TW002666001B | B129: 世和電器行 | C129: 19661031 | D129: 87705862 | E129: 桃竹營銷處 | F129: DWB | G129: 桃竹 | H129: DEALER_TT | I129: DLC_TT | N129: A | P129: =COUNTIF([4]BALANCE!$A$1:$A$65536,[4]notouch!$A129) ->  | Q129: =COUNTIF([4]BALANCE!$A$1:$A$65536,[4]notouch!$H129) ->  | R129: =VLOOKUP(A129,'[5]Bill+Ship to Code'!$B$1:$N$3417,13,0) -> DLC_TT
A130: TW002666002B | B130: 世和電器行 | C130: 19661031 | D130: 87705862 | E130: ETC | F130: ETC | G130: ETC | H130: ETC | I130: ETC_TT | J130: TW002666002B | L130: ETC | N130: A | P130: =COUNTIF([4]BALANCE!$A$1:$A$65536,[4]notouch!$A130) ->  | Q130: =COUNTIF([4]BALANCE!$A$1:$A$65536,[4]notouch!$H130) ->  | R130: =VLOOKUP(A130,'[5]Bill+Ship to Code'!$B$1:$N$3417,13,0) -> ETC_TT
A131: TW002674001B | B131: 明聳企業有限公司 | C131: XXXXXXXX | D131: XXXXXXXX | E131: SAC | F131: ID&SAC | G131: SAC Sales | H131: B2B_TT | I131: CAC_TT | N131: I | O131: 無往來 | P131: =COUNTIF([4]BALANCE!$A$1:$A$65536,[4]notouch!$A131) ->  | Q131: =COUNTIF([4]BALANCE!$A$1:$A$65536,[4]notouch!$H131) ->  | R131: =VLOOKUP(A131,'[5]Bill+Ship to Code'!$B$1:$N$3417,13,0) -> B2B_TT
A132: TW002675001B | B132: 利聲家電有限公司 | C132: 19470925 | D132: 86101317 | E132: 嘉南營銷處 | F132: DNB | G132: 嘉南 | H132: DEALER_TT | I132: DLC_TT | J132: TW002675001B | K132: =VLOOKUP(A132,[3]工作表5!$A$5:$D$535,4,0) -> 108478 | L132: 嘉南營銷處 | N132: A | P132: =COUNTIF([4]BALANCE!$A$1:$A$65536,[4]notouch!$A132) ->  | Q132: =COUNTIF([4]BALANCE!$A$1:$A$65536,[4]notouch!$H132) ->  | R132: =VLOOKUP(A132,'[5]Bill+Ship to Code'!$B$1:$N$3417,13,0) -> DLC_TT
A133: TW002677001B | B133: 銘山電器 | C133: 23393762 | D133: 23328168 | E133: 台中營銷處 | F133: DJB | G133: 台中 | H133: DEALER_TT | I133: DLC_TT | N133: I | O133: 無往來 | P133: =COUNTIF([4]BALANCE!$A$1:$A$65536,[4]notouch!$A133) ->  | Q133: =COUNTIF([4]BALANCE!$A$1:$A$65536,[4]notouch!$H133) ->  | R133: =VLOOKUP(A133,'[5]Bill+Ship to Code'!$B$1:$N$3417,13,0) -> 
A134: TW002678001B | B134: 昇泰電業行 | C134: TW002678 | D134: 05830687 | E134: 台中營銷處 | F134: DJB | G134: 台中 | H134: DEALER_TT | I134: DLC_TT | N134: I | O134: 無往來 | P134: =COUNTIF([4]BALANCE!$A$1:$A$65536,[4]notouch!$A134) ->  | Q134: =COUNTIF([4]BALANCE!$A$1:$A$65536,[4]notouch!$H134) ->  | R134: =VLOOKUP(A134,'[5]Bill+Ship to Code'!$B$1:$N$3417,13,0) -> 
A135: TW002685001B | B135: 威揚電器行 | C135: 19690225 | D135: 17276277 | E135: 台北營銷處 | F135: TPH | G135: 台北 | H135: DEALER_TT | I135: SPD_TT | J135: TW002685001B | K135: =VLOOKUP(A135,[3]工作表5!$A$5:$D$535,4,0) -> 94130 | L135: 台北營銷處 | N135: A | P135: =COUNTIF([4]BALANCE!$A$1:$A$65536,[4]notouch!$A135) ->  | Q135: =COUNTIF([4]BALANCE!$A$1:$A$65536,[4]notouch!$H135) ->  | R135: =VLOOKUP(A135,'[5]Bill+Ship to Code'!$B$1:$N$3417,13,0) -> SPD_TT
A136: TW002710001B | B136: 建利電子音響 | C136: 19580810 | D136: 18324380 | E136: 台中營銷處 | F136: DJB | G136: 台中 | H136: DEALER_TT | I136: DLC_TT | N136: A | P136: =COUNTIF([4]BALANCE!$A$1:$A$65536,[4]notouch!$A136) ->  | Q136: =COUNTIF([4]BALANCE!$A$1:$A$65536,[4]notouch!$H136) ->  | R136: =VLOOKUP(A136,'[5]Bill+Ship to Code'!$B$1:$N$3417,13,0) -> 
A137: TW002718001B | B137: 全國電子股份有限公司 | C137: 22006252 | D137: 22006252 | E137: MMCS-全國 | F137: MMCS | G137: MMCS | H137: MMCS_E-LIFE | I137: CSC_TT | J137: TW002718001B | K137: =VLOOKUP(A137,[3]工作表5!$A$5:$D$535,4,0) -> 335393191 | L137: 全國 | N137: A | P137: =COUNTIF([4]BALANCE!$A$1:$A$65536,[4]notouch!$A137) ->  | Q137: =COUNTIF([4]BALANCE!$A$1:$A$65536,[4]notouch!$H137) ->  | R137: =VLOOKUP(A137,'[5]Bill+Ship to Code'!$B$1:$N$3417,13,0) -> 
A138: TW002720001B | B138: 天聲電器商行 | C138: 19540401 | D138: 98249862 | E138: 桃竹營銷處 | F138: DWB | G138: 桃竹 | H138: DEALER_TT | I138: DLC_TT | J138: TW002720001B | K138: =VLOOKUP(A138,[3]工作表5!$A$5:$D$535,4,0) -> 131273 | L138: 桃竹營銷處 | N138: A | P138: =COUNTIF([4]BALANCE!$A$1:$A$65536,[4]notouch!$A138) ->  | Q138: =COUNTIF([4]BALANCE!$A$1:$A$65536,[4]notouch!$H138) ->  | R138: =VLOOKUP(A138,'[5]Bill+Ship to Code'!$B$1:$N$3417,13,0) -> DLC_TT
A139: TW002721001B | B139: 統偉視聽工程有限公司 | C139: 19591014 | D139: 22669408 | E139: 桃竹營銷處 | F139: DWB | G139: 桃竹 | H139: DEALER_TT | I139: DCS_TT | J139: TW002721001B | K139: =VLOOKUP(A139,[3]工作表5!$A$5:$D$535,4,0) -> 515938 | L139: 桃竹營銷處 | N139: A | P139: =COUNTIF([4]BALANCE!$A$1:$A$65536,[4]notouch!$A139) ->  | Q139: =COUNTIF([4]BALANCE!$A$1:$A$65536,[4]notouch!$H139) ->  | R139: =VLOOKUP(A139,'[5]Bill+Ship to Code'!$B$1:$N$3417,13,0) -> DCS_TT
A140: TW002725001B | B140: 侑興電器有限公司 | C140: TW002725 | D140: 22682057 | E140: 台中營銷處 | F140: DJB | G140: 台中 | H140: DEALER_TT | I140: DLC_TT | J140: TW002725001B | K140: =VLOOKUP(A140,[3]工作表5!$A$5:$D$535,4,0) -> 24145 | L140: 台中營銷處 | N140: A | P140: =COUNTIF([4]BALANCE!$A$1:$A$65536,[4]notouch!$A140) ->  | Q140: =COUNTIF([4]BALANCE!$A$1:$A$65536,[4]notouch!$H140) ->  | R140: =VLOOKUP(A140,'[5]Bill+Ship to Code'!$B$1:$N$3417,13,0) -> DLC_TT
A141: TW002725002B | B141: 侑興電器有限公司 | C141: XXXXXXXX | D141: XXXXXXXX | E141: SAC | F141: ID&SAC | G141: SAC Sales | H141: B2B_TT | I141: CAC_TT | J141: TW002725002B | N141: I | O141: 無往來 | P141: =COUNTIF([4]BALANCE!$A$1:$A$65536,[4]notouch!$A141) ->  | Q141: =COUNTIF([4]BALANCE!$A$1:$A$65536,[4]notouch!$H141) ->  | R141: =VLOOKUP(A141,'[5]Bill+Ship to Code'!$B$1:$N$3417,13,0) -> 
A142: TW002745001B | B142: 全英電器有限公司 | C142: 19530909 | D142: 30976506 | E142: 台北營銷處 | F142: TPH | G142: 台北 | H142: DEALER_TT | I142: DLC_TT | J142: TW002745001B | L142: 台北營銷處 | N142: A | O142: =IF(N142="I","無往來",IF(SUM(P142:Q142)>0,"OK","沒有promotion")) ->  | P142: =COUNTIF([4]BALANCE!$A$1:$A$65536,[4]notouch!$A142) ->  | Q142: =COUNTIF([4]BALANCE!$A$1:$A$65536,[4]notouch!$H142) ->  | R142: =VLOOKUP(A142,'[5]Bill+Ship to Code'!$B$1:$N$3417,13,0) -> 
A143: TW002748001B | B143: 創作電子音響專賣店 | C143: TW002748 | D143: 81964433 | E143: 台中營銷處 | F143: DJB | G143: 台中 | H143: DEALER_TT | I143: DCS_TT | J143: TW002748001B | K143: =VLOOKUP(A143,[3]工作表5!$A$5:$D$535,4,0) -> 105028 | L143: 台中營銷處 | N143: A | P143: =COUNTIF([4]BALANCE!$A$1:$A$65536,[4]notouch!$A143) ->  | Q143: =COUNTIF([4]BALANCE!$A$1:$A$65536,[4]notouch!$H143) ->  | R143: =VLOOKUP(A143,'[5]Bill+Ship to Code'!$B$1:$N$3417,13,0) -> DCS_TT
A144: TW002750001B | B144: 集雅社股份有限公司 | C144: 89266170 | D144: 89266170 | E144: HPC | F144: DEPT | G144: 百貨 | H144: DEALER_DEPT | I144: DEPT_TT | J144: TW002750001B | K144: =VLOOKUP(A144,[3]工作表5!$A$5:$D$535,4,0) -> 89343900 | L144: 百貨 | N144: A | P144: =COUNTIF([4]BALANCE!$A$1:$A$65536,[4]notouch!$A144) ->  | Q144: =COUNTIF([4]BALANCE!$A$1:$A$65536,[4]notouch!$H144) ->  | R144: =VLOOKUP(A144,'[5]Bill+Ship to Code'!$B$1:$N$3417,13,0) -> DEPT_TT
A145: TW002755001B | B145: 聯鈦冷凍空調電器行 | C145: 19660924 | D145: 14156334 | E145: 嘉南營銷處 | F145: DNB | G145: 嘉南 | H145: DEALER_TT | I145: DCS_TT | J145: TW002755001B | K145: =VLOOKUP(A145,[3]工作表5!$A$5:$D$535,4,0) -> 249919 | L145: 嘉南營銷處 | N145: A | P145: =COUNTIF([4]BALANCE!$A$1:$A$65536,[4]notouch!$A145) ->  | Q145: =COUNTIF([4]BALANCE!$A$1:$A$65536,[4]notouch!$H145) ->  | R145: =VLOOKUP(A145,'[5]Bill+Ship to Code'!$B$1:$N$3417,13,0) -> DCS_TT
A146: TW002757001B | B146: 慧聲電器行 | C146: 19601115 | D146: 78215533 | E146: 台北營銷處 | F146: TPH | G146: 台北 | H146: DEALER_TT | I146: DLC_TT | J146: TW002757001B | L146: 台北營銷處 | N146: A | P146: =COUNTIF([4]BALANCE!$A$1:$A$65536,[4]notouch!$A146) ->  | Q146: =COUNTIF([4]BALANCE!$A$1:$A$65536,[4]notouch!$H146) ->  | R146: =VLOOKUP(A146,'[5]Bill+Ship to Code'!$B$1:$N$3417,13,0) -> 
A147: TW002758001B | B147: 秀翔實業有限公司 | C147: 89429694 | D147: 89429694 | E147: HPC | F147: DEPT | G147: 百貨 | H147: DEALER_DEPT | I147: DEPT_TT | J147: TW002758001B | K147: =VLOOKUP(A147,[3]工作表5!$A$5:$D$535,4,0) -> 14057385 | L147: 百貨 | N147: A | P147: =COUNTIF([4]BALANCE!$A$1:$A$65536,[4]notouch!$A147) ->  | Q147: =COUNTIF([4]BALANCE!$A$1:$A$65536,[4]notouch!$H147) ->  | R147: =VLOOKUP(A147,'[5]Bill+Ship to Code'!$B$1:$N$3417,13,0) -> DEPT_TT
A148: TW002761001B | B148: 憶豐電器有限公司 | C148: 19670109 | D148: 47109086 | E148: 桃竹營銷處 | F148: DWB | G148: 桃竹 | H148: DEALER_TT | I148: DLC_TT | J148: TW002761001B | K148: =VLOOKUP(A148,[3]工作表5!$A$5:$D$535,4,0) -> 101050 | L148: 桃竹營銷處 | N148: A | P148: =COUNTIF([4]BALANCE!$A$1:$A$65536,[4]notouch!$A148) ->  | Q148: =COUNTIF([4]BALANCE!$A$1:$A$65536,[4]notouch!$H148) ->  | R148: =VLOOKUP(A148,'[5]Bill+Ship to Code'!$B$1:$N$3417,13,0) -> DLC_TT
A149: TW002762001B | B149: 員毅電器有限公司 | C149: TW002762 | D149: 16929102 | E149: 台中營銷處 | F149: DJB | G149: 台中 | H149: DEALER_TT | I149: DLC_TT | J149: TW002762001B | K149: =VLOOKUP(A149,[3]工作表5!$A$5:$D$535,4,0) -> 0 | L149: 台中營銷處 | N149: A | P149: =COUNTIF([4]BALANCE!$A$1:$A$65536,[4]notouch!$A149) ->  | Q149: =COUNTIF([4]BALANCE!$A$1:$A$65536,[4]notouch!$H149) ->  | R149: =VLOOKUP(A149,'[5]Bill+Ship to Code'!$B$1:$N$3417,13,0) -> DLC_TT
A150: TW002764001B | B150: 弘象電器有限公司 | C150: 19670507 | D150: 97316526 | E150: 台北營銷處 | F150: TPH | G150: 台北 | H150: DEALER_TT | I150: DLC_TT | J150: TW002764001B | K150: =VLOOKUP(A150,[3]工作表5!$A$5:$D$535,4,0) -> 0 | L150: 台北營銷處 | N150: A | P150: =COUNTIF([4]BALANCE!$A$1:$A$65536,[4]notouch!$A150) ->  | Q150: =COUNTIF([4]BALANCE!$A$1:$A$65536,[4]notouch!$H150) ->  | R150: =VLOOKUP(A150,'[5]Bill+Ship to Code'!$B$1:$N$3417,13,0) -> DLC_TT
A151: TW002769001B | B151: 東農電器行 | C151: 19611101 | D151: 78766509 | E151: 高屏營銷處 | F151: GWB | G151: 高屏 | H151: DEALER_TT | I151: SPD_TT | J151: TW002769001B | K151: =VLOOKUP(A151,[3]工作表5!$A$5:$D$535,4,0) -> 1282813 | L151: 高屏營銷處 | N151: A | P151: =COUNTIF([4]BALANCE!$A$1:$A$65536,[4]notouch!$A151) ->  | Q151: =COUNTIF([4]BALANCE!$A$1:$A$65536,[4]notouch!$H151) ->  | R151: =VLOOKUP(A151,'[5]Bill+Ship to Code'!$B$1:$N$3417,13,0) -> SPD_TT
A152: TW002769002B | B152: 東農電器行 | C152: XXXXXXXX | D152: XXXXXXXX | E152: SAC | F152: ID&SAC | G152: SAC Sales | H152: B2B_TT | I152: CAC_TT | N152: I | O152: 無往來 | P152: =COUNTIF([4]BALANCE!$A$1:$A$65536,[4]notouch!$A152) ->  | Q152: =COUNTIF([4]BALANCE!$A$1:$A$65536,[4]notouch!$H152) ->  | R152: =VLOOKUP(A152,'[5]Bill+Ship to Code'!$B$1:$N$3417,13,0) -> B2B_TT
A153: TW002780001B | B153: 金銓電器行 | C153: TW002780 | D153: 13759385 | E153: 台中營銷處 | F153: DJB | G153: 台中 | H153: DEALER_TT | I153: DLC_TT | J153: TW002780001B | K153: =VLOOKUP(A153,[3]工作表5!$A$5:$D$535,4,0) -> 20266 | L153: 台中營銷處 | N153: A | P153: =COUNTIF([4]BALANCE!$A$1:$A$65536,[4]notouch!$A153) ->  | Q153: =COUNTIF([4]BALANCE!$A$1:$A$65536,[4]notouch!$H153) ->  | R153: =VLOOKUP(A153,'[5]Bill+Ship to Code'!$B$1:$N$3417,13,0) -> DLC_TT
A154: TW002789001B | B154: 宏昇電器行 | C154: 19671229 | D154: 97842555 | E154: 台中營銷處 | F154: DJB | G154: 台中 | H154: DEALER_TT | I154: SPD_TT | J154: TW002789001B | K154: =VLOOKUP(A154,[3]工作表5!$A$5:$D$535,4,0) -> 819747 | L154: 台中營銷處 | N154: A | P154: =COUNTIF([4]BALANCE!$A$1:$A$65536,[4]notouch!$A154) ->  | Q154: =COUNTIF([4]BALANCE!$A$1:$A$65536,[4]notouch!$H154) ->  | R154: =VLOOKUP(A154,'[5]Bill+Ship to Code'!$B$1:$N$3417,13,0) -> SPD_TT
A155: TW002801001B | B155: 銘信視聽電器城 | C155: 19710720 | D155: 92811337 | E155: 台中營銷處 | F155: DJB | G155: 台中 | H155: DEALER_TT | I155: DLC_TT | J155: TW002801001B | L155: 台中營銷處 | N155: A | P155: =COUNTIF([4]BALANCE!$A$1:$A$65536,[4]notouch!$A155) ->  | Q155: =COUNTIF([4]BALANCE!$A$1:$A$65536,[4]notouch!$H155) ->  | R155: =VLOOKUP(A155,'[5]Bill+Ship to Code'!$B$1:$N$3417,13,0) -> DLC_TT
A156: TW002811001B | B156: 棋杰電器行 | C156: 19650706 | D156: 08016878 | E156: 高屏營銷處 | F156: GWB | G156: 高屏 | H156: DEALER_TT | I156: SPD_TT | J156: TW002811001B | K156: =VLOOKUP(A156,[3]工作表5!$A$5:$D$535,4,0) -> 923469 | L156: 高屏營銷處 | N156: A | P156: =COUNTIF([4]BALANCE!$A$1:$A$65536,[4]notouch!$A156) ->  | Q156: =COUNTIF([4]BALANCE!$A$1:$A$65536,[4]notouch!$H156) ->  | R156: =VLOOKUP(A156,'[5]Bill+Ship to Code'!$B$1:$N$3417,13,0) -> SPD_TT
A157: TW002843001B | B157: 吉田電器行 | C157: 19620111 | D157: 17683437 | E157: 桃竹營銷處 | F157: DWB | G157: 桃竹 | H157: DEALER_TT | I157: DLC_TT | J157: TW002843001B | K157: =VLOOKUP(A157,[3]工作表5!$A$5:$D$535,4,0) -> 134622 | L157: 桃竹營銷處 | N157: A | P157: =COUNTIF([4]BALANCE!$A$1:$A$65536,[4]notouch!$A157) ->  | Q157: =COUNTIF([4]BALANCE!$A$1:$A$65536,[4]notouch!$H157) ->  | R157: =VLOOKUP(A157,'[5]Bill+Ship to Code'!$B$1:$N$3417,13,0) -> DLC_TT
A158: TW002851001B | B158: 隆慶電器行 | C158: 47374042 | D158: 47374803 | E158: 台中營銷處 | F158: DJB | G158: 台中 | H158: DEALER_TT | I158: SPD_TT | J158: TW002851001B | K158: =VLOOKUP(A158,[3]工作表5!$A$5:$D$535,4,0) -> 2311288 | L158: 台中營銷處 | N158: A | P158: =COUNTIF([4]BALANCE!$A$1:$A$65536,[4]notouch!$A158) ->  | Q158: =COUNTIF([4]BALANCE!$A$1:$A$65536,[4]notouch!$H158) ->  | R158: =VLOOKUP(A158,'[5]Bill+Ship to Code'!$B$1:$N$3417,13,0) -> SPD_TT
A159: TW002856001B | B159: 老雙億實業有限公司 | C159: 19490915 | D159: 35957606 | E159: 台北營銷處 | F159: TPH | G159: 台北 | H159: DEALER_TT | I159: DCS_TT | J159: TW002856001B | K159: =VLOOKUP(A159,[3]工作表5!$A$5:$D$535,4,0) -> 288182 | L159: 台北營銷處 | N159: A | P159: =COUNTIF([4]BALANCE!$A$1:$A$65536,[4]notouch!$A159) ->  | Q159: =COUNTIF([4]BALANCE!$A$1:$A$65536,[4]notouch!$H159) ->  | R159: =VLOOKUP(A159,'[5]Bill+Ship to Code'!$B$1:$N$3417,13,0) -> DCS_TT
A160: TW002858001B | B160: 豐昌電器行 | C160: 19630721 | D160: 06565736 | E160: 嘉南營銷處 | F160: DNB | G160: 嘉南 | H160: DEALER_TT | I160: DLC_TT | J160: TW002858001B | K160: =VLOOKUP(A160,[3]工作表5!$A$5:$D$535,4,0) -> 18284 | L160: 嘉南營銷處 | N160: A | P160: =COUNTIF([4]BALANCE!$A$1:$A$65536,[4]notouch!$A160) ->  | Q160: =COUNTIF([4]BALANCE!$A$1:$A$65536,[4]notouch!$H160) ->  | R160: =VLOOKUP(A160,'[5]Bill+Ship to Code'!$B$1:$N$3417,13,0) -> DLC_TT
A161: TW002861001B | B161: 昇廣電器有限公司 | C161: 19611020 | D161: 16498693 | E161: 台中營銷處 | F161: DJB | G161: 台中 | H161: DEALER_TT | I161: DLC_TT | J161: TW002861001B | K161: =VLOOKUP(A161,[3]工作表5!$A$5:$D$535,4,0) -> 97747 | L161: 台中營銷處 | N161: A | P161: =COUNTIF([4]BALANCE!$A$1:$A$65536,[4]notouch!$A161) ->  | Q161: =COUNTIF([4]BALANCE!$A$1:$A$65536,[4]notouch!$H161) ->  | R161: =VLOOKUP(A161,'[5]Bill+Ship to Code'!$B$1:$N$3417,13,0) -> DLC_TT
A162: TW002870001B | B162: 松立電業社 | C162: 19560806 | D162: 90720487 | E162: 高屏營銷處 | F162: GWB | G162: 高屏 | H162: DEALER_TT | I162: DLC_TT | J162: TW002870001B | K162: =VLOOKUP(A162,[3]工作表5!$A$5:$D$535,4,0) -> 164475 | L162: 高屏營銷處 | N162: A | P162: =COUNTIF([4]BALANCE!$A$1:$A$65536,[4]notouch!$A162) ->  | Q162: =COUNTIF([4]BALANCE!$A$1:$A$65536,[4]notouch!$H162) ->  | R162: =VLOOKUP(A162,'[5]Bill+Ship to Code'!$B$1:$N$3417,13,0) -> DLC_TT
A163: TW002886001B | B163: 三信電氣行 | C163: 19570402 | D163: 08359830 | E163: 台中營銷處 | F163: DJB | G163: 台中 | H163: DEALER_TT | I163: SPD_TT | J163: TW002886001B | K163: =VLOOKUP(A163,[3]工作表5!$A$5:$D$535,4,0) -> 1248163 | L163: 台中營銷處 | N163: A | P163: =COUNTIF([4]BALANCE!$A$1:$A$65536,[4]notouch!$A163) ->  | Q163: =COUNTIF([4]BALANCE!$A$1:$A$65536,[4]notouch!$H163) ->  | R163: =VLOOKUP(A163,'[5]Bill+Ship to Code'!$B$1:$N$3417,13,0) -> SPD_TT
A164: TW002887001B | B164: 仙風電器有限公司 | C164: XXXXXXXX | D164: XXXXXXXX | E164: 桃竹營銷處 | F164: DWB | G164: 桃竹 | H164: DEALER_TT | I164: DLC_TT | J164: TW002887001B | K164: =VLOOKUP(A164,[3]工作表5!$A$5:$D$535,4,0) -> 47498 | L164: 桃竹營銷處 | N164: A | P164: =COUNTIF([4]BALANCE!$A$1:$A$65536,[4]notouch!$A164) ->  | Q164: =COUNTIF([4]BALANCE!$A$1:$A$65536,[4]notouch!$H164) ->  | R164: =VLOOKUP(A164,'[5]Bill+Ship to Code'!$B$1:$N$3417,13,0) -> DLC_TT
A165: TW002896001B | B165: 三星電器行 | C165: 19670620 | D165: 59096683 | E165: 台中營銷處 | F165: DJB | G165: 台中 | H165: DEALER_TT | I165: DLC_TT | J165: TW002896001B | K165: =VLOOKUP(A165,[3]工作表5!$A$5:$D$535,4,0) -> 294801 | L165: 台中營銷處 | N165: A | P165: =COUNTIF([4]BALANCE!$A$1:$A$65536,[4]notouch!$A165) ->  | Q165: =COUNTIF([4]BALANCE!$A$1:$A$65536,[4]notouch!$H165) ->  | R165: =VLOOKUP(A165,'[5]Bill+Ship to Code'!$B$1:$N$3417,13,0) -> DLC_TT
A166: TW002897001B | B166: 南山電器行 | C166: 19700420 | D166: 17925152 | E166: 台北營銷處 | F166: TPH | G166: 台北 | H166: DEALER_TT | I166: DLC_TT | N166: A | P166: =COUNTIF([4]BALANCE!$A$1:$A$65536,[4]notouch!$A166) ->  | Q166: =COUNTIF([4]BALANCE!$A$1:$A$65536,[4]notouch!$H166) ->  | R166: =VLOOKUP(A166,'[5]Bill+Ship to Code'!$B$1:$N$3417,13,0) -> 
A167: TW002904001B | B167: 天烽電器有限公司 | C167: 19711108 | D167: 80272502 | E167: 台北營銷處 | F167: TPH | G167: 台北 | H167: DEALER_TT | I167: DLC_TT | J167: TW002904001B | L167: 台北營銷處 | N167: A | P167: =COUNTIF([4]BALANCE!$A$1:$A$65536,[4]notouch!$A167) ->  | Q167: =COUNTIF([4]BALANCE!$A$1:$A$65536,[4]notouch!$H167) ->  | R167: =VLOOKUP(A167,'[5]Bill+Ship to Code'!$B$1:$N$3417,13,0) -> 
A168: TW002919001B | B168: 建鑫電器行 | C168: 19721112 | D168: 18282184 | E168: 嘉南營銷處 | F168: DNB | G168: 嘉南 | H168: DEALER_TT | I168: DLC_TT | J168: TW002919001B | K168: =VLOOKUP(A168,[3]工作表5!$A$5:$D$535,4,0) -> 132412 | L168: 嘉南營銷處 | N168: A | P168: =COUNTIF([4]BALANCE!$A$1:$A$65536,[4]notouch!$A168) ->  | Q168: =COUNTIF([4]BALANCE!$A$1:$A$65536,[4]notouch!$H168) ->  | R168: =VLOOKUP(A168,'[5]Bill+Ship to Code'!$B$1:$N$3417,13,0) -> DLC_TT
A169: TW002927001B | B169: 中信冷凍電器行 | C169: 19710227 | D169: 19801699 | E169: 高屏營銷處 | F169: GWB | G169: 高屏 | H169: DEALER_TT | I169: DCS_TT | J169: TW002927001B | K169: =VLOOKUP(A169,[3]工作表5!$A$5:$D$535,4,0) -> 1358308 | L169: 高屏營銷處 | N169: A | P169: =COUNTIF([4]BALANCE!$A$1:$A$65536,[4]notouch!$A169) ->  | Q169: =COUNTIF([4]BALANCE!$A$1:$A$65536,[4]notouch!$H169) ->  | R169: =VLOOKUP(A169,'[5]Bill+Ship to Code'!$B$1:$N$3417,13,0) -> DCS_TT
A170: TW002945001B | B170: 勁鋒電器行 | C170: 19641113 | D170: 87753771 | E170: 高屏營銷處 | F170: GWB | G170: 高屏 | H170: DEALER_TT | I170: DLC_TT | J170: TW002945001B | K170: =VLOOKUP(A170,[3]工作表5!$A$5:$D$535,4,0) -> 134830 | L170: 高屏營銷處 | N170: A | P170: =COUNTIF([4]BALANCE!$A$1:$A$65536,[4]notouch!$A170) ->  | Q170: =COUNTIF([4]BALANCE!$A$1:$A$65536,[4]notouch!$H170) ->  | R170: =VLOOKUP(A170,'[5]Bill+Ship to Code'!$B$1:$N$3417,13,0) -> DLC_TT
A171: TW002946001B | B171: 佑均電器商行 | C171: 19800403 | D171: 98119827 | E171: 桃竹營銷處 | F171: DWB | G171: 桃竹 | H171: DEALER_TT | I171: DLC_TT | J171: TW002946001B | N171: A | P171: =COUNTIF([4]BALANCE!$A$1:$A$65536,[4]notouch!$A171) ->  | Q171: =COUNTIF([4]BALANCE!$A$1:$A$65536,[4]notouch!$H171) ->  | R171: =VLOOKUP(A171,'[5]Bill+Ship to Code'!$B$1:$N$3417,13,0) -> 
A172: TW002950001B | B172: 廣昌電器行 | C172: TW002950 | D172: 97885688 | E172: 台中營銷處 | F172: DJB | G172: 台中 | H172: DEALER_TT | I172: SPD_TT | J172: TW002950001B | K172: =VLOOKUP(A172,[3]工作表5!$A$5:$D$535,4,0) -> 538748 | L172: 台中營銷處 | N172: A | P172: =COUNTIF([4]BALANCE!$A$1:$A$65536,[4]notouch!$A172) ->  | Q172: =COUNTIF([4]BALANCE!$A$1:$A$65536,[4]notouch!$H172) ->  | R172: =VLOOKUP(A172,'[5]Bill+Ship to Code'!$B$1:$N$3417,13,0) -> SPD_TT
A173: TW002952001B | B173: 廣駿電器行 | C173: 24925933 | D173: 24921827 | E173: 台中營銷處 | F173: DJB | G173: 台中 | H173: DEALER_TT | I173: DLC_TT | J173: TW002952001B | K173: =VLOOKUP(A173,[3]工作表5!$A$5:$D$535,4,0) -> 24404 | L173: 台中營銷處 | N173: A | P173: =COUNTIF([4]BALANCE!$A$1:$A$65536,[4]notouch!$A173) ->  | Q173: =COUNTIF([4]BALANCE!$A$1:$A$65536,[4]notouch!$H173) ->  | R173: =VLOOKUP(A173,'[5]Bill+Ship to Code'!$B$1:$N$3417,13,0) -> DLC_TT
A174: TW002960001B | B174: 正賢電器行 | C174: TW002960 | D174: 84042476 | E174: 台中營銷處 | F174: DJB | G174: 台中 | H174: DEALER_TT | I174: DLC_TT | J174: TW002960001B | K174: =VLOOKUP(A174,[3]工作表5!$A$5:$D$535,4,0) -> 0 | L174: 台中營銷處 | N174: A | P174: =COUNTIF([4]BALANCE!$A$1:$A$65536,[4]notouch!$A174) ->  | Q174: =COUNTIF([4]BALANCE!$A$1:$A$65536,[4]notouch!$H174) ->  | R174: =VLOOKUP(A174,'[5]Bill+Ship to Code'!$B$1:$N$3417,13,0) -> DLC_TT
A175: TW002964001B | B175: 台灣樂金顯示科技股份有限公司 | C175: XXXXXXXX | D175: XXXXXXXX | E175: B2B2C | F175: B2B2C | G175: B2B2C | H175: B2B_TT | I175: B2B_TT | N175: A | P175: =COUNTIF([4]BALANCE!$A$1:$A$65536,[4]notouch!$A175) ->  | Q175: =COUNTIF([4]BALANCE!$A$1:$A$65536,[4]notouch!$H175) ->  | R175: =VLOOKUP(A175,'[5]Bill+Ship to Code'!$B$1:$N$3417,13,0) -> 
A176: TW002965001B | B176: 永定電器有限公司 | C176: 19781001 | D176: 96857734 | E176: 高屏營銷處 | F176: GWB | G176: 高屏 | H176: DEALER_TT | I176: DLC_TT | J176: TW002965001B | K176: =VLOOKUP(A176,[3]工作表5!$A$5:$D$535,4,0) -> 0 | L176: 高屏營銷處 | N176: A | P176: =COUNTIF([4]BALANCE!$A$1:$A$65536,[4]notouch!$A176) ->  | Q176: =COUNTIF([4]BALANCE!$A$1:$A$65536,[4]notouch!$H176) ->  | R176: =VLOOKUP(A176,'[5]Bill+Ship to Code'!$B$1:$N$3417,13,0) -> DLC_TT
A177: TW002975001B | B177: 佳美電器行 | C177: 19550202 | D177: 06644845 | E177: 嘉南營銷處 | F177: DNB | G177: 嘉南 | H177: DEALER_TT | I177: DLC_TT | N177: I | O177: 無往來 | P177: =COUNTIF([4]BALANCE!$A$1:$A$65536,[4]notouch!$A177) ->  | Q177: =COUNTIF([4]BALANCE!$A$1:$A$65536,[4]notouch!$H177) ->  | R177: =VLOOKUP(A177,'[5]Bill+Ship to Code'!$B$1:$N$3417,13,0) -> 
A178: TW002978001B | B178: 匯豐家電有限公司 | C178: 23383896 | D178: 23366784 | E178: 台中營銷處 | F178: DJB | G178: 台中 | H178: DEALER_TT | I178: DLC_TT | J178: TW002978001B | K178: =VLOOKUP(A178,[3]工作表5!$A$5:$D$535,4,0) -> 0 | L178: 台中營銷處 | N178: A | P178: =COUNTIF([4]BALANCE!$A$1:$A$65536,[4]notouch!$A178) ->  | Q178: =COUNTIF([4]BALANCE!$A$1:$A$65536,[4]notouch!$H178) ->  | R178: =VLOOKUP(A178,'[5]Bill+Ship to Code'!$B$1:$N$3417,13,0) -> DLC_TT
A179: TW002989001B | B179: 隆松電器有限公司 | C179: 36663666 | D179: 69845546 | E179: 嘉南營銷處 | F179: DNB | G179: 嘉南 | H179: DEALER_TT | I179: DLC_TT | J179: TW002989001B | L179: 嘉南營銷處 | N179: A | P179: =COUNTIF([4]BALANCE!$A$1:$A$65536,[4]notouch!$A179) ->  | Q179: =COUNTIF([4]BALANCE!$A$1:$A$65536,[4]notouch!$H179) ->  | R179: =VLOOKUP(A179,'[5]Bill+Ship to Code'!$B$1:$N$3417,13,0) -> 
A180: TW002990001B | B180: 國際水電冷氣工程行 | C180: 19651008 | D180: 49776492 | E180: 桃竹營銷處 | F180: DWB | G180: 桃竹 | H180: DEALER_TT | I180: DLC_TT | K180: =VLOOKUP(A180,[3]工作表5!$A$5:$D$535,4,0) -> 459291 | L180: 桃竹營銷處 | N180: A | P180: =COUNTIF([4]BALANCE!$A$1:$A$65536,[4]notouch!$A180) ->  | Q180: =COUNTIF([4]BALANCE!$A$1:$A$65536,[4]notouch!$H180) ->  | R180: =VLOOKUP(A180,'[5]Bill+Ship to Code'!$B$1:$N$3417,13,0) -> DLC_TT
A181: TW002991001B | B181: 偉誠電器 | C181: 19740120 | D181: 96888413 | E181: 台北營銷處 | F181: TPH | G181: 台北 | H181: DEALER_TT | I181: DLC_TT | N181: I | O181: 無往來 | P181: =COUNTIF([4]BALANCE!$A$1:$A$65536,[4]notouch!$A181) ->  | Q181: =COUNTIF([4]BALANCE!$A$1:$A$65536,[4]notouch!$H181) ->  | R181: =VLOOKUP(A181,'[5]Bill+Ship to Code'!$B$1:$N$3417,13,0) -> 
A182: TW002997001B | B182: 鎰銘電器有限公司 | C182: 19670216 | D182: 80103181 | E182: 台北營銷處 | F182: TPH | G182: 台北 | H182: DEALER_TT | I182: SPD_TT | J182: TW002997001B | K182: =VLOOKUP(A182,[3]工作表5!$A$5:$D$535,4,0) -> 6875928 | L182: 台北營銷處 | N182: A | P182: =COUNTIF([4]BALANCE!$A$1:$A$65536,[4]notouch!$A182) ->  | Q182: =COUNTIF([4]BALANCE!$A$1:$A$65536,[4]notouch!$H182) ->  | R182: =VLOOKUP(A182,'[5]Bill+Ship to Code'!$B$1:$N$3417,13,0) -> SPD_TT
A183: TW003001001B | B183: 銘盛電器有限公司 | C183: 19560401 | D183: 97184980 | E183: 台北營銷處 | F183: TPH | G183: 台北 | H183: DEALER_TT | I183: DLC_TT | J183: TW003001001B | L183: 台北營銷處 | N183: A | P183: =COUNTIF([4]BALANCE!$A$1:$A$65536,[4]notouch!$A183) ->  | Q183: =COUNTIF([4]BALANCE!$A$1:$A$65536,[4]notouch!$H183) ->  | R183: =VLOOKUP(A183,'[5]Bill+Ship to Code'!$B$1:$N$3417,13,0) -> 
A184: TW003013001B | B184: 重慶國際有限公司 | C184: TW003013 | D184: 79955373 | E184: 台中營銷處 | F184: DJB | G184: 台中 | H184: DEALER_TT | I184: DLC_TT | J184: TW003013001B | K184: =VLOOKUP(A184,[3]工作表5!$A$5:$D$535,4,0) -> 98379 | L184: 台中營銷處 | N184: A | P184: =COUNTIF([4]BALANCE!$A$1:$A$65536,[4]notouch!$A184) ->  | Q184: =COUNTIF([4]BALANCE!$A$1:$A$65536,[4]notouch!$H184) ->  | R184: =VLOOKUP(A184,'[5]Bill+Ship to Code'!$B$1:$N$3417,13,0) -> DLC_TT
A185: TW003020002B | B185: 華笙音響企業有限公司 | C185: TW003020 | D185: 23688754 | E185: 台中營銷處 | F185: DJB | G185: 台中 | H185: DEALER_TT | I185: DLC_TT | J185: TW003020002B | K185: =VLOOKUP(A185,[3]工作表5!$A$5:$D$535,4,0) -> 0 | L185: 台中營銷處 | N185: A | P185: =COUNTIF([4]BALANCE!$A$1:$A$65536,[4]notouch!$A185) ->  | Q185: =COUNTIF([4]BALANCE!$A$1:$A$65536,[4]notouch!$H185) ->  | R185: =VLOOKUP(A185,'[5]Bill+Ship to Code'!$B$1:$N$3417,13,0) -> DLC_TT
A186: TW003023001B | B186: 翠亨企業股份有限公司 | C186: 19820909 | D186: 16129431 | E186: 高屏營銷處 | F186: GWB | G186: 高屏 | H186: DEALER_TT | I186: DCS_TT | J186: TW003023001B | K186: =VLOOKUP(A186,[3]工作表5!$A$5:$D$535,4,0) -> 411978 | L186: 高屏營銷處 | N186: A | P186: =COUNTIF([4]BALANCE!$A$1:$A$65536,[4]notouch!$A186) ->  | Q186: =COUNTIF([4]BALANCE!$A$1:$A$65536,[4]notouch!$H186) ->  | R186: =VLOOKUP(A186,'[5]Bill+Ship to Code'!$B$1:$N$3417,13,0) -> DCS_TT
A187: TW003029001B | B187: 大統電器行 | C187: 19581106 | D187: 02846102 | E187: 桃竹營銷處 | F187: DWB | G187: 桃竹 | H187: DEALER_TT | I187: DLC_TT | J187: TW003029001B | K187: =VLOOKUP(A187,[3]工作表5!$A$5:$D$535,4,0) -> 0 | L187: 桃竹營銷處 | N187: A | P187: =COUNTIF([4]BALANCE!$A$1:$A$65536,[4]notouch!$A187) ->  | Q187: =COUNTIF([4]BALANCE!$A$1:$A$65536,[4]notouch!$H187) ->  | R187: =VLOOKUP(A187,'[5]Bill+Ship to Code'!$B$1:$N$3417,13,0) -> DLC_TT
A188: TW003034001B | B188: 九瑜電氣行 | C188: TW003034 | D188: 97887216 | E188: 台中營銷處 | F188: DJB | G188: 台中 | H188: DEALER_TT | I188: DLC_TT | J188: TW003034001B | L188: 台中營銷處 | N188: A | P188: =COUNTIF([4]BALANCE!$A$1:$A$65536,[4]notouch!$A188) ->  | Q188: =COUNTIF([4]BALANCE!$A$1:$A$65536,[4]notouch!$H188) ->  | R188: =VLOOKUP(A188,'[5]Bill+Ship to Code'!$B$1:$N$3417,13,0) -> 
A189: TW003035001B | B189: 友信電器有限公司 | C189: 19571230 | D189: 97341659 | E189: 嘉南營銷處 | F189: DNB | G189: 嘉南 | H189: DEALER_TT | I189: DLC_TT | J189: TW003035001B | K189: =VLOOKUP(A189,[3]工作表5!$A$5:$D$535,4,0) -> 0 | L189: 嘉南營銷處 | N189: A | P189: =COUNTIF([4]BALANCE!$A$1:$A$65536,[4]notouch!$A189) ->  | Q189: =COUNTIF([4]BALANCE!$A$1:$A$65536,[4]notouch!$H189) ->  | R189: =VLOOKUP(A189,'[5]Bill+Ship to Code'!$B$1:$N$3417,13,0) -> DLC_TT
A190: TW003040001B | B190: 悅鼎電器有限公司 | C190: 19690102 | D190: 84693028 | E190: 台北營銷處 | F190: TPH | G190: 台北 | H190: DEALER_TT | I190: SPD_TT | J190: TW003040001B | K190: =VLOOKUP(A190,[3]工作表5!$A$5:$D$535,4,0) -> 5258008 | L190: 台北營銷處 | N190: A | P190: =COUNTIF([4]BALANCE!$A$1:$A$65536,[4]notouch!$A190) ->  | Q190: =COUNTIF([4]BALANCE!$A$1:$A$65536,[4]notouch!$H190) ->  | R190: =VLOOKUP(A190,'[5]Bill+Ship to Code'!$B$1:$N$3417,13,0) -> SPD_TT
A191: TW003052001B | B191: 蓁筳園企業有限公司 | C191: XXXXXXXX | D191: XXXXXXXX | E191: B2B2C | F191: B2B2C | G191: B2B2C | H191: B2B_TT | I191: B2B_TT | N191: A | P191: =COUNTIF([4]BALANCE!$A$1:$A$65536,[4]notouch!$A191) ->  | Q191: =COUNTIF([4]BALANCE!$A$1:$A$65536,[4]notouch!$H191) ->  | R191: =VLOOKUP(A191,'[5]Bill+Ship to Code'!$B$1:$N$3417,13,0) -> 
A192: TW003052002B | B192: 蓁筳園企業有限公司 | C192: XXXXXXXX | D192: XXXXXXXX | E192: SAC | F192: ID&SAC | G192: SAC Sales | H192: B2B_TT | I192: CAC_TT | N192: I | O192: 無往來 | P192: =COUNTIF([4]BALANCE!$A$1:$A$65536,[4]notouch!$A192) ->  | Q192: =COUNTIF([4]BALANCE!$A$1:$A$65536,[4]notouch!$H192) ->  | R192: =VLOOKUP(A192,'[5]Bill+Ship to Code'!$B$1:$N$3417,13,0) -> 
A193: TW003053001B | B193: 尚德師企業有限公司 | C193: 19630211 | D193: 12933843 | E193: 台北營銷處 | F193: TPH | G193: 台北 | H193: DEALER_TT | I193: DLC_TT | J193: TW003053001B | K193: =VLOOKUP(A193,[3]工作表5!$A$5:$D$535,4,0) -> 0 | L193: 台北營銷處 | N193: A | P193: =COUNTIF([4]BALANCE!$A$1:$A$65536,[4]notouch!$A193) ->  | Q193: =COUNTIF([4]BALANCE!$A$1:$A$65536,[4]notouch!$H193) ->  | R193: =VLOOKUP(A193,'[5]Bill+Ship to Code'!$B$1:$N$3417,13,0) -> DLC_TT
A194: TW003054001B | B194: 上益 | C194: 19550615 | D194: 15719466 | E194: 嘉南營銷處 | F194: DNB | G194: 嘉南 | H194: DEALER_TT | I194: DLC_TT | N194: I | O194: 無往來 | P194: =COUNTIF([4]BALANCE!$A$1:$A$65536,[4]notouch!$A194) ->  | Q194: =COUNTIF([4]BALANCE!$A$1:$A$65536,[4]notouch!$H194) ->  | R194: =VLOOKUP(A194,'[5]Bill+Ship to Code'!$B$1:$N$3417,13,0) -> 
A195: TW003071001B | B195: 泰昀企業有限公司 | C195: 19490915 | D195: 22866800 | E195: 台北營銷處 | F195: TPH | G195: 台北 | H195: DEALER_TT | I195: DCS_TT | J195: TW003071001B | K195: =VLOOKUP(A195,[3]工作表5!$A$5:$D$535,4,0) -> 1498790 | L195: 台北營銷處 | N195: A | P195: =COUNTIF([4]BALANCE!$A$1:$A$65536,[4]notouch!$A195) ->  | Q195: =COUNTIF([4]BALANCE!$A$1:$A$65536,[4]notouch!$H195) ->  | R195: =VLOOKUP(A195,'[5]Bill+Ship to Code'!$B$1:$N$3417,13,0) -> DCS_TT
A196: TW003094001B | B196: 大銀幕視聽音響有限公司 | C196: TW003094 | D196: 97033415 | E196: 台中營銷處 | F196: DJB | G196: 台中 | H196: DEALER_TT | I196: DCS_TT | J196: TW003094001B | L196: 台中營銷處 | N196: A | P196: =COUNTIF([4]BALANCE!$A$1:$A$65536,[4]notouch!$A196) ->  | Q196: =COUNTIF([4]BALANCE!$A$1:$A$65536,[4]notouch!$H196) ->  | R196: =VLOOKUP(A196,'[5]Bill+Ship to Code'!$B$1:$N$3417,13,0) -> DCS_TT
A197: TW003096001B | B197: 極品家電 | C197: 47226905 | D197: 47293663 | E197: 台中營銷處 | F197: DJB | G197: 台中 | H197: DEALER_TT | I197: DCS_TT | N197: I | O197: 無往來 | P197: =COUNTIF([4]BALANCE!$A$1:$A$65536,[4]notouch!$A197) ->  | Q197: =COUNTIF([4]BALANCE!$A$1:$A$65536,[4]notouch!$H197) ->  | R197: =VLOOKUP(A197,'[5]Bill+Ship to Code'!$B$1:$N$3417,13,0) -> 
A198: TW003125001B | B198: 宏暉電器行 | C198: 19730421 | D198: 14194891 | E198: 高屏營銷處 | F198: GWB | G198: 高屏 | H198: DEALER_TT | I198: DLC_TT | J198: TW003125001B | K198: =VLOOKUP(A198,[3]工作表5!$A$5:$D$535,4,0) -> 54537 | L198: 高屏營銷處 | N198: A | P198: =COUNTIF([4]BALANCE!$A$1:$A$65536,[4]notouch!$A198) ->  | Q198: =COUNTIF([4]BALANCE!$A$1:$A$65536,[4]notouch!$H198) ->  | R198: =VLOOKUP(A198,'[5]Bill+Ship to Code'!$B$1:$N$3417,13,0) -> DLC_TT
A199: TW003126001B | B199: 東圓電器行 | C199: 19811028 | D199: 19656246 | E199: 桃竹營銷處 | F199: DWB | G199: 桃竹 | H199: DEALER_TT | I199: SPD_TT | J199: TW003126001B | L199: 桃竹營銷處 | N199: A | P199: =COUNTIF([4]BALANCE!$A$1:$A$65536,[4]notouch!$A199) ->  | Q199: =COUNTIF([4]BALANCE!$A$1:$A$65536,[4]notouch!$H199) ->  | R199: =VLOOKUP(A199,'[5]Bill+Ship to Code'!$B$1:$N$3417,13,0) -> SPD_TT
A200: TW003127001B | B200: 富盟企業社 | C200: TW003127 | D200: 13400211 | E200: 台中營銷處 | F200: DJB | G200: 台中 | H200: DEALER_TT | I200: DCS_TT | J200: TW003127001B | K200: =VLOOKUP(A200,[3]工作表5!$A$5:$D$535,4,0) -> 625575 | L200: 台中營銷處 | N200: A | P200: =COUNTIF([4]BALANCE!$A$1:$A$65536,[4]notouch!$A200) ->  | Q200: =COUNTIF([4]BALANCE!$A$1:$A$65536,[4]notouch!$H200) ->  | R200: =VLOOKUP(A200,'[5]Bill+Ship to Code'!$B$1:$N$3417,13,0) -> DCS_TT
... 887 more rows

Sheet 預算表
A3: 2024年8月 | B3: 台 灣 樂 金 電 器 股 份 有 限 公 司
A4: =確認code正確 ->  | B4: =店CODE -> 0 | D4: 密 碼
A5: 店Code： | C5: 第一組： | E5: =確認1 -> 0
A6: 店 名： | B6: =確認店 ->  | C6: 第二組： | E6: =確認2 -> 0
A7: =確認區 ->  | B7: =確認BG ->  | C7: =確認BG1 ->  | D7: =R好CODE1 ->  | E7: =R好CODE2 ->  | J7: =R好CODE3 -> 
A8: 店代號 | B8: Promotion No | C8: Promotion Name | D8: 起始日 | E8: 到期日 | F8: 獎勵內容 | G8: 型號 | H8: AMT/% | I8: 單價/%

Sheet BALANCE (hidden)
A1: Bill To Customer Code | B1: Bill To Customer Code | C1: Promotion No | D1: Promotion Name | E1: Start Date | F1: End Date | G1: Property Type | H1: Start Date | I1: End Date | J1: 內容 | K1: 店代號 | L1: 店名 | M1: NO | N1: AA(必填) | O1: AMT/AMT | P1: Description | Q1: Division | R1: Model | S1: Unit / % | T1: QTY / Sales | U1: Expected Cost
A2: =IFERROR(VLOOKUP(N2,多CODE,2,0),IF(RIGHT($B2,1)="H",LEFT($B2,11)&"B",IFERROR(VLOOKUP($B2,SHIP,3,0),$B2))) -> TW004694001B | B2: =K2 -> TW004694001B | C2: TT-TTSI-20220921-0006 | D2: YLB22070005-LTV-TW004694-CornerSupport(Y2)-202210~202409 | E2: 2023-10-01 | F2: 2024-09-30 | G2: =MID(C2,4,4) -> TTSI | H2: =E2 -> 2023-10-01 | I2: =F2 -> 2024-09-30 | J2: 協議-電視-領侁羅東分店補助(基本目標每年達2,130,590未稅，補助101,457未稅，Year2)-202210~202409 | K2: TW004694001B | L2: 領侁電器 | M2: TW | O2: % | P2: 領侁羅東分店補助(基本目標每年達2,130,590未稅，補助101,457未稅，Year2) | R2: 電視 | T2: 0
A3: TW002529001B | B3: =K3 -> TW002529001B | C3: TT-TTSI-20231220-0004 | D3: Contract-All-TW002529-Yearly Rebate-2024 | E3: 2024-01-01 | F3: 2024-12-31 | G3: TTSI | H3: =E3 -> 2024-01-01 | I3: =F3 -> 2024-12-31 | J3: 合約-全產品-年扣(8,000萬*1.2%，1億1,000萬*1.5%，1億5,000萬*1.8%)-01~12 | K3: TW002529001B | L3: 愛買吉安總公司 | M3: TW | O3: % | P3: 年扣(8,000萬*1.2%，1億1,000萬*1.5%，1億5,000萬*1.8%) | R3: 全產品 | T3: 0
A4: TW002529001B | B4: TW002529001B | C4: TT-TTSI-20231220-0005 | D4: Contract-AC/SAC-TW002529-Yearly Sell-in Target Rebate-2024 | E4: 2024-01-01 | F4: 2024-12-31 | G4: TTSI | H4: 2024-01-01 | I4: 2024-12-31 | J4: 協議-冷氣/系統空調-年度目標達成進貨獎勵3%(目標400組)-01~12 | K4: TW002529001B | L4: 愛買吉安總公司 | M4: TW | O4: % | P4: 年度目標達成進貨獎勵3%(目標400組) | R4: 冷氣 | T4: 0
A5: TW002529001B | B5: TW002529001B | C5: TT-TTSI-20231220-0005 | D5: Contract-AC/SAC-TW002529-Yearly Sell-in Target Rebate-2024 | E5: 2024-01-01 | F5: 2024-12-31 | G5: TTSI | H5: 2024-01-01 | I5: 2024-12-31 | J5: 協議-冷氣/系統空調-年度目標達成進貨獎勵3%(目標400組)-01~12 | K5: TW002529001B | L5: 愛買吉安總公司 | M5: TW | O5: % | P5: 年度目標達成進貨獎勵3%(目標400組) | R5: 系統空調 | T5: 0
A6: TW007124001B | B6: TW007124001B | C6: TT-TTSI-20231220-0037 | D6: Contract-All-TW007124-B&Q-Yearly Rebate-2024 | E6: 2024-01-01 | F6: 2024-12-31 | G6: TTSI | H6: 2024-01-01 | I6: 2024-12-31 | J6: 合約-全產品-年扣(1,000萬*0.5%，4,000萬*1%，1億以上*1.5%)-01~12 | K6: TW007124001B | L6: 特力屋 | M6: TW | O6: % | P6: 年扣(1,000萬*0.5%，4,000萬*1%，1億以上*1.5%) | R6: 全產品 | T6: 0
A7: TW007124001B | B7: TW007124001B | C7: TT-TTSI-20231220-0038 | D7: Contract-AC/SAC-TW007124-B&Q-Yearly Sell-in Target Rebate-2024 | E7: 2024-01-01 | F7: 2024-12-31 | G7: TTSI | H7: 2024-01-01 | I7: 2024-12-31 | J7: 合約-冷氣/系統空調-進貨達成獎勵(目標300台1%，500台以上1.5%)-01~12 | K7: TW007124001B | L7: 特力屋 | M7: TW | O7: % | P7: 進貨達成獎勵(目標300台1%，500台以上1.5%) | R7: 冷氣 | T7: 0
A8: =IFERROR(VLOOKUP(N8,多CODE,2,0),IF(RIGHT($B8,1)="H",LEFT($B8,11)&"B",IFERROR(VLOOKUP($B8,SHIP,3,0),$B8))) -> TW007124001B | B8: TW007124001B | C8: TT-TTSI-20231220-0038 | D8: Contract-AC/SAC-TW007124-B&Q-Yearly Sell-in Target Rebate-2024 | E8: 2024-01-01 | F8: 2024-12-31 | G8: TTSI | H8: 2024-01-01 | I8: 2024-12-31 | J8: 合約-冷氣/系統空調-進貨達成獎勵(目標300台1%，500台以上1.5%)-01~12 | K8: TW007124001B | L8: 特力屋 | M8: TW | O8: % | P8: 進貨達成獎勵(目標300台1%，500台以上1.5%) | R8: 系統空調 | T8: 0
A9: TW002758001B | B9: TW002758001B | C9: TT-TTSI-20231225-0009 | D9: DEPT2312D005-All-TW002758-TargetRebate-Year-2024 | E9: 2024-01-01 | F9: 2024-12-31 | G9: TTSI | H9: 2024-01-01 | I9: 2024-12-31 | J9: 協議-全產品-年度目標達成獎勵(1.25億1.5%,1.4億:2%且冷氣外機In-Out各100台)-01~12 | K9: TW002758001B | L9: 秀翔 | M9: TW | O9: % | P9: 年度目標達成獎勵(1.25億1.5%,1.4億:2%且冷氣外機In-Out各100台) | R9: 家電 | T9: 0
A10: TW005281001B | B10: TW005281001B | C10: TT-TTSI-20231225-0011 | D10: DEPT2312D005-All-TW005281-TargetRebate-Year-2024 | E10: 2024-01-01 | F10: 2024-12-31 | G10: TTSI | H10: 2024-01-01 | I10: 2024-12-31 | J10: 協議-全產品-年度目標達成獎勵(1.2億1%,1.4億:1.5%且冷氣外機In-Out各60台)-01~12 | K10: TW005281001B | L10: 映象國際 | M10: TW | O10: % | P10: 年度目標達成獎勵(1.2億1%,1.4億:1.5%且冷氣外機In-Out各60台) | R10: 家電 | T10: 0
A11: TW002718001B | B11: TW002718001B | C11: TT-TTSI-20231226-0045 | D11: MMCSN2312B050-ALL-TW002718-YearTarget-2024 | E11: 2024-01-01 | F11: 2024-12-31 | G11: TTSI | H11: 2024-01-01 | I11: 2024-12-31 | J11: 合約-全產品-年扣(進貨達未稅4億起獎勵，最高級距14億以上獎勵4.1%)-01~12 | K11: TW002718001B | L11: 全國電子 | M11: TW | O11: % | P11: 年扣(進貨達未稅4億起獎勵，最高級距14億以上獎勵4.1%) | R11: 全產品 | T11: 0
A12: TW002525001B | B12: TW002525001H | C12: TT-TTSI-20231227-0196 | D12: Contract MMCSN2312J031-Black-TW002525-Year-2024 | E12: 2024-01-01 | F12: 2024-12-31 | G12: TTSI | H12: 2024-01-01 | I12: 2024-12-31 | J12: 合約-黑電-年扣(180M*0.4%,215M*0.6%,255M*0.8%,295M*1%)-01~12 | K12: TW002525001H | L12: 大潤發總公司 | M12: TW | N12: MMCS-大潤發 | O12: % | P12: 年扣(180M*0.4%,215M*0.6%,255M*0.8%,295M*1%) | R12: 電視 | T12: 0
A13: TW002525001B | B13: TW002525001H | C13: TT-TTSI-20231227-0196 | D13: Contract MMCSN2312J031-Black-TW002525-Year-2024 | E13: 2024-01-01 | F13: 2024-12-31 | G13: TTSI | H13: 2024-01-01 | I13: 2024-12-31 | J13: 合約-黑電-年扣(180M*0.4%,215M*0.6%,255M*0.8%,295M*1%)-01~12 | K13: TW002525001H | L13: 大潤發總公司 | M13: TW | N13: MMCS-大潤發 | O13: % | P13: 年扣(180M*0.4%,215M*0.6%,255M*0.8%,295M*1%) | R13: 多媒體 | T13: 0
A14: TW002525001B | B14: TW002525001H | C14: TT-TTSI-20231227-0197 | D14: Contract MMCSN2312J031-White-TW002525-Year-2024 | E14: 2024-01-01 | F14: 2024-12-31 | G14: TTSI | H14: 2024-01-01 | I14: 2024-12-31 | J14: 合約-白電-年扣(300M*1.55%,342M*1.75%,376M*1.95%,510M以上*2.15%)-01~12 | K14: TW002525001H | L14: 大潤發總公司 | M14: TW | N14: MMCS-大潤發 | O14: % | P14: 年扣(300M*1.55%,342M*1.75%,376M*1.95%,510M以上*2.15%) | R14: 冰箱 | T14: 0
A15: TW002525001B | B15: TW002525001H | C15: TT-TTSI-20231227-0197 | D15: Contract MMCSN2312J031-White-TW002525-Year-2024 | E15: 2024-01-01 | F15: 2024-12-31 | G15: TTSI | H15: 2024-01-01 | I15: 2024-12-31 | J15: 合約-白電-年扣(300M*1.55%,342M*1.75%,376M*1.95%,510M以上*2.15%)-01~12 | K15: TW002525001H | L15: 大潤發總公司 | M15: TW | N15: MMCS-大潤發 | O15: % | P15: 年扣(300M*1.55%,342M*1.75%,376M*1.95%,510M以上*2.15%) | R15: 洗衣機 | T15: 0
A16: TW002525001B | B16: TW002525001H | C16: TT-TTSI-20231227-0197 | D16: Contract MMCSN2312J031-White-TW002525-Year-2024 | E16: 2024-01-01 | F16: 2024-12-31 | G16: TTSI | H16: 2024-01-01 | I16: 2024-12-31 | J16: 合約-白電-年扣(300M*1.55%,342M*1.75%,376M*1.95%,510M以上*2.15%)-01~12 | K16: TW002525001H | L16: 大潤發總公司 | M16: TW | N16: MMCS-大潤發 | O16: % | P16: 年扣(300M*1.55%,342M*1.75%,376M*1.95%,510M以上*2.15%) | R16: 冷氣 | T16: 0
A17: TW002525001B | B17: TW002525001H | C17: TT-TTSI-20231227-0197 | D17: Contract MMCSN2312J031-White-TW002525-Year-2024 | E17: 2024-01-01 | F17: 2024-12-31 | G17: TTSI | H17: 2024-01-01 | I17: 2024-12-31 | J17: 合約-白電-年扣(300M*1.55%,342M*1.75%,376M*1.95%,510M以上*2.15%)-01~12 | K17: TW002525001H | L17: 大潤發總公司 | M17: TW | N17: MMCS-大潤發 | O17: % | P17: 年扣(300M*1.55%,342M*1.75%,376M*1.95%,510M以上*2.15%) | R17: 除濕/清淨機 | T17: 0
A18: TW002525001B | B18: TW002525001H | C18: TT-TTSI-20231227-0197 | D18: Contract MMCSN2312J031-White-TW002525-Year-2024 | E18: 2024-01-01 | F18: 2024-12-31 | G18: TTSI | H18: 2024-01-01 | I18: 2024-12-31 | J18: 合約-白電-年扣(300M*1.55%,342M*1.75%,376M*1.95%,510M以上*2.15%)-01~12 | K18: TW002525001H | L18: 大潤發總公司 | M18: TW | N18: MMCS-大潤發 | O18: % | P18: 年扣(300M*1.55%,342M*1.75%,376M*1.95%,510M以上*2.15%) | R18: 系統空調 | T18: 0
A19: TW002525001B | B19: TW002525001H | C19: TT-TTSI-20231227-0197 | D19: Contract MMCSN2312J031-White-TW002525-Year-2024 | E19: 2024-01-01 | F19: 2024-12-31 | G19: TTSI | H19: 2024-01-01 | I19: 2024-12-31 | J19: 合約-白電-年扣(300M*1.55%,342M*1.75%,376M*1.95%,510M以上*2.15%)-01~12 | K19: TW002525001H | L19: 大潤發總公司 | M19: TW | N19: MMCS-大潤發 | O19: % | P19: 年扣(300M*1.55%,342M*1.75%,376M*1.95%,510M以上*2.15%) | R19: 洗碗機 | T19: 0
A20: TW002525001B | B20: TW002525001H | C20: TT-TTSI-20231227-0198 | D20: Contract MMCSN2312J031-Small-TW002525-Year-2024 | E20: 2024-01-01 | F20: 2024-12-31 | G20: TTSI | H20: 2024-01-01 | I20: 2024-12-31 | J20: 合約-小家電-年扣(10M*1.5%,15M*1.7%,20M*1.9%,25M以上*2%)-01~12 | K20: TW002525001H | L20: 大潤發總公司 | M20: TW | N20: MMCS-大潤發 | O20: % | P20: 年扣(10M*1.5%,15M*1.7%,20M*1.9%,25M以上*2%) | R20: 吸塵器 | T20: 0
A21: TW002525001B | B21: TW002525001H | C21: TT-TTSI-20231227-0198 | D21: Contract MMCSN2312J031-Small-TW002525-Year-2024 | E21: 2024-01-01 | F21: 2024-12-31 | G21: TTSI | H21: 2024-01-01 | I21: 2024-12-31 | J21: 合約-小家電-年扣(10M*1.5%,15M*1.7%,20M*1.9%,25M以上*2%)-01~12 | K21: TW002525001H | L21: 大潤發總公司 | M21: TW | N21: MMCS-大潤發 | O21: % | P21: 年扣(10M*1.5%,15M*1.7%,20M*1.9%,25M以上*2%) | R21: 微波爐 | T21: 0
A22: TW002525001B | B22: TW002525001H | C22: TT-TTSI-20231227-0235 | D22: Contract MMCSN2312J031-ALL-TW002525-AccessoryContractNewOpenAchieveTargetSupport-2024 | E22: 2024-01-01 | F22: 2024-12-31 | G22: TTSI | H22: 2024-01-01 | I22: 2024-12-31 | J22: 合約-全產品-附約全店改裝目標達成補助(0.05%*預計開4家)-01~12 | K22: TW002525001H | L22: 大潤發總公司 | M22: TW | N22: MMCS-大潤發 | O22: % | P22: 附約全店改裝目標達成補助(0.05%*預計開4家) | R22: 全產品 | T22: 0
A23: TW002750001B | B23: TW002750001B | C23: TT-TTSI-20231228-0001 | D23: DEPT2312D005-All-TW002750-TargetRebate-Year-2024 | E23: 2024-01-01 | F23: 2024-12-31 | G23: TTSI | H23: 2024-01-01 | I23: 2024-12-31 | J23: 協議-全產品-年度目標達成獎勵(12億5%,13億5.5%,14.5億:6%)-01~12 | K23: TW002750001B | L23: 集雅社 | M23: TW | O23: % | P23: 年度目標達成獎勵(12億5%,13億5.5%,14.5億:6%) | R23: 家電 | T23: 0
A24: TW005617001B | B24: TW005617001B | C24: TT-TTSI-20230324-0015 | D24: DWB2212A003-RF.WM-TW005617-CornerSupport(Y2)-202404~202503 | E24: 2024-04-01 | F24: 2025-03-31 | G24: TTSI | H24: 2024-04-01 | I24: 2025-03-31 | J24: 協議-冰箱.洗衣機-麥仕分店HACorner補助(基本目標每年達3,164,300未稅，補助158,215未稅，Year2)-202404~202503 | K24: TW005617001B | L24: 麥仕視聽音響有限公司 | M24: TW | O24: % | P24: 麥仕分店HACorner補助(基本目標每年達3,164,300未稅，補助158,215未稅，Year2) | R24: 冰箱 | T24: 0
A25: TW005617001B | B25: TW005617001B | C25: TT-TTSI-20230324-0015 | D25: DWB2212A003-RF.WM-TW005617-CornerSupport(Y2)-202404~202503 | E25: 2024-04-01 | F25: 2025-03-31 | G25: TTSI | H25: 2024-04-01 | I25: 2025-03-31 | J25: 協議-冰箱.洗衣機-麥仕分店HACorner補助(基本目標每年達3,164,300未稅，補助158,215未稅，Year2)-202404~202503 | K25: TW005617001B | L25: 麥仕視聽音響有限公司 | M25: TW | O25: % | P25: 麥仕分店HACorner補助(基本目標每年達3,164,300未稅，補助158,215未稅，Year2) | R25: 洗衣機 | T25: 0
A26: TW005617001B | B26: TW005617001B | C26: TT-TTSI-20230324-0018 | D26: DWB2212A003-TV-TW005617-CornerSupport(Y2)-202404~202503 | E26: 2024-04-01 | F26: 2025-03-31 | G26: TTSI | H26: 2024-04-01 | I26: 2025-03-31 | J26: 協議-電視-麥仕分店HECorner補助(基本目標每年達3,031,970未稅，補助151,599未稅，Year2)-202404~202503 | K26: TW005617001B | L26: 麥仕視聽音響有限公司 | M26: TW | O26: % | P26: 麥仕分店HECorner補助(基本目標每年達3,031,970未稅，補助151,599未稅，Year2) | R26: 電視 | T26: 0
A27: TW005617001B | B27: TW005617001B | C27: TT-TTSI-20230324-0020 | D27: DWB2212A003-IL-TW005617-CornerSupport(Y2)-202404~202503 | E27: 2024-04-01 | F27: 2025-03-31 | G27: TTSI | H27: 2024-04-01 | I27: 2025-03-31 | J27: 協議-吸塵器.清淨機.除濕機-麥仕分店ILCorner補助(基本目標每年達2,249,500未稅，補助112,475未稅，Year2)-202404~202503 | K27: TW005617001B | L27: 麥仕視聽音響有限公司 | M27: TW | O27: % | P27: 麥仕分店ILCorner補助(基本目標每年達2,249,500未稅，補助112,475未稅，Year2) | R27: 除濕/清淨機 | T27: 0
A28: TW005617001B | B28: TW005617001B | C28: TT-TTSI-20230324-0020 | D28: DWB2212A003-IL-TW005617-CornerSupport(Y2)-202404~202503 | E28: 2024-04-01 | F28: 2025-03-31 | G28: TTSI | H28: 2024-04-01 | I28: 2025-03-31 | J28: 協議-吸塵器.清淨機.除濕機-麥仕分店ILCorner補助(基本目標每年達2,249,500未稅，補助112,475未稅，Year2)-202404~202503 | K28: TW005617001B | L28: 麥仕視聽音響有限公司 | M28: TW | O28: % | P28: 麥仕分店ILCorner補助(基本目標每年達2,249,500未稅，補助112,475未稅，Year2) | R28: 吸塵器 | T28: 0
A29: DEALER_TT | B29: DEALER_TT | C29: TT-TTSI-20230928-0036 | D29: ASPM20230928001-AC/SAC-Dealer-Quarterly Volume Target Rebate-202407~202409 | E29: 2024-07-01 | F29: 2024-09-30 | G29: TTSI | H29: 2024-07-01 | I29: 2024-09-30 | J29: 協議-冷氣/系統空調-季度目標達成獎勵(達成10萬-25萬2%，25萬-40萬2.5%，40萬以上3%)-202407~202409 | K29: DEALER_TT | L29: Dealer_TT | M29: TW | O29: % | P29: 季度目標達成獎勵(達成10萬-25萬2%，25萬-40萬2.5%，40萬以上3%) | R29: 冷氣 | T29: 0
A30: DEALER_TT | B30: DEALER_TT | C30: TT-TTSI-20230928-0036 | D30: ASPM20230928001-AC/SAC-Dealer-Quarterly Volume Target Rebate-202407~202409 | E30: 2024-07-01 | F30: 2024-09-30 | G30: TTSI | H30: 2024-07-01 | I30: 2024-09-30 | J30: 協議-冷氣/系統空調-季度目標達成獎勵(達成10萬-25萬2%，25萬-40萬2.5%，40萬以上3%)-202407~202409 | K30: DEALER_TT | L30: Dealer_TT | M30: TW | O30: % | P30: 季度目標達成獎勵(達成10萬-25萬2%，25萬-40萬2.5%，40萬以上3%) | R30: 系統空調 | T30: 0
A31: TW006831001B | B31: TW006831001B | C31: TT-TTSI-20230928-0042 | D31: ASPM20230928001-AC/SAC-Dealer-Quarterly Volume Target Rebate-202407~202409 | E31: 2024-07-01 | F31: 2024-09-30 | G31: TTSI | H31: 2024-07-01 | I31: 2024-09-30 | J31: 協議-冷氣/系統空調-季度目標達成獎勵(達成10萬-25萬2%，25萬-40萬2.5%，40萬以上3%)-202407~202409 | K31: TW006831001B | L31: 富基電通 | M31: TW | O31: % | P31: 季度目標達成獎勵(達成10萬-25萬2%，25萬-40萬2.5%，40萬以上3%) | R31: 冷氣 | T31: 0
A32: TW006831001B | B32: TW006831001B | C32: TT-TTSI-20230928-0042 | D32: ASPM20230928001-AC/SAC-Dealer-Quarterly Volume Target Rebate-202407~202409 | E32: 2024-07-01 | F32: 2024-09-30 | G32: TTSI | H32: 2024-07-01 | I32: 2024-09-30 | J32: 協議-冷氣/系統空調-季度目標達成獎勵(達成10萬-25萬2%，25萬-40萬2.5%，40萬以上3%)-202407~202409 | K32: TW006831001B | L32: 富基電通 | M32: TW | O32: % | P32: 季度目標達成獎勵(達成10萬-25萬2%，25萬-40萬2.5%，40萬以上3%) | R32: 系統空調 | T32: 0
A33: TW006359001B | B33: TW006359001B | C33: TT-TTSI-20231005-0006 | D33: ASPM20230928001-AC/SAC-Dealer-Quarterly Volume Target Rebate-202407~202409 | E33: 2024-07-01 | F33: 2024-09-30 | G33: TTSI | H33: 2024-07-01 | I33: 2024-09-30 | J33: 協議-冷氣/系統空調-季度目標達成獎勵(達成10萬-25萬2%，25萬-40萬2.5%，40萬以上3%)-202407~202409 | K33: TW006359001B | L33: 展碁國際 | M33: TW | O33: % | P33: 季度目標達成獎勵(達成10萬-25萬2%，25萬-40萬2.5%，40萬以上3%) | R33: 冷氣 | T33: 0
A34: TW006359001B | B34: TW006359001B | C34: TT-TTSI-20231005-0006 | D34: ASPM20230928001-AC/SAC-Dealer-Quarterly Volume Target Rebate-202407~202409 | E34: 2024-07-01 | F34: 2024-09-30 | G34: TTSI | H34: 2024-07-01 | I34: 2024-09-30 | J34: 協議-冷氣/系統空調-季度目標達成獎勵(達成10萬-25萬2%，25萬-40萬2.5%，40萬以上3%)-202407~202409 | K34: TW006359001B | L34: 展碁國際 | M34: TW | O34: % | P34: 季度目標達成獎勵(達成10萬-25萬2%，25萬-40萬2.5%，40萬以上3%) | R34: 系統空調 | T34: 0
A35: TW007441001B | B35: TW007441001B | C35: TT-TTSI-20240305-0005 | D35: ASPM20230928001-AC/SAC-Dealer-Quarterly Volume Target Rebate-202407~202409 | E35: 2024-07-01 | F35: 2024-09-30 | G35: TTSI | H35: 2024-07-01 | I35: 2024-09-30 | J35: 協議-冷氣/系統空調-季度目標達成獎勵(達成10萬-25萬2%，25萬-40萬2.5%，40萬以上3%)-202407~202409 | K35: TW007441001B | L35: 神腦國際 | M35: TW | O35: % | P35: 季度目標達成獎勵(達成10萬-25萬2%，25萬-40萬2.5%，40萬以上3%) | R35: 冷氣 | T35: 0
A36: TW007441001B | B36: TW007441001B | C36: TT-TTSI-20240305-0005 | D36: ASPM20230928001-AC/SAC-Dealer-Quarterly Volume Target Rebate-202407~202409 | E36: 2024-07-01 | F36: 2024-09-30 | G36: TTSI | H36: 2024-07-01 | I36: 2024-09-30 | J36: 協議-冷氣/系統空調-季度目標達成獎勵(達成10萬-25萬2%，25萬-40萬2.5%，40萬以上3%)-202407~202409 | K36: TW007441001B | L36: 神腦國際 | M36: TW | O36: % | P36: 季度目標達成獎勵(達成10萬-25萬2%，25萬-40萬2.5%，40萬以上3%) | R36: 系統空調 | T36: 0
A37: TW007140001B | B37: TW007140001B | C37: TT-TTSI-20240711-0001 | D37: DJB2102F0003-ALL-TW007140-CarSupport4Year-202404-202503 | E37: 2024-04-01 | F37: 2025-03-31 | G37: TTSI | H37: 2024-04-01 | I37: 2025-03-31 | J37: 協議-全產品-購車補助(第4年淨實績冷氣達100萬100台且全產品未稅$53,283,748，全產品達90%以上依達成率補助上限含稅10萬)-2024.04.01~2025.03.31 | K37: TW007140001B | L37: 老王科技 | M37: TW | O37: % | P37: 購車補助(第4年淨實績冷氣達100萬100台且全產品未稅$53,283,748，全產品達90%以上依達成率補助上限含稅10萬) | R37: 全產品 | S37: 0.19
A38: DCS_TT | B38: DCS_TT | C38: TT-NTSI-20240624-0021 | D38: HETV2024061301-TV-Dealer-QtySIARebate-202408 | E38: 2024-08-01 | F38: 2024-08-31 | G38: NTSI | H38: 2024-08-01 | I38: 2024-08-31 | J38: 公司-電視-進獎台折(3台1%,7台2%,10台3%)-08~08 | K38: DCS_TT | L38: DCS_TT | M38: TW | O38: % | P38: 進獎台折(3台1%,7台2%,10台3%) | R38: 65ART90ESQA.ATT | T38: 0
A39: DCS_TT | B39: DCS_TT | C39: TT-NTSI-20240624-0021 | D39: HETV2024061301-TV-Dealer-QtySIARebate-202408 | E39: 2024-08-01 | F39: 2024-08-31 | G39: NTSI | H39: 2024-08-01 | I39: 2024-08-31 | J39: 公司-電視-進獎台折(3台1%,7台2%,10台3%)-08~08 | K39: DCS_TT | L39: DCS_TT | M39: TW | O39: % | P39: 進獎台折(3台1%,7台2%,10台3%) | R39: OLED97G2PSA.ATT | T39: 0
A40: DCS_TT | B40: DCS_TT | C40: TT-NTSI-20240624-0021 | D40: HETV2024061301-TV-Dealer-QtySIARebate-202408 | E40: 2024-08-01 | F40: 2024-08-31 | G40: NTSI | H40: 2024-08-01 | I40: 2024-08-31 | J40: 公司-電視-進獎台折(3台1%,7台2%,10台3%)-08~08 | K40: DCS_TT | L40: DCS_TT | M40: TW | O40: % | P40: 進獎台折(3台1%,7台2%,10台3%) | R40: 55LX1QPSA.ATT | T40: 0
A41: DCS_TT | B41: DCS_TT | C41: TT-NTSI-20240624-0021 | D41: HETV2024061301-TV-Dealer-QtySIARebate-202408 | E41: 2024-08-01 | F41: 2024-08-31 | G41: NTSI | H41: 2024-08-01 | I41: 2024-08-31 | J41: 公司-電視-進獎台折(3台1%,7台2%,10台3%)-08~08 | K41: DCS_TT | L41: DCS_TT | M41: TW | O41: % | P41: 進獎台折(3台1%,7台2%,10台3%) | R41: 42LX3QPSA.ATT | T41: 0
A42: DCS_TT | B42: DCS_TT | C42: TT-NTSI-20240624-0021 | D42: HETV2024061301-TV-Dealer-QtySIARebate-202408 | E42: 2024-08-01 | F42: 2024-08-31 | G42: NTSI | H42: 2024-08-01 | I42: 2024-08-31 | J42: 公司-電視-進獎台折(3台1%,7台2%,10台3%)-08~08 | K42: DCS_TT | L42: DCS_TT | M42: TW | O42: % | P42: 進獎台折(3台1%,7台2%,10台3%) | R42: OLED83G3PSA.ATT | T42: 0
A43: DCS_TT | B43: DCS_TT | C43: TT-NTSI-20240624-0021 | D43: HETV2024061301-TV-Dealer-QtySIARebate-202408 | E43: 2024-08-01 | F43: 2024-08-31 | G43: NTSI | H43: 2024-08-01 | I43: 2024-08-31 | J43: 公司-電視-進獎台折(3台1%,7台2%,10台3%)-08~08 | K43: DCS_TT | L43: DCS_TT | M43: TW | O43: % | P43: 進獎台折(3台1%,7台2%,10台3%) | R43: OLED65G3PSA.ATT | T43: 0
A44: DCS_TT | B44: DCS_TT | C44: TT-NTSI-20240624-0021 | D44: HETV2024061301-TV-Dealer-QtySIARebate-202408 | E44: 2024-08-01 | F44: 2024-08-31 | G44: NTSI | H44: 2024-08-01 | I44: 2024-08-31 | J44: 公司-電視-進獎台折(3台1%,7台2%,10台3%)-08~08 | K44: DCS_TT | L44: DCS_TT | M44: TW | O44: % | P44: 進獎台折(3台1%,7台2%,10台3%) | R44: 75QNED86SRA.ATT | T44: 0
A45: DCS_TT | B45: DCS_TT | C45: TT-NTSI-20240624-0021 | D45: HETV2024061301-TV-Dealer-QtySIARebate-202408 | E45: 2024-08-01 | F45: 2024-08-31 | G45: NTSI | H45: 2024-08-01 | I45: 2024-08-31 | J45: 公司-電視-進獎台折(3台1%,7台2%,10台3%)-08~08 | K45: DCS_TT | L45: DCS_TT | M45: TW | O45: % | P45: 進獎台折(3台1%,7台2%,10台3%) | R45: 75NANO77SRA.ATT | T45: 0
A46: DCS_TT | B46: DCS_TT | C46: TT-NTSI-20240624-0021 | D46: HETV2024061301-TV-Dealer-QtySIARebate-202408 | E46: 2024-08-01 | F46: 2024-08-31 | G46: NTSI | H46: 2024-08-01 | I46: 2024-08-31 | J46: 公司-電視-進獎台折(3台1%,7台2%,10台3%)-08~08 | K46: DCS_TT | L46: DCS_TT | M46: TW | O46: % | P46: 進獎台折(3台1%,7台2%,10台3%) | R46: 65NANO77SRA.ATT | T46: 0
A47: DCS_TT | B47: DCS_TT | C47: TT-NTSI-20240624-0021 | D47: HETV2024061301-TV-Dealer-QtySIARebate-202408 | E47: 2024-08-01 | F47: 2024-08-31 | G47: NTSI | H47: 2024-08-01 | I47: 2024-08-31 | J47: 公司-電視-進獎台折(3台1%,7台2%,10台3%)-08~08 | K47: DCS_TT | L47: DCS_TT | M47: TW | O47: % | P47: 進獎台折(3台1%,7台2%,10台3%) | R47: OLED88Z3PSA.ATT | T47: 0
A48: DCS_TT | B48: DCS_TT | C48: TT-NTSI-20240624-0021 | D48: HETV2024061301-TV-Dealer-QtySIARebate-202408 | E48: 2024-08-01 | F48: 2024-08-31 | G48: NTSI | H48: 2024-08-01 | I48: 2024-08-31 | J48: 公司-電視-進獎台折(3台1%,7台2%,10台3%)-08~08 | K48: DCS_TT | L48: DCS_TT | M48: TW | O48: % | P48: 進獎台折(3台1%,7台2%,10台3%) | R48: OLED55C3PSA.ATT | T48: 0
A49: DCS_TT | B49: DCS_TT | C49: TT-NTSI-20240624-0021 | D49: HETV2024061301-TV-Dealer-QtySIARebate-202408 | E49: 2024-08-01 | F49: 2024-08-31 | G49: NTSI | H49: 2024-08-01 | I49: 2024-08-31 | J49: 公司-電視-進獎台折(3台1%,7台2%,10台3%)-08~08 | K49: DCS_TT | L49: DCS_TT | M49: TW | O49: % | P49: 進獎台折(3台1%,7台2%,10台3%) | R49: 65QNED86SRA.ATT | T49: 0
A50: DCS_TT | B50: DCS_TT | C50: TT-NTSI-20240624-0021 | D50: HETV2024061301-TV-Dealer-QtySIARebate-202408 | E50: 2024-08-01 | F50: 2024-08-31 | G50: NTSI | H50: 2024-08-01 | I50: 2024-08-31 | J50: 公司-電視-進獎台折(3台1%,7台2%,10台3%)-08~08 | K50: DCS_TT | L50: DCS_TT | M50: TW | O50: % | P50: 進獎台折(3台1%,7台2%,10台3%) | R50: 75QNED81SRA.ATT | T50: 0
A51: DCS_TT | B51: DCS_TT | C51: TT-NTSI-20240624-0021 | D51: HETV2024061301-TV-Dealer-QtySIARebate-202408 | E51: 2024-08-01 | F51: 2024-08-31 | G51: NTSI | H51: 2024-08-01 | I51: 2024-08-31 | J51: 公司-電視-進獎台折(3台1%,7台2%,10台3%)-08~08 | K51: DCS_TT | L51: DCS_TT | M51: TW | O51: % | P51: 進獎台折(3台1%,7台2%,10台3%) | R51: OLED83C3PSA.ATT | T51: 0
A52: DCS_TT | B52: DCS_TT | C52: TT-NTSI-20240624-0021 | D52: HETV2024061301-TV-Dealer-QtySIARebate-202408 | E52: 2024-08-01 | F52: 2024-08-31 | G52: NTSI | H52: 2024-08-01 | I52: 2024-08-31 | J52: 公司-電視-進獎台折(3台1%,7台2%,10台3%)-08~08 | K52: DCS_TT | L52: DCS_TT | M52: TW | O52: % | P52: 進獎台折(3台1%,7台2%,10台3%) | R52: OLED48C3PSA.ATT | T52: 0
A53: DCS_TT | B53: DCS_TT | C53: TT-NTSI-20240624-0021 | D53: HETV2024061301-TV-Dealer-QtySIARebate-202408 | E53: 2024-08-01 | F53: 2024-08-31 | G53: NTSI | H53: 2024-08-01 | I53: 2024-08-31 | J53: 公司-電視-進獎台折(3台1%,7台2%,10台3%)-08~08 | K53: DCS_TT | L53: DCS_TT | M53: TW | O53: % | P53: 進獎台折(3台1%,7台2%,10台3%) | R53: OLED42C3PSA.ATT | T53: 0
A54: DCS_TT | B54: DCS_TT | C54: TT-NTSI-20240624-0021 | D54: HETV2024061301-TV-Dealer-QtySIARebate-202408 | E54: 2024-08-01 | F54: 2024-08-31 | G54: NTSI | H54: 2024-08-01 | I54: 2024-08-31 | J54: 公司-電視-進獎台折(3台1%,7台2%,10台3%)-08~08 | K54: DCS_TT | L54: DCS_TT | M54: TW | O54: % | P54: 進獎台折(3台1%,7台2%,10台3%) | R54: 55NANO77SRA.ATT | T54: 0
A55: DCS_TT | B55: DCS_TT | C55: TT-NTSI-20240624-0021 | D55: HETV2024061301-TV-Dealer-QtySIARebate-202408 | E55: 2024-08-01 | F55: 2024-08-31 | G55: NTSI | H55: 2024-08-01 | I55: 2024-08-31 | J55: 公司-電視-進獎台折(3台1%,7台2%,10台3%)-08~08 | K55: DCS_TT | L55: DCS_TT | M55: TW | O55: % | P55: 進獎台折(3台1%,7台2%,10台3%) | R55: 86QNED86SRA.ATT | T55: 0
A56: DCS_TT | B56: DCS_TT | C56: TT-NTSI-20240624-0021 | D56: HETV2024061301-TV-Dealer-QtySIARebate-202408 | E56: 2024-08-01 | F56: 2024-08-31 | G56: NTSI | H56: 2024-08-01 | I56: 2024-08-31 | J56: 公司-電視-進獎台折(3台1%,7台2%,10台3%)-08~08 | K56: DCS_TT | L56: DCS_TT | M56: TW | O56: % | P56: 進獎台折(3台1%,7台2%,10台3%) | R56: OLED55G3PSA.ATT | T56: 0
A57: DCS_TT | B57: DCS_TT | C57: TT-NTSI-20240624-0021 | D57: HETV2024061301-TV-Dealer-QtySIARebate-202408 | E57: 2024-08-01 | F57: 2024-08-31 | G57: NTSI | H57: 2024-08-01 | I57: 2024-08-31 | J57: 公司-電視-進獎台折(3台1%,7台2%,10台3%)-08~08 | K57: DCS_TT | L57: DCS_TT | M57: TW | O57: % | P57: 進獎台折(3台1%,7台2%,10台3%) | R57: OLED77C3PSA.ATT | T57: 0
A58: DCS_TT | B58: DCS_TT | C58: TT-NTSI-20240624-0021 | D58: HETV2024061301-TV-Dealer-QtySIARebate-202408 | E58: 2024-08-01 | F58: 2024-08-31 | G58: NTSI | H58: 2024-08-01 | I58: 2024-08-31 | J58: 公司-電視-進獎台折(3台1%,7台2%,10台3%)-08~08 | K58: DCS_TT | L58: DCS_TT | M58: TW | O58: % | P58: 進獎台折(3台1%,7台2%,10台3%) | R58: OLED65C3PSA.ATT | T58: 0
A59: DCS_TT | B59: DCS_TT | C59: TT-NTSI-20240624-0021 | D59: HETV2024061301-TV-Dealer-QtySIARebate-202408 | E59: 2024-08-01 | F59: 2024-08-31 | G59: NTSI | H59: 2024-08-01 | I59: 2024-08-31 | J59: 公司-電視-進獎台折(3台1%,7台2%,10台3%)-08~08 | K59: DCS_TT | L59: DCS_TT | M59: TW | O59: % | P59: 進獎台折(3台1%,7台2%,10台3%) | R59: 55QNED81SRA.ATT | T59: 0
A60: DCS_TT | B60: DCS_TT | C60: TT-NTSI-20240624-0021 | D60: HETV2024061301-TV-Dealer-QtySIARebate-202408 | E60: 2024-08-01 | F60: 2024-08-31 | G60: NTSI | H60: 2024-08-01 | I60: 2024-08-31 | J60: 公司-電視-進獎台折(3台1%,7台2%,10台3%)-08~08 | K60: DCS_TT | L60: DCS_TT | M60: TW | O60: % | P60: 進獎台折(3台1%,7台2%,10台3%) | R60: 75QNED75SRT.ATT | T60: 0
A61: DCS_TT | B61: DCS_TT | C61: TT-NTSI-20240624-0021 | D61: HETV2024061301-TV-Dealer-QtySIARebate-202408 | E61: 2024-08-01 | F61: 2024-08-31 | G61: NTSI | H61: 2024-08-01 | I61: 2024-08-31 | J61: 公司-電視-進獎台折(3台1%,7台2%,10台3%)-08~08 | K61: DCS_TT | L61: DCS_TT | M61: TW | O61: % | P61: 進獎台折(3台1%,7台2%,10台3%) | R61: 43QNED75SRT.ATT | T61: 0
A62: DCS_TT | B62: DCS_TT | C62: TT-NTSI-20240624-0021 | D62: HETV2024061301-TV-Dealer-QtySIARebate-202408 | E62: 2024-08-01 | F62: 2024-08-31 | G62: NTSI | H62: 2024-08-01 | I62: 2024-08-31 | J62: 公司-電視-進獎台折(3台1%,7台2%,10台3%)-08~08 | K62: DCS_TT | L62: DCS_TT | M62: TW | O62: % | P62: 進獎台折(3台1%,7台2%,10台3%) | R62: OLED83G4PTA.ATT | T62: 0
A63: DCS_TT | B63: DCS_TT | C63: TT-NTSI-20240624-0021 | D63: HETV2024061301-TV-Dealer-QtySIARebate-202408 | E63: 2024-08-01 | F63: 2024-08-31 | G63: NTSI | H63: 2024-08-01 | I63: 2024-08-31 | J63: 公司-電視-進獎台折(3台1%,7台2%,10台3%)-08~08 | K63: DCS_TT | L63: DCS_TT | M63: TW | O63: % | P63: 進獎台折(3台1%,7台2%,10台3%) | R63: 65QNED91TTA.ATT | T63: 0
A64: DCS_TT | B64: DCS_TT | C64: TT-NTSI-20240624-0021 | D64: HETV2024061301-TV-Dealer-QtySIARebate-202408 | E64: 2024-08-01 | F64: 2024-08-31 | G64: NTSI | H64: 2024-08-01 | I64: 2024-08-31 | J64: 公司-電視-進獎台折(3台1%,7台2%,10台3%)-08~08 | K64: DCS_TT | L64: DCS_TT | M64: TW | O64: % | P64: 進獎台折(3台1%,7台2%,10台3%) | R64: 75QNED86TTA.ATT | T64: 0
A65: DCS_TT | B65: DCS_TT | C65: TT-NTSI-20240624-0021 | D65: HETV2024061301-TV-Dealer-QtySIARebate-202408 | E65: 2024-08-01 | F65: 2024-08-31 | G65: NTSI | H65: 2024-08-01 | I65: 2024-08-31 | J65: 公司-電視-進獎台折(3台1%,7台2%,10台3%)-08~08 | K65: DCS_TT | L65: DCS_TT | M65: TW | O65: % | P65: 進獎台折(3台1%,7台2%,10台3%) | R65: 65QNED80TTA.ATT | T65: 0
A66: DCS_TT | B66: DCS_TT | C66: TT-NTSI-20240624-0021 | D66: HETV2024061301-TV-Dealer-QtySIARebate-202408 | E66: 2024-08-01 | F66: 2024-08-31 | G66: =MID(C66,4,4) -> NTSI | H66: 2024-08-01 | I66: 2024-08-31 | J66: 公司-電視-進獎台折(3台1%,7台2%,10台3%)-08~08 | K66: DCS_TT | L66: DCS_TT | M66: TW | O66: % | P66: 進獎台折(3台1%,7台2%,10台3%) | R66: OLED65G4PTA.ATT | T66: 0
A67: DCS_TT | B67: =K67 -> DCS_TT | C67: TT-NTSI-20240624-0021 | D67: HETV2024061301-TV-Dealer-QtySIARebate-202408 | E67: 2024-08-01 | F67: 2024-08-31 | G67: NTSI | H67: =E67 -> 2024-08-01 | I67: =F67 -> 2024-08-31 | J67: 公司-電視-進獎台折(3台1%,7台2%,10台3%)-08~08 | K67: DCS_TT | L67: DCS_TT | M67: TW | O67: % | P67: 進獎台折(3台1%,7台2%,10台3%) | R67: OLED55C4PTA.ATT | T67: 0
A68: DCS_TT | B68: DCS_TT | C68: TT-NTSI-20240624-0021 | D68: HETV2024061301-TV-Dealer-QtySIARebate-202408 | E68: 2024-08-01 | F68: 2024-08-31 | G68: NTSI | H68: 2024-08-01 | I68: 2024-08-31 | J68: 公司-電視-進獎台折(3台1%,7台2%,10台3%)-08~08 | K68: DCS_TT | L68: DCS_TT | M68: TW | O68: % | P68: 進獎台折(3台1%,7台2%,10台3%) | R68: OLED42C4PTA.ATT | T68: 0
A69: DCS_TT | B69: DCS_TT | C69: TT-NTSI-20240624-0021 | D69: HETV2024061301-TV-Dealer-QtySIARebate-202408 | E69: 2024-08-01 | F69: 2024-08-31 | G69: NTSI | H69: 2024-08-01 | I69: 2024-08-31 | J69: 公司-電視-進獎台折(3台1%,7台2%,10台3%)-08~08 | K69: DCS_TT | L69: DCS_TT | M69: TW | O69: % | P69: 進獎台折(3台1%,7台2%,10台3%) | R69: 55QNED80TTA.ATT | T69: 0
A70: =IFERROR(VLOOKUP(N70,多CODE,2,0),IF(RIGHT($B70,1)="H",LEFT($B70,11)&"B",IFERROR(VLOOKUP($B70,SHIP,3,0),$B70))) -> DCS_TT | B70: DCS_TT | C70: TT-NTSI-20240624-0021 | D70: HETV2024061301-TV-Dealer-QtySIARebate-202408 | E70: 2024-08-01 | F70: 2024-08-31 | G70: NTSI | H70: 2024-08-01 | I70: 2024-08-31 | J70: 公司-電視-進獎台折(3台1%,7台2%,10台3%)-08~08 | K70: DCS_TT | L70: DCS_TT | M70: TW | O70: % | P70: 進獎台折(3台1%,7台2%,10台3%) | R70: OLED77M4PTA.ATT | T70: 0
A71: DCS_TT | B71: DCS_TT | C71: TT-NTSI-20240624-0021 | D71: HETV2024061301-TV-Dealer-QtySIARebate-202408 | E71: 2024-08-01 | F71: 2024-08-31 | G71: NTSI | H71: 2024-08-01 | I71: 2024-08-31 | J71: 公司-電視-進獎台折(3台1%,7台2%,10台3%)-08~08 | K71: DCS_TT | L71: DCS_TT | M71: TW | O71: % | P71: 進獎台折(3台1%,7台2%,10台3%) | R71: OLED55G4PTA.ATT | T71: 0
A72: DCS_TT | B72: DCS_TT | C72: TT-NTSI-20240624-0021 | D72: HETV2024061301-TV-Dealer-QtySIARebate-202408 | E72: 2024-08-01 | F72: 2024-08-31 | G72: NTSI | H72: 2024-08-01 | I72: 2024-08-31 | J72: 公司-電視-進獎台折(3台1%,7台2%,10台3%)-08~08 | K72: DCS_TT | L72: DCS_TT | M72: TW | O72: % | P72: 進獎台折(3台1%,7台2%,10台3%) | R72: OLED77C4PTA.ATT | T72: 0
A73: DCS_TT | B73: DCS_TT | C73: TT-NTSI-20240624-0021 | D73: HETV2024061301-TV-Dealer-QtySIARebate-202408 | E73: 2024-08-01 | F73: 2024-08-31 | G73: NTSI | H73: 2024-08-01 | I73: 2024-08-31 | J73: 公司-電視-進獎台折(3台1%,7台2%,10台3%)-08~08 | K73: DCS_TT | L73: DCS_TT | M73: TW | O73: % | P73: 進獎台折(3台1%,7台2%,10台3%) | R73: OLED48C4PTA.ATT | T73: 0
A74: DCS_TT | B74: DCS_TT | C74: TT-NTSI-20240624-0021 | D74: HETV2024061301-TV-Dealer-QtySIARebate-202408 | E74: 2024-08-01 | F74: 2024-08-31 | G74: NTSI | H74: 2024-08-01 | I74: 2024-08-31 | J74: 公司-電視-進獎台折(3台1%,7台2%,10台3%)-08~08 | K74: DCS_TT | L74: DCS_TT | M74: TW | O74: % | P74: 進獎台折(3台1%,7台2%,10台3%) | R74: 86QNED80TTA.ATT | T74: 0
A75: DCS_TT | B75: DCS_TT | C75: TT-NTSI-20240624-0021 | D75: HETV2024061301-TV-Dealer-QtySIARebate-202408 | E75: 2024-08-01 | F75: 2024-08-31 | G75: NTSI | H75: 2024-08-01 | I75: 2024-08-31 | J75: 公司-電視-進獎台折(3台1%,7台2%,10台3%)-08~08 | K75: DCS_TT | L75: DCS_TT | M75: TW | O75: % | P75: 進獎台折(3台1%,7台2%,10台3%) | R75: OLED65C4PTA.ATT | T75: 0
A76: DCS_TT | B76: DCS_TT | C76: TT-NTSI-20240624-0021 | D76: HETV2024061301-TV-Dealer-QtySIARebate-202408 | E76: 2024-08-01 | F76: 2024-08-31 | G76: NTSI | H76: 2024-08-01 | I76: 2024-08-31 | J76: 公司-電視-進獎台折(3台1%,7台2%,10台3%)-08~08 | K76: DCS_TT | L76: DCS_TT | M76: TW | O76: % | P76: 進獎台折(3台1%,7台2%,10台3%) | R76: 65QNED86TTA.ATT | T76: 0
A77: DCS_TT | B77: DCS_TT | C77: TT-NTSI-20240624-0021 | D77: HETV2024061301-TV-Dealer-QtySIARebate-202408 | E77: 2024-08-01 | F77: 2024-08-31 | G77: NTSI | H77: 2024-08-01 | I77: 2024-08-31 | J77: 公司-電視-進獎台折(3台1%,7台2%,10台3%)-08~08 | K77: DCS_TT | L77: DCS_TT | M77: TW | O77: % | P77: 進獎台折(3台1%,7台2%,10台3%) | R77: 75QNED91TTA.ATT | T77: 0
A78: DCS_TT | B78: DCS_TT | C78: TT-NTSI-20240624-0021 | D78: HETV2024061301-TV-Dealer-QtySIARebate-202408 | E78: 2024-08-01 | F78: 2024-08-31 | G78: NTSI | H78: 2024-08-01 | I78: 2024-08-31 | J78: 公司-電視-進獎台折(3台1%,7台2%,10台3%)-08~08 | K78: DCS_TT | L78: DCS_TT | M78: TW | O78: % | P78: 進獎台折(3台1%,7台2%,10台3%) | R78: 43QNED80TTA.ATT | T78: 0
A79: DCS_TT | B79: DCS_TT | C79: TT-NTSI-20240624-0021 | D79: HETV2024061301-TV-Dealer-QtySIARebate-202408 | E79: 2024-08-01 | F79: 2024-08-31 | G79: NTSI | H79: 2024-08-01 | I79: 2024-08-31 | J79: 公司-電視-進獎台折(3台1%,7台2%,10台3%)-08~08 | K79: DCS_TT | L79: DCS_TT | M79: TW | O79: % | P79: 進獎台折(3台1%,7台2%,10台3%) | R79: 75QNED80TTA.ATT | T79: 0
A80: DCS_TT | B80: DCS_TT | C80: TT-NTSI-20240624-0021 | D80: HETV2024061301-TV-Dealer-QtySIARebate-202408 | E80: 2024-08-01 | F80: 2024-08-31 | G80: NTSI | H80: 2024-08-01 | I80: 2024-08-31 | J80: 公司-電視-進獎台折(3台1%,7台2%,10台3%)-08~08 | K80: DCS_TT | L80: DCS_TT | M80: TW | O80: % | P80: 進獎台折(3台1%,7台2%,10台3%) | R80: OLED83C4PTA.ATT | T80: 0
A81: DCS_TT | B81: DCS_TT | C81: TT-NTSI-20240624-0021 | D81: HETV2024061301-TV-Dealer-QtySIARebate-202408 | E81: 2024-08-01 | F81: 2024-08-31 | G81: NTSI | H81: 2024-08-01 | I81: 2024-08-31 | J81: 公司-電視-進獎台折(3台1%,7台2%,10台3%)-08~08 | K81: DCS_TT | L81: DCS_TT | M81: TW | O81: % | P81: 進獎台折(3台1%,7台2%,10台3%) | R81: OLED55B4PTA.ATT | T81: 0
A82: DCS_TT | B82: DCS_TT | C82: TT-NTSI-20240624-0021 | D82: HETV2024061301-TV-Dealer-QtySIARebate-202408 | E82: 2024-08-01 | F82: 2024-08-31 | G82: NTSI | H82: 2024-08-01 | I82: 2024-08-31 | J82: 公司-電視-進獎台折(3台1%,7台2%,10台3%)-08~08 | K82: DCS_TT | L82: DCS_TT | M82: TW | O82: % | P82: 進獎台折(3台1%,7台2%,10台3%) | R82: 86QNED91TTA.ATT | T82: 0
A83: DCS_TT | B83: DCS_TT | C83: TT-NTSI-20240624-0021 | D83: HETV2024061301-TV-Dealer-QtySIARebate-202408 | E83: 2024-08-01 | F83: 2024-08-31 | G83: NTSI | H83: 2024-08-01 | I83: 2024-08-31 | J83: 公司-電視-進獎台折(3台1%,7台2%,10台3%)-08~08 | K83: DCS_TT | L83: DCS_TT | M83: TW | O83: % | P83: 進獎台折(3台1%,7台2%,10台3%) | R83: 55QNED86TTA.ATT | T83: 0
A84: DLC_TT | B84: DLC_TT | C84: TT-NTSI-20240624-0021 | D84: HETV2024061301-TV-Dealer-QtySIARebate-202408 | E84: 2024-08-01 | F84: 2024-08-31 | G84: NTSI | H84: 2024-08-01 | I84: 2024-08-31 | J84: 公司-電視-進獎台折(3台1%,7台2%,10台3%)-08~08 | K84: DLC_TT | L84: DLC_TT | M84: TW | O84: % | P84: 進獎台折(3台1%,7台2%,10台3%) | R84: 65ART90ESQA.ATT | T84: 0
A85: DLC_TT | B85: DLC_TT | C85: TT-NTSI-20240624-0021 | D85: HETV2024061301-TV-Dealer-QtySIARebate-202408 | E85: 2024-08-01 | F85: 2024-08-31 | G85: NTSI | H85: 2024-08-01 | I85: 2024-08-31 | J85: 公司-電視-進獎台折(3台1%,7台2%,10台3%)-08~08 | K85: DLC_TT | L85: DLC_TT | M85: TW | O85: % | P85: 進獎台折(3台1%,7台2%,10台3%) | R85: OLED97G2PSA.ATT | T85: 0
A86: DLC_TT | B86: DLC_TT | C86: TT-NTSI-20240624-0021 | D86: HETV2024061301-TV-Dealer-QtySIARebate-202408 | E86: 2024-08-01 | F86: 2024-08-31 | G86: NTSI | H86: 2024-08-01 | I86: 2024-08-31 | J86: 公司-電視-進獎台折(3台1%,7台2%,10台3%)-08~08 | K86: DLC_TT | L86: DLC_TT | M86: TW | O86: % | P86: 進獎台折(3台1%,7台2%,10台3%) | R86: 55LX1QPSA.ATT | T86: 0
A87: DLC_TT | B87: DLC_TT | C87: TT-NTSI-20240624-0021 | D87: HETV2024061301-TV-Dealer-QtySIARebate-202408 | E87: 2024-08-01 | F87: 2024-08-31 | G87: NTSI | H87: 2024-08-01 | I87: 2024-08-31 | J87: 公司-電視-進獎台折(3台1%,7台2%,10台3%)-08~08 | K87: DLC_TT | L87: DLC_TT | M87: TW | O87: % | P87: 進獎台折(3台1%,7台2%,10台3%) | R87: 42LX3QPSA.ATT | T87: 0
A88: DLC_TT | B88: DLC_TT | C88: TT-NTSI-20240624-0021 | D88: HETV2024061301-TV-Dealer-QtySIARebate-202408 | E88: 2024-08-01 | F88: 2024-08-31 | G88: NTSI | H88: 2024-08-01 | I88: 2024-08-31 | J88: 公司-電視-進獎台折(3台1%,7台2%,10台3%)-08~08 | K88: DLC_TT | L88: DLC_TT | M88: TW | O88: % | P88: 進獎台折(3台1%,7台2%,10台3%) | R88: OLED83G3PSA.ATT | T88: 0
A89: DLC_TT | B89: DLC_TT | C89: TT-NTSI-20240624-0021 | D89: HETV2024061301-TV-Dealer-QtySIARebate-202408 | E89: 2024-08-01 | F89: 2024-08-31 | G89: NTSI | H89: 2024-08-01 | I89: 2024-08-31 | J89: 公司-電視-進獎台折(3台1%,7台2%,10台3%)-08~08 | K89: DLC_TT | L89: DLC_TT | M89: TW | O89: % | P89: 進獎台折(3台1%,7台2%,10台3%) | R89: OLED65G3PSA.ATT | T89: 0
A90: DLC_TT | B90: DLC_TT | C90: TT-NTSI-20240624-0021 | D90: HETV2024061301-TV-Dealer-QtySIARebate-202408 | E90: 2024-08-01 | F90: 2024-08-31 | G90: NTSI | H90: 2024-08-01 | I90: 2024-08-31 | J90: 公司-電視-進獎台折(3台1%,7台2%,10台3%)-08~08 | K90: DLC_TT | L90: DLC_TT | M90: TW | O90: % | P90: 進獎台折(3台1%,7台2%,10台3%) | R90: 75QNED86SRA.ATT | T90: 0
A91: DLC_TT | B91: DLC_TT | C91: TT-NTSI-20240624-0021 | D91: HETV2024061301-TV-Dealer-QtySIARebate-202408 | E91: 2024-08-01 | F91: 2024-08-31 | G91: NTSI | H91: 2024-08-01 | I91: 2024-08-31 | J91: 公司-電視-進獎台折(3台1%,7台2%,10台3%)-08~08 | K91: DLC_TT | L91: DLC_TT | M91: TW | O91: % | P91: 進獎台折(3台1%,7台2%,10台3%) | R91: 75NANO77SRA.ATT | T91: 0
A92: DLC_TT | B92: DLC_TT | C92: TT-NTSI-20240624-0021 | D92: HETV2024061301-TV-Dealer-QtySIARebate-202408 | E92: 2024-08-01 | F92: 2024-08-31 | G92: NTSI | H92: 2024-08-01 | I92: 2024-08-31 | J92: 公司-電視-進獎台折(3台1%,7台2%,10台3%)-08~08 | K92: DLC_TT | L92: DLC_TT | M92: TW | O92: % | P92: 進獎台折(3台1%,7台2%,10台3%) | R92: 65NANO77SRA.ATT | T92: 0
A93: DLC_TT | B93: DLC_TT | C93: TT-NTSI-20240624-0021 | D93: HETV2024061301-TV-Dealer-QtySIARebate-202408 | E93: 2024-08-01 | F93: 2024-08-31 | G93: NTSI | H93: 2024-08-01 | I93: 2024-08-31 | J93: 公司-電視-進獎台折(3台1%,7台2%,10台3%)-08~08 | K93: DLC_TT | L93: DLC_TT | M93: TW | O93: % | P93: 進獎台折(3台1%,7台2%,10台3%) | R93: OLED88Z3PSA.ATT | T93: 0
A94: DLC_TT | B94: DLC_TT | C94: TT-NTSI-20240624-0021 | D94: HETV2024061301-TV-Dealer-QtySIARebate-202408 | E94: 2024-08-01 | F94: 2024-08-31 | G94: NTSI | H94: 2024-08-01 | I94: 2024-08-31 | J94: 公司-電視-進獎台折(3台1%,7台2%,10台3%)-08~08 | K94: DLC_TT | L94: DLC_TT | M94: TW | O94: % | P94: 進獎台折(3台1%,7台2%,10台3%) | R94: OLED55C3PSA.ATT | T94: 0
A95: DLC_TT | B95: DLC_TT | C95: TT-NTSI-20240624-0021 | D95: HETV2024061301-TV-Dealer-QtySIARebate-202408 | E95: 2024-08-01 | F95: 2024-08-31 | G95: NTSI | H95: 2024-08-01 | I95: 2024-08-31 | J95: 公司-電視-進獎台折(3台1%,7台2%,10台3%)-08~08 | K95: DLC_TT | L95: DLC_TT | M95: TW | O95: % | P95: 進獎台折(3台1%,7台2%,10台3%) | R95: 65QNED86SRA.ATT | T95: 0
A96: DLC_TT | B96: DLC_TT | C96: TT-NTSI-20240624-0021 | D96: HETV2024061301-TV-Dealer-QtySIARebate-202408 | E96: 2024-08-01 | F96: 2024-08-31 | G96: NTSI | H96: 2024-08-01 | I96: 2024-08-31 | J96: 公司-電視-進獎台折(3台1%,7台2%,10台3%)-08~08 | K96: DLC_TT | L96: DLC_TT | M96: TW | O96: % | P96: 進獎台折(3台1%,7台2%,10台3%) | R96: 75QNED81SRA.ATT | T96: 0
A97: DLC_TT | B97: DLC_TT | C97: TT-NTSI-20240624-0021 | D97: HETV2024061301-TV-Dealer-QtySIARebate-202408 | E97: 2024-08-01 | F97: 2024-08-31 | G97: NTSI | H97: 2024-08-01 | I97: 2024-08-31 | J97: 公司-電視-進獎台折(3台1%,7台2%,10台3%)-08~08 | K97: DLC_TT | L97: DLC_TT | M97: TW | O97: % | P97: 進獎台折(3台1%,7台2%,10台3%) | R97: OLED83C3PSA.ATT | T97: 0
A98: DLC_TT | B98: DLC_TT | C98: TT-NTSI-20240624-0021 | D98: HETV2024061301-TV-Dealer-QtySIARebate-202408 | E98: 2024-08-01 | F98: 2024-08-31 | G98: NTSI | H98: 2024-08-01 | I98: 2024-08-31 | J98: 公司-電視-進獎台折(3台1%,7台2%,10台3%)-08~08 | K98: DLC_TT | L98: DLC_TT | M98: TW | O98: % | P98: 進獎台折(3台1%,7台2%,10台3%) | R98: OLED48C3PSA.ATT | T98: 0
A99: DLC_TT | B99: DLC_TT | C99: TT-NTSI-20240624-0021 | D99: HETV2024061301-TV-Dealer-QtySIARebate-202408 | E99: 2024-08-01 | F99: 2024-08-31 | G99: NTSI | H99: 2024-08-01 | I99: 2024-08-31 | J99: 公司-電視-進獎台折(3台1%,7台2%,10台3%)-08~08 | K99: DLC_TT | L99: DLC_TT | M99: TW | O99: % | P99: 進獎台折(3台1%,7台2%,10台3%) | R99: OLED42C3PSA.ATT | T99: 0
A100: DLC_TT | B100: DLC_TT | C100: TT-NTSI-20240624-0021 | D100: HETV2024061301-TV-Dealer-QtySIARebate-202408 | E100: 2024-08-01 | F100: 2024-08-31 | G100: NTSI | H100: 2024-08-01 | I100: 2024-08-31 | J100: 公司-電視-進獎台折(3台1%,7台2%,10台3%)-08~08 | K100: DLC_TT | L100: DLC_TT | M100: TW | O100: % | P100: 進獎台折(3台1%,7台2%,10台3%) | R100: 55NANO77SRA.ATT | T100: 0
A101: DLC_TT | B101: DLC_TT | C101: TT-NTSI-20240624-0021 | D101: HETV2024061301-TV-Dealer-QtySIARebate-202408 | E101: 2024-08-01 | F101: 2024-08-31 | G101: NTSI | H101: 2024-08-01 | I101: 2024-08-31 | J101: 公司-電視-進獎台折(3台1%,7台2%,10台3%)-08~08 | K101: DLC_TT | L101: DLC_TT | M101: TW | O101: % | P101: 進獎台折(3台1%,7台2%,10台3%) | R101: 86QNED86SRA.ATT | T101: 0
A102: DLC_TT | B102: DLC_TT | C102: TT-NTSI-20240624-0021 | D102: HETV2024061301-TV-Dealer-QtySIARebate-202408 | E102: 2024-08-01 | F102: 2024-08-31 | G102: NTSI | H102: 2024-08-01 | I102: 2024-08-31 | J102: 公司-電視-進獎台折(3台1%,7台2%,10台3%)-08~08 | K102: DLC_TT | L102: DLC_TT | M102: TW | O102: % | P102: 進獎台折(3台1%,7台2%,10台3%) | R102: OLED55G3PSA.ATT | T102: 0
A103: DLC_TT | B103: DLC_TT | C103: TT-NTSI-20240624-0021 | D103: HETV2024061301-TV-Dealer-QtySIARebate-202408 | E103: 2024-08-01 | F103: 2024-08-31 | G103: NTSI | H103: 2024-08-01 | I103: 2024-08-31 | J103: 公司-電視-進獎台折(3台1%,7台2%,10台3%)-08~08 | K103: DLC_TT | L103: DLC_TT | M103: TW | O103: % | P103: 進獎台折(3台1%,7台2%,10台3%) | R103: OLED77C3PSA.ATT | T103: 0
A104: DLC_TT | B104: DLC_TT | C104: TT-NTSI-20240624-0021 | D104: HETV2024061301-TV-Dealer-QtySIARebate-202408 | E104: 2024-08-01 | F104: 2024-08-31 | G104: NTSI | H104: 2024-08-01 | I104: 2024-08-31 | J104: 公司-電視-進獎台折(3台1%,7台2%,10台3%)-08~08 | K104: DLC_TT | L104: DLC_TT | M104: TW | O104: % | P104: 進獎台折(3台1%,7台2%,10台3%) | R104: OLED65C3PSA.ATT | T104: 0
A105: DLC_TT | B105: DLC_TT | C105: TT-NTSI-20240624-0021 | D105: HETV2024061301-TV-Dealer-QtySIARebate-202408 | E105: 2024-08-01 | F105: 2024-08-31 | G105: NTSI | H105: 2024-08-01 | I105: 2024-08-31 | J105: 公司-電視-進獎台折(3台1%,7台2%,10台3%)-08~08 | K105: DLC_TT | L105: DLC_TT | M105: TW | O105: % | P105: 進獎台折(3台1%,7台2%,10台3%) | R105: 55QNED81SRA.ATT | T105: 0
A106: DLC_TT | B106: DLC_TT | C106: TT-NTSI-20240624-0021 | D106: HETV2024061301-TV-Dealer-QtySIARebate-202408 | E106: 2024-08-01 | F106: 2024-08-31 | G106: NTSI | H106: 2024-08-01 | I106: 2024-08-31 | J106: 公司-電視-進獎台折(3台1%,7台2%,10台3%)-08~08 | K106: DLC_TT | L106: DLC_TT | M106: TW | O106: % | P106: 進獎台折(3台1%,7台2%,10台3%) | R106: 75QNED75SRT.ATT | T106: 0
A107: DLC_TT | B107: DLC_TT | C107: TT-NTSI-20240624-0021 | D107: HETV2024061301-TV-Dealer-QtySIARebate-202408 | E107: 2024-08-01 | F107: 2024-08-31 | G107: NTSI | H107: 2024-08-01 | I107: 2024-08-31 | J107: 公司-電視-進獎台折(3台1%,7台2%,10台3%)-08~08 | K107: DLC_TT | L107: DLC_TT | M107: TW | O107: % | P107: 進獎台折(3台1%,7台2%,10台3%) | R107: 43QNED75SRT.ATT | T107: 0
A108: DLC_TT | B108: DLC_TT | C108: TT-NTSI-20240624-0021 | D108: HETV2024061301-TV-Dealer-QtySIARebate-202408 | E108: 2024-08-01 | F108: 2024-08-31 | G108: NTSI | H108: 2024-08-01 | I108: 2024-08-31 | J108: 公司-電視-進獎台折(3台1%,7台2%,10台3%)-08~08 | K108: DLC_TT | L108: DLC_TT | M108: TW | O108: % | P108: 進獎台折(3台1%,7台2%,10台3%) | R108: OLED83G4PTA.ATT | T108: 0
A109: DLC_TT | B109: DLC_TT | C109: TT-NTSI-20240624-0021 | D109: HETV2024061301-TV-Dealer-QtySIARebate-202408 | E109: 2024-08-01 | F109: 2024-08-31 | G109: NTSI | H109: 2024-08-01 | I109: 2024-08-31 | J109: 公司-電視-進獎台折(3台1%,7台2%,10台3%)-08~08 | K109: DLC_TT | L109: DLC_TT | M109: TW | O109: % | P109: 進獎台折(3台1%,7台2%,10台3%) | R109: 65QNED91TTA.ATT | T109: 0
A110: DLC_TT | B110: DLC_TT | C110: TT-NTSI-20240624-0021 | D110: HETV2024061301-TV-Dealer-QtySIARebate-202408 | E110: 2024-08-01 | F110: 2024-08-31 | G110: NTSI | H110: 2024-08-01 | I110: 2024-08-31 | J110: 公司-電視-進獎台折(3台1%,7台2%,10台3%)-08~08 | K110: DLC_TT | L110: DLC_TT | M110: TW | O110: % | P110: 進獎台折(3台1%,7台2%,10台3%) | R110: 75QNED86TTA.ATT | T110: 0
A111: DLC_TT | B111: DLC_TT | C111: TT-NTSI-20240624-0021 | D111: HETV2024061301-TV-Dealer-QtySIARebate-202408 | E111: 2024-08-01 | F111: 2024-08-31 | G111: NTSI | H111: 2024-08-01 | I111: 2024-08-31 | J111: 公司-電視-進獎台折(3台1%,7台2%,10台3%)-08~08 | K111: DLC_TT | L111: DLC_TT | M111: TW | O111: % | P111: 進獎台折(3台1%,7台2%,10台3%) | R111: 65QNED80TTA.ATT | T111: 0
A112: DLC_TT | B112: DLC_TT | C112: TT-NTSI-20240624-0021 | D112: HETV2024061301-TV-Dealer-QtySIARebate-202408 | E112: 2024-08-01 | F112: 2024-08-31 | G112: NTSI | H112: 2024-08-01 | I112: 2024-08-31 | J112: 公司-電視-進獎台折(3台1%,7台2%,10台3%)-08~08 | K112: DLC_TT | L112: DLC_TT | M112: TW | O112: % | P112: 進獎台折(3台1%,7台2%,10台3%) | R112: OLED65G4PTA.ATT | T112: 0
A113: DLC_TT | B113: DLC_TT | C113: TT-NTSI-20240624-0021 | D113: HETV2024061301-TV-Dealer-QtySIARebate-202408 | E113: 2024-08-01 | F113: 2024-08-31 | G113: NTSI | H113: 2024-08-01 | I113: 2024-08-31 | J113: 公司-電視-進獎台折(3台1%,7台2%,10台3%)-08~08 | K113: DLC_TT | L113: DLC_TT | M113: TW | O113: % | P113: 進獎台折(3台1%,7台2%,10台3%) | R113: OLED55C4PTA.ATT | T113: 0
A114: DLC_TT | B114: DLC_TT | C114: TT-NTSI-20240624-0021 | D114: HETV2024061301-TV-Dealer-QtySIARebate-202408 | E114: 2024-08-01 | F114: 2024-08-31 | G114: NTSI | H114: 2024-08-01 | I114: 2024-08-31 | J114: 公司-電視-進獎台折(3台1%,7台2%,10台3%)-08~08 | K114: DLC_TT | L114: DLC_TT | M114: TW | O114: % | P114: 進獎台折(3台1%,7台2%,10台3%) | R114: OLED42C4PTA.ATT | T114: 0
A115: DLC_TT | B115: DLC_TT | C115: TT-NTSI-20240624-0021 | D115: HETV2024061301-TV-Dealer-QtySIARebate-202408 | E115: 2024-08-01 | F115: 2024-08-31 | G115: NTSI | H115: 2024-08-01 | I115: 2024-08-31 | J115: 公司-電視-進獎台折(3台1%,7台2%,10台3%)-08~08 | K115: DLC_TT | L115: DLC_TT | M115: TW | O115: % | P115: 進獎台折(3台1%,7台2%,10台3%) | R115: 55QNED80TTA.ATT | T115: 0
A116: DLC_TT | B116: DLC_TT | C116: TT-NTSI-20240624-0021 | D116: HETV2024061301-TV-Dealer-QtySIARebate-202408 | E116: 2024-08-01 | F116: 2024-08-31 | G116: NTSI | H116: 2024-08-01 | I116: 2024-08-31 | J116: 公司-電視-進獎台折(3台1%,7台2%,10台3%)-08~08 | K116: DLC_TT | L116: DLC_TT | M116: TW | O116: % | P116: 進獎台折(3台1%,7台2%,10台3%) | R116: OLED77M4PTA.ATT | T116: 0
A117: DLC_TT | B117: DLC_TT | C117: TT-NTSI-20240624-0021 | D117: HETV2024061301-TV-Dealer-QtySIARebate-202408 | E117: 2024-08-01 | F117: 2024-08-31 | G117: NTSI | H117: 2024-08-01 | I117: 2024-08-31 | J117: 公司-電視-進獎台折(3台1%,7台2%,10台3%)-08~08 | K117: DLC_TT | L117: DLC_TT | M117: TW | O117: % | P117: 進獎台折(3台1%,7台2%,10台3%) | R117: OLED55G4PTA.ATT | T117: 0
A118: DLC_TT | B118: DLC_TT | C118: TT-NTSI-20240624-0021 | D118: HETV2024061301-TV-Dealer-QtySIARebate-202408 | E118: 2024-08-01 | F118: 2024-08-31 | G118: NTSI | H118: 2024-08-01 | I118: 2024-08-31 | J118: 公司-電視-進獎台折(3台1%,7台2%,10台3%)-08~08 | K118: DLC_TT | L118: DLC_TT | M118: TW | O118: % | P118: 進獎台折(3台1%,7台2%,10台3%) | R118: OLED77C4PTA.ATT | T118: 0
A119: DLC_TT | B119: DLC_TT | C119: TT-NTSI-20240624-0021 | D119: HETV2024061301-TV-Dealer-QtySIARebate-202408 | E119: 2024-08-01 | F119: 2024-08-31 | G119: NTSI | H119: 2024-08-01 | I119: 2024-08-31 | J119: 公司-電視-進獎台折(3台1%,7台2%,10台3%)-08~08 | K119: DLC_TT | L119: DLC_TT | M119: TW | O119: % | P119: 進獎台折(3台1%,7台2%,10台3%) | R119: OLED48C4PTA.ATT | T119: 0
A120: DLC_TT | B120: DLC_TT | C120: TT-NTSI-20240624-0021 | D120: HETV2024061301-TV-Dealer-QtySIARebate-202408 | E120: 2024-08-01 | F120: 2024-08-31 | G120: NTSI | H120: 2024-08-01 | I120: 2024-08-31 | J120: 公司-電視-進獎台折(3台1%,7台2%,10台3%)-08~08 | K120: DLC_TT | L120: DLC_TT | M120: TW | O120: % | P120: 進獎台折(3台1%,7台2%,10台3%) | R120: 86QNED80TTA.ATT | T120: 0
A121: DLC_TT | B121: DLC_TT | C121: TT-NTSI-20240624-0021 | D121: HETV2024061301-TV-Dealer-QtySIARebate-202408 | E121: 2024-08-01 | F121: 2024-08-31 | G121: NTSI | H121: 2024-08-01 | I121: 2024-08-31 | J121: 公司-電視-進獎台折(3台1%,7台2%,10台3%)-08~08 | K121: DLC_TT | L121: DLC_TT | M121: TW | O121: % | P121: 進獎台折(3台1%,7台2%,10台3%) | R121: OLED65C4PTA.ATT | T121: 0
A122: DLC_TT | B122: DLC_TT | C122: TT-NTSI-20240624-0021 | D122: HETV2024061301-TV-Dealer-QtySIARebate-202408 | E122: 2024-08-01 | F122: 2024-08-31 | G122: NTSI | H122: 2024-08-01 | I122: 2024-08-31 | J122: 公司-電視-進獎台折(3台1%,7台2%,10台3%)-08~08 | K122: DLC_TT | L122: DLC_TT | M122: TW | O122: % | P122: 進獎台折(3台1%,7台2%,10台3%) | R122: 65QNED86TTA.ATT | T122: 0
A123: DLC_TT | B123: DLC_TT | C123: TT-NTSI-20240624-0021 | D123: HETV2024061301-TV-Dealer-QtySIARebate-202408 | E123: 2024-08-01 | F123: 2024-08-31 | G123: NTSI | H123: 2024-08-01 | I123: 2024-08-31 | J123: 公司-電視-進獎台折(3台1%,7台2%,10台3%)-08~08 | K123: DLC_TT | L123: DLC_TT | M123: TW | O123: % | P123: 進獎台折(3台1%,7台2%,10台3%) | R123: 75QNED91TTA.ATT | T123: 0
A124: DLC_TT | B124: DLC_TT | C124: TT-NTSI-20240624-0021 | D124: HETV2024061301-TV-Dealer-QtySIARebate-202408 | E124: 2024-08-01 | F124: 2024-08-31 | G124: NTSI | H124: 2024-08-01 | I124: 2024-08-31 | J124: 公司-電視-進獎台折(3台1%,7台2%,10台3%)-08~08 | K124: DLC_TT | L124: DLC_TT | M124: TW | O124: % | P124: 進獎台折(3台1%,7台2%,10台3%) | R124: 43QNED80TTA.ATT | T124: 0
A125: DLC_TT | B125: DLC_TT | C125: TT-NTSI-20240624-0021 | D125: HETV2024061301-TV-Dealer-QtySIARebate-202408 | E125: 2024-08-01 | F125: 2024-08-31 | G125: NTSI | H125: 2024-08-01 | I125: 2024-08-31 | J125: 公司-電視-進獎台折(3台1%,7台2%,10台3%)-08~08 | K125: DLC_TT | L125: DLC_TT | M125: TW | O125: % | P125: 進獎台折(3台1%,7台2%,10台3%) | R125: 75QNED80TTA.ATT | T125: 0
A126: DLC_TT | B126: DLC_TT | C126: TT-NTSI-20240624-0021 | D126: HETV2024061301-TV-Dealer-QtySIARebate-202408 | E126: 2024-08-01 | F126: 2024-08-31 | G126: NTSI | H126: 2024-08-01 | I126: 2024-08-31 | J126: 公司-電視-進獎台折(3台1%,7台2%,10台3%)-08~08 | K126: DLC_TT | L126: DLC_TT | M126: TW | O126: % | P126: 進獎台折(3台1%,7台2%,10台3%) | R126: OLED83C4PTA.ATT | T126: 0
A127: DLC_TT | B127: DLC_TT | C127: TT-NTSI-20240624-0021 | D127: HETV2024061301-TV-Dealer-QtySIARebate-202408 | E127: 2024-08-01 | F127: 2024-08-31 | G127: NTSI | H127: 2024-08-01 | I127: 2024-08-31 | J127: 公司-電視-進獎台折(3台1%,7台2%,10台3%)-08~08 | K127: DLC_TT | L127: DLC_TT | M127: TW | O127: % | P127: 進獎台折(3台1%,7台2%,10台3%) | R127: OLED55B4PTA.ATT | T127: 0
A128: DLC_TT | B128: DLC_TT | C128: TT-NTSI-20240624-0021 | D128: HETV2024061301-TV-Dealer-QtySIARebate-202408 | E128: 2024-08-01 | F128: 2024-08-31 | G128: NTSI | H128: 2024-08-01 | I128: 2024-08-31 | J128: 公司-電視-進獎台折(3台1%,7台2%,10台3%)-08~08 | K128: DLC_TT | L128: DLC_TT | M128: TW | O128: % | P128: 進獎台折(3台1%,7台2%,10台3%) | R128: 86QNED91TTA.ATT | T128: 0
A129: DLC_TT | B129: DLC_TT | C129: TT-NTSI-20240624-0021 | D129: HETV2024061301-TV-Dealer-QtySIARebate-202408 | E129: 2024-08-01 | F129: 2024-08-31 | G129: NTSI | H129: 2024-08-01 | I129: 2024-08-31 | J129: 公司-電視-進獎台折(3台1%,7台2%,10台3%)-08~08 | K129: DLC_TT | L129: DLC_TT | M129: TW | O129: % | P129: 進獎台折(3台1%,7台2%,10台3%) | R129: 55QNED86TTA.ATT | T129: 0
A130: SPD_TT | B130: SPD_TT | C130: TT-NTSI-20240624-0023 | D130: HETV2024061301-TV-Dealer-SPDQtySIARebate-202408 | E130: 2024-08-01 | F130: 2024-08-31 | G130: =MID(C130,4,4) -> NTSI | H130: 2024-08-01 | I130: 2024-08-31 | J130: 公司-電視-專售店進獎台折(1台2%,10台3%)-08~08 | K130: SPD_TT | L130: SPD_TT | M130: TW | O130: % | P130: 專售店進獎台折(1台2%,10台3%) | R130: 65ART90ESQA.ATT | T130: 0
A131: SPD_TT | B131: =K131 -> SPD_TT | C131: TT-NTSI-20240624-0023 | D131: HETV2024061301-TV-Dealer-SPDQtySIARebate-202408 | E131: 2024-08-01 | F131: 2024-08-31 | G131: NTSI | H131: =E131 -> 2024-08-01 | I131: =F131 -> 2024-08-31 | J131: 公司-電視-專售店進獎台折(1台2%,10台3%)-08~08 | K131: SPD_TT | L131: SPD_TT | M131: TW | O131: % | P131: 專售店進獎台折(1台2%,10台3%) | R131: OLED97G2PSA.ATT | T131: 0
A132: SPD_TT | B132: SPD_TT | C132: TT-NTSI-20240624-0023 | D132: HETV2024061301-TV-Dealer-SPDQtySIARebate-202408 | E132: 2024-08-01 | F132: 2024-08-31 | G132: NTSI | H132: 2024-08-01 | I132: 2024-08-31 | J132: 公司-電視-專售店進獎台折(1台2%,10台3%)-08~08 | K132: SPD_TT | L132: SPD_TT | M132: TW | O132: % | P132: 專售店進獎台折(1台2%,10台3%) | R132: 55LX1QPSA.ATT | T132: 0
A133: SPD_TT | B133: SPD_TT | C133: TT-NTSI-20240624-0023 | D133: HETV2024061301-TV-Dealer-SPDQtySIARebate-202408 | E133: 2024-08-01 | F133: 2024-08-31 | G133: NTSI | H133: 2024-08-01 | I133: 2024-08-31 | J133: 公司-電視-專售店進獎台折(1台2%,10台3%)-08~08 | K133: SPD_TT | L133: SPD_TT | M133: TW | O133: % | P133: 專售店進獎台折(1台2%,10台3%) | R133: 42LX3QPSA.ATT | T133: 0
A134: =IFERROR(VLOOKUP(N134,多CODE,2,0),IF(RIGHT($B134,1)="H",LEFT($B134,11)&"B",IFERROR(VLOOKUP($B134,SHIP,3,0),$B134))) -> SPD_TT | B134: SPD_TT | C134: TT-NTSI-20240624-0023 | D134: HETV2024061301-TV-Dealer-SPDQtySIARebate-202408 | E134: 2024-08-01 | F134: 2024-08-31 | G134: NTSI | H134: 2024-08-01 | I134: 2024-08-31 | J134: 公司-電視-專售店進獎台折(1台2%,10台3%)-08~08 | K134: SPD_TT | L134: SPD_TT | M134: TW | O134: % | P134: 專售店進獎台折(1台2%,10台3%) | R134: OLED83G3PSA.ATT | T134: 0
A135: SPD_TT | B135: SPD_TT | C135: TT-NTSI-20240624-0023 | D135: HETV2024061301-TV-Dealer-SPDQtySIARebate-202408 | E135: 2024-08-01 | F135: 2024-08-31 | G135: NTSI | H135: 2024-08-01 | I135: 2024-08-31 | J135: 公司-電視-專售店進獎台折(1台2%,10台3%)-08~08 | K135: SPD_TT | L135: SPD_TT | M135: TW | O135: % | P135: 專售店進獎台折(1台2%,10台3%) | R135: OLED65G3PSA.ATT | T135: 0
A136: SPD_TT | B136: SPD_TT | C136: TT-NTSI-20240624-0023 | D136: HETV2024061301-TV-Dealer-SPDQtySIARebate-202408 | E136: 2024-08-01 | F136: 2024-08-31 | G136: NTSI | H136: 2024-08-01 | I136: 2024-08-31 | J136: 公司-電視-專售店進獎台折(1台2%,10台3%)-08~08 | K136: SPD_TT | L136: SPD_TT | M136: TW | O136: % | P136: 專售店進獎台折(1台2%,10台3%) | R136: 75QNED86SRA.ATT | T136: 0
A137: SPD_TT | B137: SPD_TT | C137: TT-NTSI-20240624-0023 | D137: HETV2024061301-TV-Dealer-SPDQtySIARebate-202408 | E137: 2024-08-01 | F137: 2024-08-31 | G137: NTSI | H137: 2024-08-01 | I137: 2024-08-31 | J137: 公司-電視-專售店進獎台折(1台2%,10台3%)-08~08 | K137: SPD_TT | L137: SPD_TT | M137: TW | O137: % | P137: 專售店進獎台折(1台2%,10台3%) | R137: 75NANO77SRA.ATT | T137: 0
A138: SPD_TT | B138: SPD_TT | C138: TT-NTSI-20240624-0023 | D138: HETV2024061301-TV-Dealer-SPDQtySIARebate-202408 | E138: 2024-08-01 | F138: 2024-08-31 | G138: NTSI | H138: 2024-08-01 | I138: 2024-08-31 | J138: 公司-電視-專售店進獎台折(1台2%,10台3%)-08~08 | K138: SPD_TT | L138: SPD_TT | M138: TW | O138: % | P138: 專售店進獎台折(1台2%,10台3%) | R138: 65NANO77SRA.ATT | T138: 0
A139: SPD_TT | B139: SPD_TT | C139: TT-NTSI-20240624-0023 | D139: HETV2024061301-TV-Dealer-SPDQtySIARebate-202408 | E139: 2024-08-01 | F139: 2024-08-31 | G139: NTSI | H139: 2024-08-01 | I139: 2024-08-31 | J139: 公司-電視-專售店進獎台折(1台2%,10台3%)-08~08 | K139: SPD_TT | L139: SPD_TT | M139: TW | O139: % | P139: 專售店進獎台折(1台2%,10台3%) | R139: OLED88Z3PSA.ATT | T139: 0
A140: SPD_TT | B140: SPD_TT | C140: TT-NTSI-20240624-0023 | D140: HETV2024061301-TV-Dealer-SPDQtySIARebate-202408 | E140: 2024-08-01 | F140: 2024-08-31 | G140: NTSI | H140: 2024-08-01 | I140: 2024-08-31 | J140: 公司-電視-專售店進獎台折(1台2%,10台3%)-08~08 | K140: SPD_TT | L140: SPD_TT | M140: TW | O140: % | P140: 專售店進獎台折(1台2%,10台3%) | R140: OLED55C3PSA.ATT | T140: 0
A141: SPD_TT | B141: SPD_TT | C141: TT-NTSI-20240624-0023 | D141: HETV2024061301-TV-Dealer-SPDQtySIARebate-202408 | E141: 2024-08-01 | F141: 2024-08-31 | G141: NTSI | H141: 2024-08-01 | I141: 2024-08-31 | J141: 公司-電視-專售店進獎台折(1台2%,10台3%)-08~08 | K141: SPD_TT | L141: SPD_TT | M141: TW | O141: % | P141: 專售店進獎台折(1台2%,10台3%) | R141: 65QNED86SRA.ATT | T141: 0
A142: SPD_TT | B142: SPD_TT | C142: TT-NTSI-20240624-0023 | D142: HETV2024061301-TV-Dealer-SPDQtySIARebate-202408 | E142: 2024-08-01 | F142: 2024-08-31 | G142: NTSI | H142: 2024-08-01 | I142: 2024-08-31 | J142: 公司-電視-專售店進獎台折(1台2%,10台3%)-08~08 | K142: SPD_TT | L142: SPD_TT | M142: TW | O142: % | P142: 專售店進獎台折(1台2%,10台3%) | R142: 75QNED81SRA.ATT | T142: 0
A143: SPD_TT | B143: SPD_TT | C143: TT-NTSI-20240624-0023 | D143: HETV2024061301-TV-Dealer-SPDQtySIARebate-202408 | E143: 2024-08-01 | F143: 2024-08-31 | G143: NTSI | H143: 2024-08-01 | I143: 2024-08-31 | J143: 公司-電視-專售店進獎台折(1台2%,10台3%)-08~08 | K143: SPD_TT | L143: SPD_TT | M143: TW | O143: % | P143: 專售店進獎台折(1台2%,10台3%) | R143: OLED83C3PSA.ATT | T143: 0
A144: SPD_TT | B144: SPD_TT | C144: TT-NTSI-20240624-0023 | D144: HETV2024061301-TV-Dealer-SPDQtySIARebate-202408 | E144: 2024-08-01 | F144: 2024-08-31 | G144: NTSI | H144: 2024-08-01 | I144: 2024-08-31 | J144: 公司-電視-專售店進獎台折(1台2%,10台3%)-08~08 | K144: SPD_TT | L144: SPD_TT | M144: TW | O144: % | P144: 專售店進獎台折(1台2%,10台3%) | R144: OLED48C3PSA.ATT | T144: 0
A145: SPD_TT | B145: SPD_TT | C145: TT-NTSI-20240624-0023 | D145: HETV2024061301-TV-Dealer-SPDQtySIARebate-202408 | E145: 2024-08-01 | F145: 2024-08-31 | G145: NTSI | H145: 2024-08-01 | I145: 2024-08-31 | J145: 公司-電視-專售店進獎台折(1台2%,10台3%)-08~08 | K145: SPD_TT | L145: SPD_TT | M145: TW | O145: % | P145: 專售店進獎台折(1台2%,10台3%) | R145: OLED42C3PSA.ATT | T145: 0
A146: SPD_TT | B146: SPD_TT | C146: TT-NTSI-20240624-0023 | D146: HETV2024061301-TV-Dealer-SPDQtySIARebate-202408 | E146: 2024-08-01 | F146: 2024-08-31 | G146: NTSI | H146: 2024-08-01 | I146: 2024-08-31 | J146: 公司-電視-專售店進獎台折(1台2%,10台3%)-08~08 | K146: SPD_TT | L146: SPD_TT | M146: TW | O146: % | P146: 專售店進獎台折(1台2%,10台3%) | R146: 55NANO77SRA.ATT | T146: 0
A147: SPD_TT | B147: SPD_TT | C147: TT-NTSI-20240624-0023 | D147: HETV2024061301-TV-Dealer-SPDQtySIARebate-202408 | E147: 2024-08-01 | F147: 2024-08-31 | G147: NTSI | H147: 2024-08-01 | I147: 2024-08-31 | J147: 公司-電視-專售店進獎台折(1台2%,10台3%)-08~08 | K147: SPD_TT | L147: SPD_TT | M147: TW | O147: % | P147: 專售店進獎台折(1台2%,10台3%) | R147: 86QNED86SRA.ATT | T147: 0
A148: SPD_TT | B148: SPD_TT | C148: TT-NTSI-20240624-0023 | D148: HETV2024061301-TV-Dealer-SPDQtySIARebate-202408 | E148: 2024-08-01 | F148: 2024-08-31 | G148: NTSI | H148: 2024-08-01 | I148: 2024-08-31 | J148: 公司-電視-專售店進獎台折(1台2%,10台3%)-08~08 | K148: SPD_TT | L148: SPD_TT | M148: TW | O148: % | P148: 專售店進獎台折(1台2%,10台3%) | R148: OLED55G3PSA.ATT | T148: 0
A149: SPD_TT | B149: SPD_TT | C149: TT-NTSI-20240624-0023 | D149: HETV2024061301-TV-Dealer-SPDQtySIARebate-202408 | E149: 2024-08-01 | F149: 2024-08-31 | G149: NTSI | H149: 2024-08-01 | I149: 2024-08-31 | J149: 公司-電視-專售店進獎台折(1台2%,10台3%)-08~08 | K149: SPD_TT | L149: SPD_TT | M149: TW | O149: % | P149: 專售店進獎台折(1台2%,10台3%) | R149: OLED77C3PSA.ATT | T149: 0
A150: SPD_TT | B150: SPD_TT | C150: TT-NTSI-20240624-0023 | D150: HETV2024061301-TV-Dealer-SPDQtySIARebate-202408 | E150: 2024-08-01 | F150: 2024-08-31 | G150: NTSI | H150: 2024-08-01 | I150: 2024-08-31 | J150: 公司-電視-專售店進獎台折(1台2%,10台3%)-08~08 | K150: SPD_TT | L150: SPD_TT | M150: TW | O150: % | P150: 專售店進獎台折(1台2%,10台3%) | R150: OLED65C3PSA.ATT | T150: 0
A151: SPD_TT | B151: SPD_TT | C151: TT-NTSI-20240624-0023 | D151: HETV2024061301-TV-Dealer-SPDQtySIARebate-202408 | E151: 2024-08-01 | F151: 2024-08-31 | G151: NTSI | H151: 2024-08-01 | I151: 2024-08-31 | J151: 公司-電視-專售店進獎台折(1台2%,10台3%)-08~08 | K151: SPD_TT | L151: SPD_TT | M151: TW | O151: % | P151: 專售店進獎台折(1台2%,10台3%) | R151: 55QNED81SRA.ATT | T151: 0
A152: SPD_TT | B152: SPD_TT | C152: TT-NTSI-20240624-0023 | D152: HETV2024061301-TV-Dealer-SPDQtySIARebate-202408 | E152: 2024-08-01 | F152: 2024-08-31 | G152: NTSI | H152: 2024-08-01 | I152: 2024-08-31 | J152: 公司-電視-專售店進獎台折(1台2%,10台3%)-08~08 | K152: SPD_TT | L152: SPD_TT | M152: TW | O152: % | P152: 專售店進獎台折(1台2%,10台3%) | R152: 75QNED75SRT.ATT | T152: 0
A153: SPD_TT | B153: SPD_TT | C153: TT-NTSI-20240624-0023 | D153: HETV2024061301-TV-Dealer-SPDQtySIARebate-202408 | E153: 2024-08-01 | F153: 2024-08-31 | G153: NTSI | H153: 2024-08-01 | I153: 2024-08-31 | J153: 公司-電視-專售店進獎台折(1台2%,10台3%)-08~08 | K153: SPD_TT | L153: SPD_TT | M153: TW | O153: % | P153: 專售店進獎台折(1台2%,10台3%) | R153: 43QNED75SRT.ATT | T153: 0
A154: SPD_TT | B154: SPD_TT | C154: TT-NTSI-20240624-0023 | D154: HETV2024061301-TV-Dealer-SPDQtySIARebate-202408 | E154: 2024-08-01 | F154: 2024-08-31 | G154: NTSI | H154: 2024-08-01 | I154: 2024-08-31 | J154: 公司-電視-專售店進獎台折(1台2%,10台3%)-08~08 | K154: SPD_TT | L154: SPD_TT | M154: TW | O154: % | P154: 專售店進獎台折(1台2%,10台3%) | R154: OLED83G4PTA.ATT | T154: 0
A155: SPD_TT | B155: SPD_TT | C155: TT-NTSI-20240624-0023 | D155: HETV2024061301-TV-Dealer-SPDQtySIARebate-202408 | E155: 2024-08-01 | F155: 2024-08-31 | G155: NTSI | H155: 2024-08-01 | I155: 2024-08-31 | J155: 公司-電視-專售店進獎台折(1台2%,10台3%)-08~08 | K155: SPD_TT | L155: SPD_TT | M155: TW | O155: % | P155: 專售店進獎台折(1台2%,10台3%) | R155: 65QNED91TTA.ATT | T155: 0
A156: SPD_TT | B156: SPD_TT | C156: TT-NTSI-20240624-0023 | D156: HETV2024061301-TV-Dealer-SPDQtySIARebate-202408 | E156: 2024-08-01 | F156: 2024-08-31 | G156: NTSI | H156: 2024-08-01 | I156: 2024-08-31 | J156: 公司-電視-專售店進獎台折(1台2%,10台3%)-08~08 | K156: SPD_TT | L156: SPD_TT | M156: TW | O156: % | P156: 專售店進獎台折(1台2%,10台3%) | R156: 75QNED86TTA.ATT | T156: 0
A157: SPD_TT | B157: SPD_TT | C157: TT-NTSI-20240624-0023 | D157: HETV2024061301-TV-Dealer-SPDQtySIARebate-202408 | E157: 2024-08-01 | F157: 2024-08-31 | G157: NTSI | H157: 2024-08-01 | I157: 2024-08-31 | J157: 公司-電視-專售店進獎台折(1台2%,10台3%)-08~08 | K157: SPD_TT | L157: SPD_TT | M157: TW | O157: % | P157: 專售店進獎台折(1台2%,10台3%) | R157: 65QNED80TTA.ATT | T157: 0
A158: SPD_TT | B158: SPD_TT | C158: TT-NTSI-20240624-0023 | D158: HETV2024061301-TV-Dealer-SPDQtySIARebate-202408 | E158: 2024-08-01 | F158: 2024-08-31 | G158: NTSI | H158: 2024-08-01 | I158: 2024-08-31 | J158: 公司-電視-專售店進獎台折(1台2%,10台3%)-08~08 | K158: SPD_TT | L158: SPD_TT | M158: TW | O158: % | P158: 專售店進獎台折(1台2%,10台3%) | R158: OLED65G4PTA.ATT | T158: 0
A159: SPD_TT | B159: SPD_TT | C159: TT-NTSI-20240624-0023 | D159: HETV2024061301-TV-Dealer-SPDQtySIARebate-202408 | E159: 2024-08-01 | F159: 2024-08-31 | G159: NTSI | H159: 2024-08-01 | I159: 2024-08-31 | J159: 公司-電視-專售店進獎台折(1台2%,10台3%)-08~08 | K159: SPD_TT | L159: SPD_TT | M159: TW | O159: % | P159: 專售店進獎台折(1台2%,10台3%) | R159: OLED55C4PTA.ATT | T159: 0
A160: SPD_TT | B160: SPD_TT | C160: TT-NTSI-20240624-0023 | D160: HETV2024061301-TV-Dealer-SPDQtySIARebate-202408 | E160: 2024-08-01 | F160: 2024-08-31 | G160: NTSI | H160: 2024-08-01 | I160: 2024-08-31 | J160: 公司-電視-專售店進獎台折(1台2%,10台3%)-08~08 | K160: SPD_TT | L160: SPD_TT | M160: TW | O160: % | P160: 專售店進獎台折(1台2%,10台3%) | R160: OLED42C4PTA.ATT | T160: 0
A161: SPD_TT | B161: SPD_TT | C161: TT-NTSI-20240624-0023 | D161: HETV2024061301-TV-Dealer-SPDQtySIARebate-202408 | E161: 2024-08-01 | F161: 2024-08-31 | G161: NTSI | H161: 2024-08-01 | I161: 2024-08-31 | J161: 公司-電視-專售店進獎台折(1台2%,10台3%)-08~08 | K161: SPD_TT | L161: SPD_TT | M161: TW | O161: % | P161: 專售店進獎台折(1台2%,10台3%) | R161: 55QNED80TTA.ATT | T161: 0
A162: SPD_TT | B162: SPD_TT | C162: TT-NTSI-20240624-0023 | D162: HETV2024061301-TV-Dealer-SPDQtySIARebate-202408 | E162: 2024-08-01 | F162: 2024-08-31 | G162: NTSI | H162: 2024-08-01 | I162: 2024-08-31 | J162: 公司-電視-專售店進獎台折(1台2%,10台3%)-08~08 | K162: SPD_TT | L162: SPD_TT | M162: TW | O162: % | P162: 專售店進獎台折(1台2%,10台3%) | R162: OLED77M4PTA.ATT | T162: 0
A163: SPD_TT | B163: SPD_TT | C163: TT-NTSI-20240624-0023 | D163: HETV2024061301-TV-Dealer-SPDQtySIARebate-202408 | E163: 2024-08-01 | F163: 2024-08-31 | G163: NTSI | H163: 2024-08-01 | I163: 2024-08-31 | J163: 公司-電視-專售店進獎台折(1台2%,10台3%)-08~08 | K163: SPD_TT | L163: SPD_TT | M163: TW | O163: % | P163: 專售店進獎台折(1台2%,10台3%) | R163: OLED55G4PTA.ATT | T163: 0
A164: SPD_TT | B164: SPD_TT | C164: TT-NTSI-20240624-0023 | D164: HETV2024061301-TV-Dealer-SPDQtySIARebate-202408 | E164: 2024-08-01 | F164: 2024-08-31 | G164: NTSI | H164: 2024-08-01 | I164: 2024-08-31 | J164: 公司-電視-專售店進獎台折(1台2%,10台3%)-08~08 | K164: SPD_TT | L164: SPD_TT | M164: TW | O164: % | P164: 專售店進獎台折(1台2%,10台3%) | R164: OLED77C4PTA.ATT | T164: 0
A165: SPD_TT | B165: SPD_TT | C165: TT-NTSI-20240624-0023 | D165: HETV2024061301-TV-Dealer-SPDQtySIARebate-202408 | E165: 2024-08-01 | F165: 2024-08-31 | G165: NTSI | H165: 2024-08-01 | I165: 2024-08-31 | J165: 公司-電視-專售店進獎台折(1台2%,10台3%)-08~08 | K165: SPD_TT | L165: SPD_TT | M165: TW | O165: % | P165: 專售店進獎台折(1台2%,10台3%) | R165: OLED48C4PTA.ATT | T165: 0
A166: SPD_TT | B166: SPD_TT | C166: TT-NTSI-20240624-0023 | D166: HETV2024061301-TV-Dealer-SPDQtySIARebate-202408 | E166: 2024-08-01 | F166: 2024-08-31 | G166: NTSI | H166: 2024-08-01 | I166: 2024-08-31 | J166: 公司-電視-專售店進獎台折(1台2%,10台3%)-08~08 | K166: SPD_TT | L166: SPD_TT | M166: TW | O166: % | P166: 專售店進獎台折(1台2%,10台3%) | R166: 86QNED80TTA.ATT | T166: 0
A167: SPD_TT | B167: SPD_TT | C167: TT-NTSI-20240624-0023 | D167: HETV2024061301-TV-Dealer-SPDQtySIARebate-202408 | E167: 2024-08-01 | F167: 2024-08-31 | G167: NTSI | H167: 2024-08-01 | I167: 2024-08-31 | J167: 公司-電視-專售店進獎台折(1台2%,10台3%)-08~08 | K167: SPD_TT | L167: SPD_TT | M167: TW | O167: % | P167: 專售店進獎台折(1台2%,10台3%) | R167: OLED65C4PTA.ATT | T167: 0
A168: SPD_TT | B168: SPD_TT | C168: TT-NTSI-20240624-0023 | D168: HETV2024061301-TV-Dealer-SPDQtySIARebate-202408 | E168: 2024-08-01 | F168: 2024-08-31 | G168: NTSI | H168: 2024-08-01 | I168: 2024-08-31 | J168: 公司-電視-專售店進獎台折(1台2%,10台3%)-08~08 | K168: SPD_TT | L168: SPD_TT | M168: TW | O168: % | P168: 專售店進獎台折(1台2%,10台3%) | R168: 65QNED86TTA.ATT | T168: 0
A169: SPD_TT | B169: SPD_TT | C169: TT-NTSI-20240624-0023 | D169: HETV2024061301-TV-Dealer-SPDQtySIARebate-202408 | E169: 2024-08-01 | F169: 2024-08-31 | G169: NTSI | H169: 2024-08-01 | I169: 2024-08-31 | J169: 公司-電視-專售店進獎台折(1台2%,10台3%)-08~08 | K169: SPD_TT | L169: SPD_TT | M169: TW | O169: % | P169: 專售店進獎台折(1台2%,10台3%) | R169: 75QNED91TTA.ATT | T169: 0
A170: SPD_TT | B170: SPD_TT | C170: TT-NTSI-20240624-0023 | D170: HETV2024061301-TV-Dealer-SPDQtySIARebate-202408 | E170: 2024-08-01 | F170: 2024-08-31 | G170: NTSI | H170: 2024-08-01 | I170: 2024-08-31 | J170: 公司-電視-專售店進獎台折(1台2%,10台3%)-08~08 | K170: SPD_TT | L170: SPD_TT | M170: TW | O170: % | P170: 專售店進獎台折(1台2%,10台3%) | R170: 43QNED80TTA.ATT | T170: 0
A171: SPD_TT | B171: SPD_TT | C171: TT-NTSI-20240624-0023 | D171: HETV2024061301-TV-Dealer-SPDQtySIARebate-202408 | E171: 2024-08-01 | F171: 2024-08-31 | G171: NTSI | H171: 2024-08-01 | I171: 2024-08-31 | J171: 公司-電視-專售店進獎台折(1台2%,10台3%)-08~08 | K171: SPD_TT | L171: SPD_TT | M171: TW | O171: % | P171: 專售店進獎台折(1台2%,10台3%) | R171: 75QNED80TTA.ATT | T171: 0
A172: SPD_TT | B172: SPD_TT | C172: TT-NTSI-20240624-0023 | D172: HETV2024061301-TV-Dealer-SPDQtySIARebate-202408 | E172: 2024-08-01 | F172: 2024-08-31 | G172: NTSI | H172: 2024-08-01 | I172: 2024-08-31 | J172: 公司-電視-專售店進獎台折(1台2%,10台3%)-08~08 | K172: SPD_TT | L172: SPD_TT | M172: TW | O172: % | P172: 專售店進獎台折(1台2%,10台3%) | R172: OLED83C4PTA.ATT | T172: 0
A173: SPD_TT | B173: SPD_TT | C173: TT-NTSI-20240624-0023 | D173: HETV2024061301-TV-Dealer-SPDQtySIARebate-202408 | E173: 2024-08-01 | F173: 2024-08-31 | G173: NTSI | H173: 2024-08-01 | I173: 2024-08-31 | J173: 公司-電視-專售店進獎台折(1台2%,10台3%)-08~08 | K173: SPD_TT | L173: SPD_TT | M173: TW | O173: % | P173: 專售店進獎台折(1台2%,10台3%) | R173: OLED55B4PTA.ATT | T173: 0
A174: SPD_TT | B174: SPD_TT | C174: TT-NTSI-20240624-0023 | D174: HETV2024061301-TV-Dealer-SPDQtySIARebate-202408 | E174: 2024-08-01 | F174: 2024-08-31 | G174: NTSI | H174: 2024-08-01 | I174: 2024-08-31 | J174: 公司-電視-專售店進獎台折(1台2%,10台3%)-08~08 | K174: SPD_TT | L174: SPD_TT | M174: TW | O174: % | P174: 專售店進獎台折(1台2%,10台3%) | R174: 86QNED91TTA.ATT | T174: 0
A175: SPD_TT | B175: SPD_TT | C175: TT-NTSI-20240624-0023 | D175: HETV2024061301-TV-Dealer-SPDQtySIARebate-202408 | E175: 2024-08-01 | F175: 2024-08-31 | G175: NTSI | H175: 2024-08-01 | I175: 2024-08-31 | J175: 公司-電視-專售店進獎台折(1台2%,10台3%)-08~08 | K175: SPD_TT | L175: SPD_TT | M175: TW | O175: % | P175: 專售店進獎台折(1台2%,10台3%) | R175: 55QNED86TTA.ATT | T175: 0
A176: TW002291001B | B176: TW002291001B | C176: TT-NTSI-20240626-0013 | D176: DWB202406X007-ALL-TW002291-LimitedRentalFee-202408 | E176: 2024-08-01 | F176: 2024-08-31 | G176: NTSI | H176: 2024-08-01 | I176: 2024-08-31 | J176: 公司-家電-金一竹北C4租金補助(實銷達130萬且進貨達100至150萬補助3.5%/ 150萬以上4%,補助上限7萬,皆未稅基準)-08~08 | K176: TW002291001B | L176: 金一電器 | M176: TW | O176: % | P176: 金一竹北C4租金補助(實銷達130萬且進貨達100至150萬補助3.5%/ 150萬以上4%,補助上限7萬,皆未稅基準) | R176: 全產品 | T176: 0
A177: TW002143001B | B177: TW002143001B | C177: TT-NTSI-20240628-0001 | D177: DNB2406V005-ALL-TW002143-Exhibition Sale target Limited-0802~0825 | E177: 2024-08-02 | F177: 2024-08-25 | G177: NTSI | H177: 2024-08-02 | I177: 2024-08-25 | J177: 公司-全產品-全省店內個展&家具名床展(切結未稅300萬,達目標100%給予獎勵,上限未稅7.5萬)-0802~0825 | K177: TW002143001B | L177: 全省電器 | M177: TW | O177: % | P177: 全省店內個展&家具名床展(切結未稅300萬,達目標100%給予獎勵,上限未稅7.5萬) | R177: 全產品 | T177: 0
A178: TW002456001B | B178: TW002456001B | C178: TT-NTSI-20240726-0012 | D178: MMCSN2407A034-HC-TW002456-Sell-in Rebate with Target-202408 | E178: 2024-08-01 | F178: 2024-08-31 | G178: NTSI | H178: 2024-08-01 | I178: 2024-08-31 | J178: 公司-清淨機-目標達成獎勵(達200萬給予進貨獎勵1%)-08~08 | K178: TW002456001B | L178: 燦坤 | M178: TW | O178: % | P178: 目標達成獎勵(達200萬給予進貨獎勵1%) | R178: HCWCASAC | T178: 0
A179: TW002456001B | B179: TW002456001B | C179: TT-NTSI-20240726-0013 | D179: MMCSN2407A034-DH-TW002456-Sell-in Rebate with Target-202408 | E179: 2024-08-01 | F179: 2024-08-31 | G179: NTSI | H179: 2024-08-01 | I179: 2024-08-31 | J179: 公司-除濕機-目標達成獎勵(達100萬給予進貨獎勵3%)-08~08 | K179: TW002456001B | L179: 燦坤 | M179: TW | O179: % | P179: 目標達成獎勵(達100萬給予進貨獎勵3%) | R179: HADHDHDJ | T179: 0
A180: TW002456001B | B180: TW002456001B | C180: TT-NTSI-20240726-0014 | D180: MMCSN2407A034-VCC-TW002456-Sell-in Rebate with Target-202408 | E180: 2024-08-01 | F180: 2024-08-31 | G180: NTSI | H180: 2024-08-01 | I180: 2024-08-31 | J180: 公司-吸塵器-目標達成獎勵(達100萬給予進貨獎勵1%)-08~08 | K180: TW002456001B | L180: 燦坤 | M180: TW | O180: % | P180: 目標達成獎勵(達100萬給予進貨獎勵1%) | R180: 吸塵器 | T180: 0
A181: TW002501001B | B181: TW002501001B | C181: TT-NTSI-20240729-0001 | D181: MMCSN2407G026-DLT-TW002501-Sell in Target Rebate 3.5M-202408 | E181: 2024-08-01 | F181: 2024-08-31 | G181: NTSI | H181: 2024-08-01 | I181: 2024-08-31 | J181: 公司-清淨+除濕機-進貨獎勵2%(目標3.5M)-08~08 | K181: TW002501001B | L181: 家福總公司 | M181: TW | O181: % | P181: 進貨獎勵2%(目標3.5M) | R181: 除濕/清淨機 | T181: 0
A182: TW002501001B | B182: TW002501001B | C182: TT-NTSI-20240729-0004 | D182: MMCSN2407G027-TV-TW002501-Limit Sell in Target Rebate 15M-202408 | E182: 2024-08-01 | F182: 2024-08-31 | G182: NTSI | H182: 2024-08-01 | I182: 2024-08-31 | J182: 公司-電視-進貨獎勵1.4%上限20萬(目標15M)-08~08 | K182: TW002501001B | L182: 家福總公司 | M182: TW | O182: % | P182: 進貨獎勵1.4%上限20萬(目標15M) | R182: 電視 | T182: 0
A183: TW002718001B | B183: TW002718001B | C183: TT-NTSI-20240729-0005 | D183: MMCSN2407B036-RF-TW002718-LimitedInTarget12.5M(250K)-202408 | E183: 2024-08-01 | F183: 2024-08-31 | G183: NTSI | H183: 2024-08-01 | I183: 2024-08-31 | J183: 公司-冰箱-進貨達未稅1250萬獎勵25萬-08~08 | K183: TW002718001B | L183: 全國電子 | M183: TW | O183: % | P183: 進貨達未稅1250萬獎勵25萬 | R183: 冰箱 | T183: 0
A184: TW007639001B | B184: TW007639001B | C184: TT-NTSI-20240729-0014 | D184: TPB2301D014-All-TW007513/TW007639-RentalFeeSupport-Y2-202407 | E184: 2024-07-01 | F184: 2024-07-31 | G184: NTSI | H184: 2024-07-01 | I184: 2024-07-31 | J184: 協議-全產品-樂天/米米台北分公司三峽專售店分店租金補助(基本目標每月達50萬未稅，補助上限35,000含稅，Year2)-07-07 | K184: TW007639001B | L184: 米米實業有限公司臺北分公司 | M184: TW | O184: % | P184: 樂天/米米台北分公司三峽專售店分店租金補助(基本目標每月達50萬未稅，補助上限35,000含稅，Year2) | R184: 全產品 | T184: 0
A185: TW007639001B | B185: TW007639001B | C185: TT-NTSI-20240729-0019 | D185: TPB2301D014-All-TW007513/TW007639-RentalFeeSupport-Y2-202408 | E185: 2024-08-01 | F185: 2024-08-31 | G185: NTSI | H185: 2024-08-01 | I185: 2024-08-31 | J185: 協議-全產品-樂天/米米台北分公司三峽專售店分店租金補助(基本目標每月達50萬未稅，補助上限35,000含稅，Year2)-08-08 | K185: TW007639001B | L185: 米米實業有限公司臺北分公司 | M185: TW | O185: % | P185: 樂天/米米台北分公司三峽專售店分店租金補助(基本目標每月達50萬未稅，補助上限35,000含稅，Year2) | R185: 全產品 | T185: 0
A186: TW002718001B | B186: TW002718001B | C186: TT-NTSI-20240729-0032 | D186: MMCSN2407B033-TV-TW002718-LimitedInTarget20M(200K)-202408 | E186: 2024-08-01 | F186: 2024-08-31 | G186: NTSI | H186: 2024-08-01 | I186: 2024-08-31 | J186: 公司-電視-進貨達未稅2000萬獎勵20萬-08~08 | K186: TW002718001B | L186: 全國電子 | M186: TW | O186: % | P186: 進貨達未稅2000萬獎勵20萬 | R186: 電視 | T186: 0
A187: TW002372001B | B187: TW002372001B | C187: TT-NTSI-20240729-0035 | D187: TPB2407J002-OLED TV-TW002372-Qty SIA*3%-202408 | E187: 2024-08-01 | F187: 2024-08-31 | G187: NTSI | H187: 2024-08-01 | I187: 2024-08-31 | J187: 公司-電視-OLED混搭65"以下(含9台以上)進貨獎勵*3%-08~08 | K187: TW002372001B | L187: 承德國際 | M187: TW | O187: % | P187: OLED混搭65"以下(含9台以上)進貨獎勵*3% | R187: TVLO55NU | T187: 0
A188: TW002372001B | B188: TW002372001B | C188: TT-NTSI-20240729-0035 | D188: TPB2407J002-OLED TV-TW002372-Qty SIA*3%-202408 | E188: 2024-08-01 | F188: 2024-08-31 | G188: NTSI | H188: 2024-08-01 | I188: 2024-08-31 | J188: 公司-電視-OLED混搭65"以下(含9台以上)進貨獎勵*3%-08~08 | K188: TW002372001B | L188: 承德國際 | M188: TW | O188: % | P188: OLED混搭65"以下(含9台以上)進貨獎勵*3% | R188: TVLO65NU | T188: 0
A189: TW002372001B | B189: TW002372001B | C189: TT-NTSI-20240729-0035 | D189: TPB2407J002-OLED TV-TW002372-Qty SIA*3%-202408 | E189: 2024-08-01 | F189: 2024-08-31 | G189: NTSI | H189: 2024-08-01 | I189: 2024-08-31 | J189: 公司-電視-OLED混搭65"以下(含9台以上)進貨獎勵*3%-08~08 | K189: TW002372001B | L189: 承德國際 | M189: TW | O189: % | P189: OLED混搭65"以下(含9台以上)進貨獎勵*3% | R189: TVLV55NU | T189: 0
A190: TW002372001B | B190: TW002372001B | C190: TT-NTSI-20240729-0035 | D190: TPB2407J002-OLED TV-TW002372-Qty SIA*3%-202408 | E190: 2024-08-01 | F190: 2024-08-31 | G190: NTSI | H190: 2024-08-01 | I190: 2024-08-31 | J190: 公司-電視-OLED混搭65"以下(含9台以上)進貨獎勵*3%-08~08 | K190: TW002372001B | L190: 承德國際 | M190: TW | O190: % | P190: OLED混搭65"以下(含9台以上)進貨獎勵*3% | R190: TVLV65NU | T190: 0
A191: TW002372001B | B191: TW002372001B | C191: TT-NTSI-20240729-0035 | D191: TPB2407J002-OLED TV-TW002372-Qty SIA*3%-202408 | E191: 2024-08-01 | F191: 2024-08-31 | G191: NTSI | H191: 2024-08-01 | I191: 2024-08-31 | J191: 公司-電視-OLED混搭65"以下(含9台以上)進貨獎勵*3%-08~08 | K191: TW002372001B | L191: 承德國際 | M191: TW | O191: % | P191: OLED混搭65"以下(含9台以上)進貨獎勵*3% | R191: TVLO42NU | T191: 0
A192: TW002372001B | B192: TW002372001B | C192: TT-NTSI-20240729-0035 | D192: TPB2407J002-OLED TV-TW002372-Qty SIA*3%-202408 | E192: 2024-08-01 | F192: 2024-08-31 | G192: NTSI | H192: 2024-08-01 | I192: 2024-08-31 | J192: 公司-電視-OLED混搭65"以下(含9台以上)進貨獎勵*3%-08~08 | K192: TW002372001B | L192: 承德國際 | M192: TW | O192: % | P192: OLED混搭65"以下(含9台以上)進貨獎勵*3% | R192: TVLO48NU | T192: 0
A193: TW002372001B | B193: TW002372001B | C193: TT-NTSI-20240729-0035 | D193: TPB2407J002-OLED TV-TW002372-Qty SIA*3%-202408 | E193: 2024-08-01 | F193: 2024-08-31 | G193: NTSI | H193: 2024-08-01 | I193: 2024-08-31 | J193: 公司-電視-OLED混搭65"以下(含9台以上)進貨獎勵*3%-08~08 | K193: TW002372001B | L193: 承德國際 | M193: TW | O193: % | P193: OLED混搭65"以下(含9台以上)進貨獎勵*3% | R193: TVLO48NT | T193: 0
A194: TW002372001B | B194: TW002372001B | C194: TT-NTSI-20240729-0035 | D194: TPB2407J002-OLED TV-TW002372-Qty SIA*3%-202408 | E194: 2024-08-01 | F194: 2024-08-31 | G194: =MID(C194,4,4) -> NTSI | H194: 2024-08-01 | I194: 2024-08-31 | J194: 公司-電視-OLED混搭65"以下(含9台以上)進貨獎勵*3%-08~08 | K194: TW002372001B | L194: 承德國際 | M194: TW | O194: % | P194: OLED混搭65"以下(含9台以上)進貨獎勵*3% | R194: TVLO55NT | T194: 0
A195: TW002372001B | B195: =K195 -> TW002372001B | C195: TT-NTSI-20240729-0035 | D195: TPB2407J002-OLED TV-TW002372-Qty SIA*3%-202408 | E195: 2024-08-01 | F195: 2024-08-31 | G195: NTSI | H195: =E195 -> 2024-08-01 | I195: =F195 -> 2024-08-31 | J195: 公司-電視-OLED混搭65"以下(含9台以上)進貨獎勵*3%-08~08 | K195: TW002372001B | L195: 承德國際 | M195: TW | O195: % | P195: OLED混搭65"以下(含9台以上)進貨獎勵*3% | R195: TVLV65NT | T195: 0
A196: TW002372001B | B196: TW002372001B | C196: TT-NTSI-20240729-0035 | D196: TPB2407J002-OLED TV-TW002372-Qty SIA*3%-202408 | E196: 2024-08-01 | F196: 2024-08-31 | G196: NTSI | H196: 2024-08-01 | I196: 2024-08-31 | J196: 公司-電視-OLED混搭65"以下(含9台以上)進貨獎勵*3%-08~08 | K196: TW002372001B | L196: 承德國際 | M196: TW | O196: % | P196: OLED混搭65"以下(含9台以上)進貨獎勵*3% | R196: TVLO42NT | T196: 0
A197: TW002372001B | B197: TW002372001B | C197: TT-NTSI-20240729-0035 | D197: TPB2407J002-OLED TV-TW002372-Qty SIA*3%-202408 | E197: 2024-08-01 | F197: 2024-08-31 | G197: NTSI | H197: 2024-08-01 | I197: 2024-08-31 | J197: 公司-電視-OLED混搭65"以下(含9台以上)進貨獎勵*3%-08~08 | K197: TW002372001B | L197: 承德國際 | M197: TW | O197: % | P197: OLED混搭65"以下(含9台以上)進貨獎勵*3% | R197: TVLO65NT | T197: 0
A198: =IFERROR(VLOOKUP(N198,多CODE,2,0),IF(RIGHT($B198,1)="H",LEFT($B198,11)&"B",IFERROR(VLOOKUP($B198,SHIP,3,0),$B198))) -> TW002372001B | B198: TW002372001B | C198: TT-NTSI-20240729-0035 | D198: TPB2407J002-OLED TV-TW002372-Qty SIA*3%-202408 | E198: 2024-08-01 | F198: 2024-08-31 | G198: NTSI | H198: 2024-08-01 | I198: 2024-08-31 | J198: 公司-電視-OLED混搭65"以下(含9台以上)進貨獎勵*3%-08~08 | K198: TW002372001B | L198: 承德國際 | M198: TW | O198: % | P198: OLED混搭65"以下(含9台以上)進貨獎勵*3% | R198: TVLV55NT | T198: 0
A199: TW004399001B | B199: TW004399001B | C199: TT-NTSI-20240729-0036 | D199: TPB2407J002-OLED TV-TW004399-Qty SIA*3%-202408 | E199: 2024-08-01 | F199: 2024-08-31 | G199: NTSI | H199: 2024-08-01 | I199: 2024-08-31 | J199: 公司-電視-OLED混搭65"以下(含9台以上)進貨獎勵*3%-08~08 | K199: TW004399001B | L199: 祥建科技 | M199: TW | O199: % | P199: OLED混搭65"以下(含9台以上)進貨獎勵*3% | R199: TVLO55NU | T199: 0
A200: TW004399001B | B200: TW004399001B | C200: TT-NTSI-20240729-0036 | D200: TPB2407J002-OLED TV-TW004399-Qty SIA*3%-202408 | E200: 2024-08-01 | F200: 2024-08-31 | G200: NTSI | H200: 2024-08-01 | I200: 2024-08-31 | J200: 公司-電視-OLED混搭65"以下(含9台以上)進貨獎勵*3%-08~08 | K200: TW004399001B | L200: 祥建科技 | M200: TW | O200: % | P200: OLED混搭65"以下(含9台以上)進貨獎勵*3% | R200: TVLO65NU | T200: 0
... 4300 more rows
